Workbook

Sheet Portada
C17: PROPÓSITO :
C23: PROCEDIMIENTO :

Sheet 2011
A1: REPORTE DE TIEMPO DE TRÁMITE DE ALTA PATRONAL | L1: TOTAL DE REGISTOS ENCONTRADOS: 1060
A2: REG PATRONAL | B2: MODALIDAD | C2: CIZ | D2: DELEGACIÓN | E2: SUBDELEGACIÓN | F2: HORA | H2: TIEMPO DE TRÁMITE | L2: Segundos totales | M2: Mes en que se realizó
F3: INICIO | G3: TERMINO | H3: HORAS | I3: MINUTOS | J3: SEGUNDOS | O3: 2012
A4: A8076057 | B4: 10 | C4: 2 | D4: 8 | E4: 1 | F4: 4/27/11 11:58 AM | G4: 4/27/11 12:11 PM | H4: 0 | I4: 12 | J4: 48 | L4: =H4*60*60+I4*60+J4 -> 768 | M4: 4 | O4: Mes | P4: Promedio Mes
A5: A8076071 | B5: 10 | C5: 2 | D5: 8 | E5: 1 | F5: 2011-03-05T12:46:00 | G5: 2011-03-05T13:03:00 | H5: 0 | I5: 16 | J5: 29 | L5: =H5*60*60+I5*60+J5 -> 989 | M5: 5 | O5: 1 | P5: =AVERAGEIF(uno,"=1",tiempouno) -> 869.4489796
A6: A8076047 | B6: 10 | C6: 2 | D6: 8 | E6: 1 | F6: 4/25/11 11:16 AM | G6: 4/25/11 11:25 AM | H6: 0 | I6: 9 | J6: 4 | L6: 544 | M6: 4 | O6: 2 | P6: =AVERAGEIF(uno,"=2",tiempouno) -> 839.6162791
A7: A8076072 | B7: 10 | C7: 2 | D7: 8 | E7: 1 | F7: 2011-03-05T13:24:00 | G7: 2011-03-05T13:39:00 | H7: 0 | I7: 15 | J7: 17 | L7: 917 | M7: 5 | O7: 3 | P7: =AVERAGEIF(uno,"=3",tiempouno) -> 893.3333333
A8: A8076074 | B8: 10 | C8: 2 | D8: 8 | E8: 1 | F8: 2011-03-05T13:31:00 | G8: 2011-03-05T13:53:00 | H8: 0 | I8: 22 | J8: 24 | L8: 1344 | M8: 5 | O8: 4 | P8: =AVERAGEIF(uno,"=4",tiempouno) -> 1073.744186
A9: A8076048 | B9: 10 | C9: 2 | D9: 8 | E9: 1 | F9: 4/25/11 11:50 AM | G9: 4/25/11 12:13 PM | H9: 0 | I9: 22 | J9: 14 | L9: 1334 | M9: 4 | O9: 5 | P9: =AVERAGEIF(uno,"=5",tiempouno) -> 971.1978022
A10: A8076058 | B10: 10 | C10: 2 | D10: 8 | E10: 1 | F10: 4/27/11 12:41 PM | G10: 4/27/11 12:51 PM | H10: 0 | I10: 10 | J10: 19 | L10: 619 | M10: 4 | O10: 6 | P10: =AVERAGEIF(uno,"=6",tiempouno) -> 836.990099
A11: A8076073 | B11: 10 | C11: 2 | D11: 8 | E11: 1 | F11: 2011-03-05T13:37:00 | G11: 2011-03-05T13:44:00 | H11: 0 | I11: 6 | J11: 52 | L11: 412 | M11: 5 | O11: 7 | P11: =AVERAGEIF(uno,"=7",tiempouno) -> 1085.986486
A12: A8076059 | B12: 10 | C12: 2 | D12: 8 | E12: 1 | F12: 4/27/11 12:53 PM | G12: 4/27/11 12:54 PM | H12: 0 | I12: 1 | J12: 12 | L12: 72 | M12: 4 | O12: 8 | P12: =AVERAGEIF(uno,"=8",tiempouno) -> 840.5833333
A13: A8076068 | B13: 10 | C13: 2 | D13: 8 | E13: 1 | F13: 2011-02-05T14:32:00 | G13: 2011-02-05T14:38:00 | H13: 0 | I13: 5 | J13: 23 | L13: 323 | M13: 5 | O13: 9 | P13: =AVERAGEIF(uno,"=9",tiempouno) -> 854.0086957
A14: A8076049 | B14: 10 | C14: 2 | D14: 8 | E14: 1 | F14: 4/25/11 12:25 PM | G14: 4/25/11 12:39 PM | H14: 0 | I14: 14 | J14: 22 | L14: 862 | M14: 4 | O14: 10 | P14: =AVERAGEIF(uno,"=10",tiempouno) -> 1091.040816
A15: A8076050 | B15: 10 | C15: 2 | D15: 8 | E15: 1 | F15: 4/25/11 12:32 PM | G15: 4/25/11 12:49 PM | H15: 0 | I15: 16 | J15: 48 | L15: 1008 | M15: 4 | O15: 11 | P15: =AVERAGEIF(uno,"=11",tiempouno) -> 989.4084507
A16: A8076069 | B16: 10 | C16: 2 | D16: 8 | E16: 1 | F16: 2011-02-05T16:11:00 | G16: 2011-02-05T16:23:00 | H16: 0 | I16: 12 | J16: 37 | L16: 757 | M16: 5 | O16: 12 | P16: =AVERAGEIF(uno,"=12",tiempouno) -> 1133.176471
A17: A8076067 | B17: 10 | C17: 2 | D17: 8 | E17: 1 | F17: 4/29/11 11:41 AM | G17: 4/29/11 11:55 AM | H17: 0 | I17: 13 | J17: 56 | L17: 836 | M17: 4
A18: A8076066 | B18: 10 | C18: 2 | D18: 8 | E18: 1 | F18: 4/29/11 11:00 AM | G18: 4/29/11 11:11 AM | H18: 0 | I18: 10 | J18: 47 | L18: 647 | M18: 4
A19: H8012125 | B19: 10 | C19: 2 | D19: 8 | E19: 1 | F19: 2011-02-05T09:38:00 | G19: 2011-02-05T10:19:00 | H19: 0 | I19: 41 | J19: 49 | L19: 2509 | M19: 5
A20: A8076044 | B20: 10 | C20: 2 | D20: 8 | E20: 1 | F20: 4/19/11 2:12 PM | G20: 4/19/11 2:44 PM | H20: 0 | I20: 32 | J20: 6 | L20: 1926 | M20: 4
A21: A8076045 | B21: 10 | C21: 2 | D21: 8 | E21: 1 | F21: 4/19/11 3:01 PM | G21: 4/19/11 3:09 PM | H21: 0 | I21: 7 | J21: 26 | L21: 446 | M21: 4
A22: A8076046 | B22: 10 | C22: 2 | D22: 8 | E22: 1 | F22: 4/20/11 10:10 AM | G22: 4/20/11 12:32 PM | H22: 2 | I22: 22 | J22: 7 | L22: 8527 | M22: 4
A23: A7510875 | B23: 10 | C23: 2 | D23: 8 | E23: 1 | F23: 4/20/11 9:44 AM | G23: 4/20/11 12:34 PM | H23: 2 | I23: 50 | J23: 0 | L23: 10200 | M23: 4
A24: A8076063 | B24: 10 | C24: 2 | D24: 8 | E24: 1 | F24: 4/28/11 12:00 PM | G24: 4/28/11 12:35 PM | H24: 0 | I24: 34 | J24: 5 | L24: 2045 | M24: 4
A25: A8076064 | B25: 10 | C25: 2 | D25: 8 | E25: 1 | F25: 4/28/11 12:38 PM | G25: 4/28/11 12:43 PM | H25: 0 | I25: 4 | J25: 49 | L25: 289 | M25: 4
A26: A8076062 | B26: 10 | C26: 2 | D26: 8 | E26: 1 | F26: 4/28/11 11:33 AM | G26: 4/28/11 11:44 AM | H26: 0 | I26: 10 | J26: 58 | L26: 658 | M26: 4
A27: A8076039 | B27: 10 | C27: 2 | D27: 8 | E27: 1 | F27: 4/19/11 10:34 AM | G27: 4/19/11 10:38 AM | H27: 0 | I27: 4 | J27: 23 | L27: 263 | M27: 4
A28: A8076043 | B28: 10 | C28: 2 | D28: 8 | E28: 1 | F28: 4/19/11 1:13 PM | G28: 4/19/11 1:15 PM | H28: 0 | I28: 2 | J28: 16 | L28: 136 | M28: 4
A29: A8076054 | B29: 10 | C29: 2 | D29: 8 | E29: 1 | F29: 4/26/11 10:05 AM | G29: 4/26/11 10:21 AM | H29: 0 | I29: 15 | J29: 36 | L29: 936 | M29: 4
A30: A8076055 | B30: 10 | C30: 2 | D30: 8 | E30: 1 | F30: 4/26/11 10:32 AM | G30: 4/26/11 11:25 AM | H30: 0 | I30: 53 | J30: 22 | L30: 3202 | M30: 4
A31: A8076070 | B31: 10 | C31: 2 | D31: 8 | E31: 1 | F31: 2011-03-05T11:51:00 | G31: 2011-03-05T12:02:00 | H31: 0 | I31: 11 | J31: 34 | L31: 694 | M31: 5
A32: A8076065 | B32: 10 | C32: 2 | D32: 8 | E32: 1 | F32: 4/29/11 9:56 AM | G32: 4/29/11 10:06 AM | H32: 0 | I32: 9 | J32: 37 | L32: 577 | M32: 4
A33: A8076051 | B33: 10 | C33: 2 | D33: 8 | E33: 1 | F33: 4/25/11 1:17 PM | G33: 4/25/11 1:28 PM | H33: 0 | I33: 11 | J33: 26 | L33: 686 | M33: 4
A34: A8076029 | B34: 10 | C34: 2 | D34: 8 | E34: 1 | F34: 4/13/11 2:47 PM | G34: 4/13/11 3:01 PM | H34: 0 | I34: 13 | J34: 31 | L34: 811 | M34: 4
A35: A8076056 | B35: 10 | C35: 2 | D35: 8 | E35: 1 | F35: 4/27/11 10:13 AM | G35: 4/27/11 10:39 AM | H35: 0 | I35: 25 | J35: 53 | L35: 1553 | M35: 4
A36: A8076052 | B36: 10 | C36: 2 | D36: 8 | E36: 1 | F36: 4/25/11 1:54 PM | G36: 4/25/11 2:02 PM | H36: 0 | I36: 7 | J36: 46 | L36: 466 | M36: 4
A37: A8076053 | B37: 10 | C37: 2 | D37: 8 | E37: 1 | F37: 4/25/11 2:21 PM | G37: 4/25/11 2:59 PM | H37: 0 | I37: 37 | J37: 40 | L37: 2260 | M37: 4
A38: A7510876 | B38: 10 | C38: 2 | D38: 8 | E38: 1 | F38: 4/27/11 2:19 PM | G38: 4/27/11 2:27 PM | H38: 0 | I38: 8 | J38: 1 | L38: 481 | M38: 4
A39: A8076060 | B39: 10 | C39: 2 | D39: 8 | E39: 1 | F39: 4/27/11 2:57 PM | G39: 4/27/11 3:05 PM | H39: 0 | I39: 7 | J39: 44 | L39: 464 | M39: 4
A40: A8076061 | B40: 10 | C40: 2 | D40: 8 | E40: 1 | F40: 4/27/11 3:44 PM | G40: 4/27/11 3:52 PM | H40: 0 | I40: 8 | J40: 47 | L40: 527 | M40: 4
A41: A8076090 | B41: 10 | C41: 2 | D41: 8 | E41: 1 | F41: 2011-09-05T12:46:00 | G41: 2011-09-05T13:15:00 | H41: 0 | I41: 28 | J41: 46 | L41: 1726 | M41: 5
A42: A8076089 | B42: 10 | C42: 2 | D42: 8 | E42: 1 | F42: 2011-09-05T12:27:00 | G42: 2011-09-05T12:37:00 | H42: 0 | I42: 9 | J42: 53 | L42: 593 | M42: 5
A43: A8076094 | B43: 10 | C43: 2 | D43: 8 | E43: 1 | F43: 2011-12-05T11:30:00 | G43: 2011-12-05T11:44:00 | H43: 0 | I43: 14 | J43: 3 | L43: 843 | M43: 5
A44: A8076077 | B44: 10 | C44: 2 | D44: 8 | E44: 1 | F44: 2011-04-05T13:20:00 | G44: 2011-04-05T13:40:00 | H44: 0 | I44: 20 | J44: 38 | L44: 1238 | M44: 5
A45: A8076078 | B45: 10 | C45: 2 | D45: 8 | E45: 1 | F45: 2011-04-05T14:30:00 | G45: 2011-04-05T14:45:00 | H45: 0 | I45: 14 | J45: 24 | L45: 864 | M45: 5
A46: A8076076 | B46: 10 | C46: 2 | D46: 8 | E46: 1 | F46: 2011-04-05T12:41:00 | G46: 2011-04-05T12:49:00 | H46: 0 | I46: 8 | J46: 9 | L46: 489 | M46: 5
A47: A8076082 | B47: 10 | C47: 2 | D47: 8 | E47: 1 | F47: 2011-06-05T13:22:00 | G47: 2011-06-05T13:32:00 | H47: 0 | I47: 9 | J47: 50 | L47: 590 | M47: 5
A48: A8076081 | B48: 10 | C48: 2 | D48: 8 | E48: 1 | F48: 2011-06-05T11:28:00 | G48: 2011-06-05T11:52:00 | H48: 0 | I48: 24 | J48: 2 | L48: 1442 | M48: 5
A49: A8076085 | B49: 10 | C49: 2 | D49: 8 | E49: 1 | F49: 2011-09-05T10:17:00 | G49: 2011-09-05T10:33:00 | H49: 0 | I49: 16 | J49: 21 | L49: 981 | M49: 5
A50: A8076086 | B50: 10 | C50: 2 | D50: 8 | E50: 1 | F50: 2011-09-05T10:33:00 | G50: 2011-09-05T10:44:00 | H50: 0 | I50: 11 | J50: 14 | L50: 674 | M50: 5
A51: A8076095 | B51: 10 | C51: 2 | D51: 8 | E51: 1 | F51: 2011-12-05T11:42:00 | G51: 2011-12-05T12:02:00 | H51: 0 | I51: 19 | J51: 57 | L51: 1197 | M51: 5
A52: A8076096 | B52: 10 | C52: 2 | D52: 8 | E52: 1 | F52: 2011-12-05T12:14:00 | G52: 2011-12-05T12:30:00 | H52: 0 | I52: 16 | J52: 28 | L52: 988 | M52: 5
A53: A8076097 | B53: 10 | C53: 2 | D53: 8 | E53: 1 | F53: 2011-12-05T12:46:00 | G53: 2011-12-05T12:56:00 | H53: 0 | I53: 10 | J53: 2 | L53: 602 | M53: 5
A54: A8076083 | B54: 10 | C54: 2 | D54: 8 | E54: 1 | F54: 2011-06-05T14:06:00 | G54: 2011-06-05T14:11:00 | H54: 0 | I54: 5 | J54: 13 | L54: 313 | M54: 5
A55: A8076084 | B55: 10 | C55: 2 | D55: 8 | E55: 1 | F55: 2011-06-05T16:37:00 | G55: 2011-06-05T16:40:00 | H55: 0 | I55: 2 | J55: 47 | L55: 167 | M55: 5
A56: A8076103 | B56: 10 | C56: 2 | D56: 8 | E56: 1 | F56: 5/13/11 11:49 AM | G56: 5/13/11 12:00 PM | H56: 0 | I56: 11 | J56: 47 | L56: 707 | M56: 5
A57: A8076104 | B57: 10 | C57: 2 | D57: 8 | E57: 1 | F57: 5/13/11 12:35 PM | G57: 5/13/11 12:51 PM | H57: 0 | I57: 15 | J57: 54 | L57: 954 | M57: 5
A58: A7510877 | B58: 10 | C58: 2 | D58: 8 | E58: 1 | F58: 5/13/11 12:50 PM | G58: 5/13/11 1:23 PM | H58: 0 | I58: 32 | J58: 42 | L58: 1962 | M58: 5
A59: A8076080 | B59: 10 | C59: 2 | D59: 8 | E59: 1 | F59: 2011-06-05T10:47:00 | G59: 2011-06-05T11:10:00 | H59: 0 | I59: 22 | J59: 53 | L59: 1373 | M59: 5
A60: A8076093 | B60: 10 | C60: 2 | D60: 8 | E60: 1 | F60: 2011-11-05T13:18:00 | G60: 2011-11-05T13:23:00 | H60: 0 | I60: 4 | J60: 31 | L60: 271 | M60: 5
A61: A8076075 | B61: 10 | C61: 2 | D61: 8 | E61: 1 | F61: 2011-03-05T14:16:00 | G61: 2011-03-05T14:28:00 | H61: 0 | I61: 12 | J61: 20 | L61: 740 | M61: 5
A62: A8076079 | B62: 10 | C62: 2 | D62: 8 | E62: 1 | F62: 2011-04-05T15:37:00 | G62: 2011-04-05T15:45:00 | H62: 0 | I62: 7 | J62: 43 | L62: 463 | M62: 5
A63: A8076091 | B63: 10 | C63: 2 | D63: 8 | E63: 1 | F63: 2011-09-05T15:31:00 | G63: 2011-09-05T15:42:00 | H63: 0 | I63: 10 | J63: 49 | L63: 649 | M63: 5
A64: A8076087 | B64: 10 | C64: 2 | D64: 8 | E64: 1 | F64: 2011-09-05T11:42:00 | G64: 2011-09-05T11:46:00 | H64: 0 | I64: 4 | J64: 21 | L64: 261 | M64: 5
A65: A8076088 | B65: 10 | C65: 2 | D65: 8 | E65: 1 | F65: 2011-09-05T11:45:00 | G65: 2011-09-05T11:53:00 | H65: 0 | I65: 8 | J65: 23 | L65: 503 | M65: 5
A66: A8076099 | B66: 10 | C66: 2 | D66: 8 | E66: 1 | F66: 5/13/11 9:53 AM | G66: 5/13/11 9:58 AM | H66: 0 | I66: 4 | J66: 53 | L66: 293 | M66: 5
A67: A8076100 | B67: 10 | C67: 2 | D67: 8 | E67: 1 | F67: 5/13/11 10:28 AM | G67: 5/13/11 10:33 AM | H67: 0 | I67: 5 | J67: 44 | L67: 344 | M67: 5
A68: A8076101 | B68: 10 | C68: 2 | D68: 8 | E68: 1 | F68: 5/13/11 10:34 AM | G68: 5/13/11 10:42 AM | H68: 0 | I68: 8 | J68: 20 | L68: 500 | M68: 5
A69: A8076102 | B69: 10 | C69: 2 | D69: 8 | E69: 1 | F69: 5/13/11 10:57 AM | G69: 5/13/11 11:03 AM | H69: 0 | I69: 6 | J69: 5 | L69: =H69*60*60+I69*60+J69 -> 365 | M69: 5
A70: A8076033 | B70: 10 | C70: 2 | D70: 8 | E70: 1 | F70: 4/15/11 2:06 PM | G70: 4/15/11 2:15 PM | H70: 0 | I70: 8 | J70: 38 | L70: 518 | M70: 4
A71: A8076106 | B71: 10 | C71: 2 | D71: 8 | E71: 1 | F71: 5/16/11 10:34 AM | G71: 5/16/11 10:43 AM | H71: 0 | I71: 8 | J71: 20 | L71: 500 | M71: 5
A72: A8076092 | B72: 10 | C72: 2 | D72: 8 | E72: 1 | F72: 2011-11-05T11:19:00 | G72: 2011-11-05T11:35:00 | H72: 0 | I72: 15 | J72: 42 | L72: 942 | M72: 5
A73: H8012126 | B73: 10 | C73: 2 | D73: 8 | E73: 1 | F73: 2011-12-05T14:23:00 | G73: 2011-12-05T14:25:00 | H73: 0 | I73: 2 | J73: 27 | L73: 147 | M73: 5
A74: A8076098 | B74: 10 | C74: 2 | D74: 8 | E74: 1 | F74: 2011-12-05T14:28:00 | G74: 2011-12-05T14:34:00 | H74: 0 | I74: 6 | J74: 6 | L74: 366 | M74: 5
A75: A8076105 | B75: 10 | C75: 2 | D75: 8 | E75: 1 | F75: 5/13/11 2:30 PM | G75: 5/13/11 3:17 PM | H75: 0 | I75: 47 | J75: 13 | L75: 2833 | M75: 5
A76: A8076107 | B76: 10 | C76: 2 | D76: 8 | E76: 1 | F76: 5/16/11 11:34 AM | G76: 5/16/11 11:42 AM | H76: 0 | I76: 7 | J76: 37 | L76: 457 | M76: 5
A77: A8076036 | B77: 10 | C77: 2 | D77: 8 | E77: 1 | F77: 4/18/11 12:24 PM | G77: 4/18/11 12:38 PM | H77: 0 | I77: 14 | J77: 22 | L77: 862 | M77: 4
A78: A8076037 | B78: 10 | C78: 2 | D78: 8 | E78: 1 | F78: 4/18/11 1:01 PM | G78: 4/18/11 1:07 PM | H78: 0 | I78: 6 | J78: 28 | L78: 388 | M78: 4
A79: A8076038 | B79: 10 | C79: 2 | D79: 8 | E79: 1 | F79: 4/18/11 1:36 PM | G79: 4/18/11 1:57 PM | H79: 0 | I79: 21 | J79: 4 | L79: 1264 | M79: 4
A80: A8076025 | B80: 10 | C80: 2 | D80: 8 | E80: 1 | F80: 4/13/11 10:53 AM | G80: 4/13/11 11:07 AM | H80: 0 | I80: 14 | J80: 4 | L80: 844 | M80: 4
A81: A8076028 | B81: 10 | C81: 2 | D81: 8 | E81: 1 | F81: 4/13/11 2:22 PM | G81: 4/13/11 2:41 PM | H81: 0 | I81: 19 | J81: 53 | L81: 1193 | M81: 4
A82: A8076017 | B82: 10 | C82: 2 | D82: 8 | E82: 1 | F82: 2011-11-04T14:30:00 | G82: 2011-11-04T14:37:00 | H82: 0 | I82: 7 | J82: 29 | L82: 449 | M82: 4
A83: A7510874 | B83: 10 | C83: 2 | D83: 8 | E83: 1 | F83: 2011-11-04T15:17:00 | G83: 2011-11-04T15:34:00 | H83: 0 | I83: 16 | J83: 58 | L83: 1018 | M83: 4
A84: A8076018 | B84: 10 | C84: 2 | D84: 8 | E84: 1 | F84: 2011-11-04T15:41:00 | G84: 2011-11-04T16:12:00 | H84: 0 | I84: 31 | J84: 13 | L84: 1873 | M84: 4
A85: A8076016 | B85: 10 | C85: 2 | D85: 8 | E85: 1 | F85: 2011-11-04T13:38:00 | G85: 2011-11-04T14:00:00 | H85: 0 | I85: 22 | J85: 27 | L85: 1347 | M85: 4
A86: A8076011 | B86: 10 | C86: 2 | D86: 8 | E86: 1 | F86: 2011-08-04T10:03:00 | G86: 2011-08-04T10:15:00 | H86: 0 | I86: 12 | J86: 37 | L86: 757 | M86: 4
A87: A8075977 | B87: 10 | C87: 2 | D87: 8 | E87: 1 | F87: 3/31/11 12:24 PM | G87: 3/31/11 12:35 PM | H87: 0 | I87: 10 | J87: 34 | L87: 634 | M87: 3
A88: A8076009 | B88: 10 | C88: 2 | D88: 8 | E88: 1 | F88: 2011-07-04T15:01:00 | G88: 2011-07-04T15:05:00 | H88: 0 | I88: 4 | J88: 10 | L88: 250 | M88: 4
A89: A8076013 | B89: 10 | C89: 2 | D89: 8 | E89: 1 | F89: 2011-08-04T13:20:00 | G89: 2011-08-04T13:38:00 | H89: 0 | I89: 17 | J89: 59 | L89: 1079 | M89: 4
A90: A8076014 | B90: 10 | C90: 2 | D90: 8 | E90: 1 | F90: 2011-11-04T11:10:00 | G90: 2011-11-04T11:17:00 | H90: 0 | I90: 6 | J90: 40 | L90: 400 | M90: 4
A91: A8076019 | B91: 10 | C91: 2 | D91: 8 | E91: 1 | F91: 2011-12-04T10:28:00 | G91: 2011-12-04T10:47:00 | H91: 0 | I91: 18 | J91: 36 | L91: 1116 | M91: 4
A92: A8076020 | B92: 10 | C92: 2 | D92: 8 | E92: 1 | F92: 2011-12-04T10:44:00 | G92: 2011-12-04T10:47:00 | H92: 0 | I92: 3 | J92: 17 | L92: 197 | M92: 4
A93: A8076021 | B93: 10 | C93: 2 | D93: 8 | E93: 1 | F93: 2011-12-04T11:12:00 | G93: 2011-12-04T11:20:00 | H93: 0 | I93: 7 | J93: 46 | L93: 466 | M93: 4
A94: A8076006 | B94: 10 | C94: 2 | D94: 8 | E94: 1 | F94: 2011-07-04T11:54:00 | G94: 2011-07-04T12:10:00 | H94: 0 | I94: 15 | J94: 23 | L94: 923 | M94: 4
A95: A8076007 | B95: 10 | C95: 2 | D95: 8 | E95: 1 | F95: 2011-07-04T12:19:00 | G95: 2011-07-04T12:33:00 | H95: 0 | I95: 14 | J95: 9 | L95: 849 | M95: 4
A96: A8076012 | B96: 10 | C96: 2 | D96: 8 | E96: 1 | F96: 2011-08-04T10:47:00 | G96: 2011-08-04T11:00:00 | H96: 0 | I96: 13 | J96: 18 | L96: 798 | M96: 4
A97: A8076022 | B97: 10 | C97: 2 | D97: 8 | E97: 1 | F97: 2011-12-04T13:38:00 | G97: 2011-12-04T13:49:00 | H97: 0 | I97: 10 | J97: 51 | L97: 651 | M97: 4
A98: A8076023 | B98: 10 | C98: 2 | D98: 8 | E98: 1 | F98: 2011-12-04T13:39:00 | G98: 2011-12-04T13:49:00 | H98: 0 | I98: 10 | J98: 28 | L98: 628 | M98: 4
A99: A8075991 | B99: 10 | C99: 2 | D99: 8 | E99: 1 | F99: 2011-05-04T10:34:00 | G99: 2011-05-04T10:40:00 | H99: 0 | I99: 6 | J99: 3 | L99: 363 | M99: 4
A100: A8076026 | B100: 10 | C100: 2 | D100: 8 | E100: 1 | F100: 4/13/11 12:24 PM | G100: 4/13/11 12:37 PM | H100: 0 | I100: 12 | J100: 59 | L100: 779 | M100: 4
A101: A8076027 | B101: 10 | C101: 2 | D101: 8 | E101: 1 | F101: 4/13/11 1:25 PM | G101: 4/13/11 1:49 PM | H101: 0 | I101: 24 | J101: 7 | L101: 1447 | M101: 4
A102: R4610355 | B102: 13 | C102: 2 | D102: 8 | E102: 1 | F102: 4/15/11 2:15 PM | G102: 4/15/11 2:33 PM | H102: 0 | I102: 17 | J102: 39 | L102: 1059 | M102: 4
A103: A8076034 | B103: 13 | C103: 2 | D103: 8 | E103: 1 | F103: 4/15/11 2:31 PM | G103: 4/15/11 2:50 PM | H103: 0 | I103: 19 | J103: 20 | L103: 1160 | M103: 4
A104: A8076032 | B104: 10 | C104: 2 | D104: 8 | E104: 1 | F104: 4/15/11 10:46 AM | G104: 4/15/11 11:05 AM | H104: 0 | I104: 18 | J104: 31 | L104: 1111 | M104: 4
A105: A8076035 | B105: 10 | C105: 2 | D105: 8 | E105: 1 | F105: 4/18/11 10:57 AM | G105: 4/18/11 11:17 AM | H105: 0 | I105: 19 | J105: 38 | L105: 1178 | M105: 4
A106: A8076030 | B106: 10 | C106: 2 | D106: 8 | E106: 1 | F106: 4/14/11 11:46 AM | G106: 4/14/11 12:06 PM | H106: 0 | I106: 19 | J106: 51 | L106: 1191 | M106: 4
A107: A8076031 | B107: 10 | C107: 2 | D107: 8 | E107: 1 | F107: 4/14/11 4:17 PM | G107: 4/14/11 4:35 PM | H107: 0 | I107: 17 | J107: 57 | L107: 1077 | M107: 4
A108: A8076015 | B108: 10 | C108: 2 | D108: 8 | E108: 1 | F108: 2011-11-04T12:54:00 | G108: 2011-11-04T12:57:00 | H108: 0 | I108: 3 | J108: 48 | L108: 228 | M108: 4
A109: A8076008 | B109: 10 | C109: 2 | D109: 8 | E109: 1 | F109: 2011-07-04T13:07:00 | G109: 2011-07-04T13:16:00 | H109: 0 | I109: 8 | J109: 39 | L109: 519 | M109: 4
A110: A8076010 | B110: 10 | C110: 2 | D110: 8 | E110: 1 | F110: 2011-08-04T09:13:00 | G110: 2011-08-04T09:38:00 | H110: 0 | I110: 25 | J110: 25 | L110: 1525 | M110: 4
A111: A8076024 | B111: 10 | C111: 2 | D111: 8 | E111: 1 | F111: 2011-12-04T15:23:00 | G111: 2011-12-04T15:34:00 | H111: 0 | I111: 10 | J111: 55 | L111: 655 | M111: 4
A112: A8075980 | B112: 10 | C112: 2 | D112: 8 | E112: 1 | F112: 3/31/11 2:57 PM | G112: 3/31/11 3:10 PM | H112: 0 | I112: 13 | J112: 28 | L112: 808 | M112: 3
A113: A8075981 | B113: 10 | C113: 2 | D113: 8 | E113: 1 | F113: 3/31/11 3:10 PM | G113: 3/31/11 3:18 PM | H113: 0 | I113: 7 | J113: 58 | L113: 478 | M113: 3
A114: A8075982 | B114: 10 | C114: 2 | D114: 8 | E114: 1 | F114: 3/31/11 3:59 PM | G114: 3/31/11 4:07 PM | H114: 0 | I114: 8 | J114: 3 | L114: 483 | M114: 3
A115: A8075978 | B115: 10 | C115: 2 | D115: 8 | E115: 1 | F115: 3/31/11 2:05 PM | G115: 3/31/11 2:15 PM | H115: 0 | I115: 10 | J115: 16 | L115: 616 | M115: 3
A116: A8075979 | B116: 10 | C116: 2 | D116: 8 | E116: 1 | F116: 3/31/11 2:34 PM | G116: 3/31/11 2:44 PM | H116: 0 | I116: 10 | J116: 12 | L116: 612 | M116: 3
A117: A8075992 | B117: 10 | C117: 2 | D117: 8 | E117: 1 | F117: 2011-05-04T10:51:00 | G117: 2011-05-04T10:58:00 | H117: 0 | I117: 6 | J117: 33 | L117: 393 | M117: 4
A118: A8075987 | B118: 10 | C118: 2 | D118: 8 | E118: 1 | F118: 2011-04-04T11:11:00 | G118: 2011-04-04T11:22:00 | H118: 0 | I118: 11 | J118: 19 | L118: 679 | M118: 4
A119: A8075988 | B119: 10 | C119: 2 | D119: 8 | E119: 1 | F119: 2011-04-04T12:42:00 | G119: 2011-04-04T12:56:00 | H119: 0 | I119: 14 | J119: 26 | L119: 866 | M119: 4
A120: A8075995 | B120: 10 | C120: 2 | D120: 8 | E120: 1 | F120: 2011-05-04T13:43:00 | G120: 2011-05-04T13:54:00 | H120: 0 | I120: 11 | J120: 34 | L120: 694 | M120: 4
A121: A8076003 | B121: 10 | C121: 2 | D121: 8 | E121: 1 | F121: 2011-06-04T12:41:00 | G121: 2011-06-04T13:02:00 | H121: 0 | I121: 20 | J121: 56 | L121: 1256 | M121: 4
A122: A8076004 | B122: 10 | C122: 2 | D122: 8 | E122: 1 | F122: 2011-06-04T12:56:00 | G122: 2011-06-04T13:06:00 | H122: 0 | I122: 10 | J122: 0 | L122: 600 | M122: 4
A123: A8075971 | B123: 10 | C123: 2 | D123: 8 | E123: 1 | F123: 3/29/11 1:28 PM | G123: 3/29/11 1:51 PM | H123: 0 | I123: 23 | J123: 28 | L123: 1408 | M123: 3
A124: A8075970 | B124: 10 | C124: 2 | D124: 8 | E124: 1 | F124: 3/29/11 1:01 PM | G124: 3/29/11 1:08 PM | H124: 0 | I124: 6 | J124: 42 | L124: 402 | M124: 3
A125: A8075974 | B125: 10 | C125: 2 | D125: 8 | E125: 1 | F125: 3/30/11 12:18 PM | G125: 3/30/11 12:29 PM | H125: 0 | I125: 11 | J125: 10 | L125: 670 | M125: 3
A126: A8075993 | B126: 10 | C126: 2 | D126: 8 | E126: 1 | F126: 2011-05-04T11:04:00 | G126: 2011-05-04T11:14:00 | H126: 0 | I126: 10 | J126: 9 | L126: 609 | M126: 4
A127: A8075999 | B127: 10 | C127: 2 | D127: 8 | E127: 1 | F127: 2011-06-04T11:36:00 | G127: 2011-06-04T11:45:00 | H127: 0 | I127: 9 | J127: 1 | L127: 541 | M127: 4
A128: A8076000 | B128: 10 | C128: 2 | D128: 8 | E128: 1 | F128: 2011-06-04T11:24:00 | G128: 2011-06-04T11:48:00 | H128: 0 | I128: 24 | J128: 47 | L128: 1487 | M128: 4
A129: A8075996 | B129: 10 | C129: 2 | D129: 8 | E129: 1 | F129: 2011-05-04T14:47:00 | G129: 2011-05-04T14:53:00 | H129: 0 | I129: 5 | J129: 55 | L129: 355 | M129: 4
A130: A8075997 | B130: 10 | C130: 2 | D130: 8 | E130: 1 | F130: 2011-05-04T14:15:00 | G130: 2011-05-04T15:19:00 | H130: 1 | I130: 3 | J130: 46 | L130: 3826 | M130: 4
A131: A8075998 | B131: 10 | C131: 2 | D131: 8 | E131: 1 | F131: 2011-05-04T15:28:00 | G131: 2011-05-04T15:31:00 | H131: 0 | I131: 3 | J131: 17 | L131: 197 | M131: 4
A132: A8075969 | B132: 10 | C132: 2 | D132: 8 | E132: 1 | F132: 3/29/11 11:12 AM | G132: 3/29/11 11:31 AM | H132: 0 | I132: 18 | J132: 44 | L132: 1124 | M132: 3
A133: A8075984 | B133: 10 | C133: 2 | D133: 8 | E133: 1 | F133: 2011-01-04T11:52:00 | G133: 2011-01-04T12:02:00 | H133: 0 | I133: 9 | J133: 50 | L133: =H133*60*60+I133*60+J133 -> 590 | M133: 4
A134: A8075972 | B134: 10 | C134: 2 | D134: 8 | E134: 1 | F134: 3/29/11 3:07 PM | G134: 3/29/11 3:12 PM | H134: 0 | I134: 5 | J134: 18 | L134: 318 | M134: 3
A135: A8075973 | B135: 10 | C135: 2 | D135: 8 | E135: 1 | F135: 3/29/11 4:11 PM | G135: 3/29/11 4:53 PM | H135: 0 | I135: 42 | J135: 17 | L135: 2537 | M135: 3
A136: A8075994 | B136: 10 | C136: 2 | D136: 8 | E136: 1 | F136: 2011-05-04T12:08:00 | G136: 2011-05-04T12:30:00 | H136: 0 | I136: 22 | J136: 0 | L136: 1320 | M136: 4
A137: A8075985 | B137: 10 | C137: 2 | D137: 8 | E137: 1 | F137: 2011-04-04T10:20:00 | G137: 2011-04-04T10:27:00 | H137: 0 | I137: 7 | J137: 27 | L137: 447 | M137: 4
A138: A8075986 | B138: 10 | C138: 2 | D138: 8 | E138: 1 | F138: 2011-04-04T10:49:00 | G138: 2011-04-04T10:59:00 | H138: 0 | I138: 9 | J138: 31 | L138: 571 | M138: 4
A139: A8075989 | B139: 10 | C139: 2 | D139: 8 | E139: 1 | F139: 2011-04-04T13:26:00 | G139: 2011-04-04T13:36:00 | H139: 0 | I139: 10 | J139: 19 | L139: 619 | M139: 4
A140: A8075990 | B140: 10 | C140: 2 | D140: 8 | E140: 1 | F140: 2011-04-04T13:45:00 | G140: 2011-04-04T13:49:00 | H140: 0 | I140: 3 | J140: 53 | L140: 233 | M140: 4
A141: A8075983 | B141: 10 | C141: 2 | D141: 8 | E141: 1 | F141: 2011-01-04T10:00:00 | G141: 2011-01-04T10:15:00 | H141: 0 | I141: 14 | J141: 58 | L141: 898 | M141: 4
A142: A8076001 | B142: 10 | C142: 2 | D142: 8 | E142: 1 | F142: 2011-06-04T11:42:00 | G142: 2011-06-04T11:51:00 | H142: 0 | I142: 9 | J142: 47 | L142: 587 | M142: 4
A143: A8076002 | B143: 10 | C143: 2 | D143: 8 | E143: 1 | F143: 2011-06-04T11:40:00 | G143: 2011-06-04T12:05:00 | H143: 0 | I143: 25 | J143: 21 | L143: 1521 | M143: 4
A144: A8075975 | B144: 10 | C144: 2 | D144: 8 | E144: 1 | F144: 3/30/11 3:12 PM | G144: 3/30/11 3:42 PM | H144: 0 | I144: 29 | J144: 49 | L144: 1789 | M144: 3
A145: A8076005 | B145: 10 | C145: 2 | D145: 8 | E145: 1 | F145: 2011-06-04T15:03:00 | G145: 2011-06-04T15:15:00 | H145: 0 | I145: 12 | J145: 28 | L145: 748 | M145: 4
A146: A8075976 | B146: 10 | C146: 2 | D146: 8 | E146: 1 | F146: 3/31/11 10:41 AM | G146: 3/31/11 10:53 AM | H146: 0 | I146: 12 | J146: 14 | L146: 734 | M146: 3
A147: A7411264 | B147: 10 | C147: 2 | D147: 8 | E147: 1 | F147: 2011-05-09T15:13:00 | G147: 2011-05-09T15:34:00 | H147: 0 | I147: 21 | J147: 43 | L147: 1303 | M147: 9
A148: H8012133 | B148: 10 | C148: 2 | D148: 8 | E148: 1 | F148: 2011-05-09T15:43:00 | G148: 2011-05-09T16:03:00 | H148: 0 | I148: 20 | J148: 32 | L148: 1232 | M148: 9
A149: A8076417 | B149: 10 | C149: 2 | D149: 8 | E149: 1 | F149: 2011-05-09T15:00:00 | G149: 2011-05-09T15:10:00 | H149: 0 | I149: 9 | J149: 42 | L149: 582 | M149: 9
A150: A8076395 | B150: 10 | C150: 2 | D150: 8 | E150: 1 | F150: 8/29/11 11:38 AM | G150: 8/29/11 11:44 AM | H150: 0 | I150: 6 | J150: 1 | L150: 361 | M150: 8
A151: A8076396 | B151: 10 | C151: 2 | D151: 8 | E151: 1 | F151: 8/29/11 11:40 AM | G151: 8/29/11 11:51 AM | H151: 0 | I151: 11 | J151: 2 | L151: 662 | M151: 8
A152: A8075776 | B152: 10 | C152: 2 | D152: 8 | E152: 1 | F152: 1/24/11 2:33 PM | G152: 1/24/11 2:56 PM | H152: 0 | I152: 23 | J152: 21 | L152: 1401 | M152: 1
A153: A8076422 | B153: 10 | C153: 2 | D153: 8 | E153: 1 | F153: 2011-06-09T13:05:00 | G153: 2011-06-09T13:15:00 | H153: 0 | I153: 9 | J153: 40 | L153: 580 | M153: 9
A154: A8076423 | B154: 10 | C154: 2 | D154: 8 | E154: 1 | F154: 2011-06-09T13:22:00 | G154: 2011-06-09T13:30:00 | H154: 0 | I154: 8 | J154: 18 | L154: 498 | M154: 9
A155: A8076421 | B155: 10 | C155: 2 | D155: 8 | E155: 1 | F155: 2011-06-09T12:44:00 | G155: 2011-06-09T12:53:00 | H155: 0 | I155: 9 | J155: 40 | L155: 580 | M155: 9
A156: A8076452 | B156: 10 | C156: 2 | D156: 8 | E156: 1 | F156: 9/13/11 1:24 PM | G156: 9/13/11 1:32 PM | H156: 0 | I156: 7 | J156: 53 | L156: 473 | M156: 9
A157: A8076451 | B157: 10 | C157: 2 | D157: 8 | E157: 1 | F157: 9/13/11 1:25 PM | G157: 9/13/11 1:31 PM | H157: 0 | I157: 5 | J157: 59 | L157: 359 | M157: 9
A158: A8076412 | B158: 10 | C158: 2 | D158: 8 | E158: 1 | F158: 2011-02-09T14:53:00 | G158: 2011-02-09T14:59:00 | H158: 0 | I158: 5 | J158: 50 | L158: 350 | M158: 9
A159: A8076413 | B159: 10 | C159: 2 | D159: 8 | E159: 1 | F159: 2011-02-09T15:00:00 | G159: 2011-02-09T15:16:00 | H159: 0 | I159: 16 | J159: 46 | L159: 1006 | M159: 9
A160: A8076414 | B160: 10 | C160: 2 | D160: 8 | E160: 1 | F160: 2011-02-09T16:20:00 | G160: 2011-02-09T16:26:00 | H160: 0 | I160: 6 | J160: 43 | L160: 403 | M160: 9
A161: A8076392 | B161: 10 | C161: 2 | D161: 8 | E161: 1 | F161: 8/26/11 11:01 AM | G161: 8/26/11 11:17 AM | H161: 0 | I161: 16 | J161: 38 | L161: 998 | M161: 8
A162: A8076418 | B162: 10 | C162: 2 | D162: 8 | E162: 1 | F162: 2011-06-09T10:25:00 | G162: 2011-06-09T10:36:00 | H162: 0 | I162: 11 | J162: 47 | L162: 707 | M162: 9
A163: A8076428 | B163: 10 | C163: 2 | D163: 8 | E163: 1 | F163: 2011-07-09T13:02:00 | G163: 2011-07-09T13:11:00 | H163: 0 | I163: 8 | J163: 6 | L163: 486 | M163: 9
A164: A8076429 | B164: 10 | C164: 2 | D164: 8 | E164: 1 | F164: 2011-07-09T13:14:00 | G164: 2011-07-09T13:24:00 | H164: 0 | I164: 10 | J164: 15 | L164: 615 | M164: 9
A165: A8076446 | B165: 10 | C165: 2 | D165: 8 | E165: 1 | F165: 9/13/11 9:48 AM | G165: 9/13/11 10:03 AM | H165: 0 | I165: 14 | J165: 59 | L165: 899 | M165: 9
A166: A7510879 | B166: 10 | C166: 2 | D166: 8 | E166: 1 | F166: 2011-12-09T14:58:00 | G166: 2011-12-09T15:07:00 | H166: 0 | I166: 8 | J166: 57 | L166: 537 | M166: 9
A167: A8076444 | B167: 10 | C167: 2 | D167: 8 | E167: 1 | F167: 2011-12-09T15:29:00 | G167: 2011-12-09T15:34:00 | H167: 0 | I167: 4 | J167: 23 | L167: 263 | M167: 9
A168: A8076445 | B168: 10 | C168: 2 | D168: 8 | E168: 1 | F168: 2011-12-09T15:12:00 | G168: 2011-12-09T15:56:00 | H168: 0 | I168: 43 | J168: 54 | L168: 2634 | M168: 9
A169: A8076430 | B169: 10 | C169: 2 | D169: 8 | E169: 1 | F169: 2011-08-09T10:08:00 | G169: 2011-08-09T10:15:00 | H169: 0 | I169: 6 | J169: 31 | L169: 391 | M169: 9
A170: A8076415 | B170: 10 | C170: 2 | D170: 8 | E170: 1 | F170: 2011-05-09T10:30:00 | G170: 2011-05-09T11:23:00 | H170: 0 | I170: 52 | J170: 34 | L170: 3154 | M170: 9
A171: A8076356 | B171: 10 | C171: 2 | D171: 8 | E171: 1 | F171: 2011-12-08T11:01:00 | G171: 2011-12-08T11:09:00 | H171: 0 | I171: 8 | J171: 16 | L171: 496 | M171: 8
A172: A8076435 | B172: 10 | C172: 2 | D172: 8 | E172: 1 | F172: 2011-08-09T13:22:00 | G172: 2011-08-09T13:38:00 | H172: 0 | I172: 15 | J172: 26 | L172: 926 | M172: 9
A173: A8076436 | B173: 10 | C173: 2 | D173: 8 | E173: 1 | F173: 2011-08-09T14:43:00 | G173: 2011-08-09T15:01:00 | H173: 0 | I173: 18 | J173: 5 | L173: 1085 | M173: 9
A174: A8076434 | B174: 10 | C174: 2 | D174: 8 | E174: 1 | F174: 2011-08-09T12:09:00 | G174: 2011-08-09T12:21:00 | H174: 0 | I174: 11 | J174: 59 | L174: 719 | M174: 9
A175: A8076431 | B175: 10 | C175: 2 | D175: 8 | E175: 1 | F175: 2011-08-09T10:20:00 | G175: 2011-08-09T10:34:00 | H175: 0 | I175: 13 | J175: 51 | L175: 831 | M175: 9
A176: A8076432 | B176: 10 | C176: 2 | D176: 8 | E176: 1 | F176: 2011-08-09T10:46:00 | G176: 2011-08-09T10:58:00 | H176: 0 | I176: 12 | J176: 8 | L176: 728 | M176: 9
A177: A8076433 | B177: 10 | C177: 2 | D177: 8 | E177: 1 | F177: 2011-08-09T10:54:00 | G177: 2011-08-09T11:29:00 | H177: 0 | I177: 35 | J177: 4 | L177: 2104 | M177: 9
A178: A8076447 | B178: 10 | C178: 2 | D178: 8 | E178: 1 | F178: 9/13/11 10:18 AM | G178: 9/13/11 10:33 AM | H178: 0 | I178: 14 | J178: 28 | L178: 868 | M178: 9
A179: A8076448 | B179: 10 | C179: 2 | D179: 8 | E179: 1 | F179: 9/13/11 11:13 AM | G179: 9/13/11 11:26 AM | H179: 0 | I179: 12 | J179: 47 | L179: 767 | M179: 9
A180: A8076449 | B180: 10 | C180: 2 | D180: 8 | E180: 1 | F180: 9/13/11 11:24 AM | G180: 9/13/11 11:42 AM | H180: 0 | I180: 18 | J180: 3 | L180: 1083 | M180: 9
A181: A8076416 | B181: 10 | C181: 2 | D181: 8 | E181: 1 | F181: 2011-05-09T11:49:00 | G181: 2011-05-09T11:56:00 | H181: 0 | I181: 7 | J181: 15 | L181: 435 | M181: 9
A182: H8012132 | B182: 10 | C182: 2 | D182: 8 | E182: 1 | F182: 2011-05-09T11:41:00 | G182: 2011-05-09T11:58:00 | H182: 0 | I182: 17 | J182: 14 | L182: 1034 | M182: 9
A183: A8076438 | B183: 10 | C183: 2 | D183: 8 | E183: 1 | F183: 2011-09-09T10:26:00 | G183: 2011-09-09T10:55:00 | H183: 0 | I183: 28 | J183: 57 | L183: 1737 | M183: 9
A184: A8076439 | B184: 10 | C184: 2 | D184: 8 | E184: 1 | F184: 2011-09-09T10:58:00 | G184: 2011-09-09T11:08:00 | H184: 0 | I184: 10 | J184: 3 | L184: 603 | M184: 9
A185: A8076440 | B185: 10 | C185: 2 | D185: 8 | E185: 1 | F185: 2011-09-09T11:37:00 | G185: 2011-09-09T11:44:00 | H185: 0 | I185: 6 | J185: 52 | L185: 412 | M185: 9
A186: A8076443 | B186: 10 | C186: 2 | D186: 8 | E186: 1 | F186: 2011-12-09T14:41:00 | G186: 2011-12-09T14:43:00 | H186: 0 | I186: 1 | J186: 41 | L186: 101 | M186: 9
A187: A8076442 | B187: 10 | C187: 2 | D187: 8 | E187: 1 | F187: 2011-12-09T12:05:00 | G187: 2011-12-09T12:13:00 | H187: 0 | I187: 7 | J187: 47 | L187: 467 | M187: 9
A188: A8076437 | B188: 10 | C188: 2 | D188: 8 | E188: 1 | F188: 2011-08-09T14:55:00 | G188: 2011-08-09T15:02:00 | H188: 0 | I188: 7 | J188: 19 | L188: 439 | M188: 9
A189: A8076424 | B189: 10 | C189: 2 | D189: 8 | E189: 1 | F189: 2011-06-09T15:03:00 | G189: 2011-06-09T15:17:00 | H189: 0 | I189: 13 | J189: 27 | L189: 807 | M189: 9
A190: A8076419 | B190: 10 | C190: 2 | D190: 8 | E190: 1 | F190: 2011-06-09T11:42:00 | G190: 2011-06-09T11:48:00 | H190: 0 | I190: 5 | J190: 25 | L190: 325 | M190: 9
A191: A8076420 | B191: 10 | C191: 2 | D191: 8 | E191: 1 | F191: 2011-06-09T11:38:00 | G191: 2011-06-09T11:50:00 | H191: 0 | I191: 12 | J191: 21 | L191: 741 | M191: 9
A192: A8076425 | B192: 10 | C192: 2 | D192: 8 | E192: 1 | F192: 2011-06-09T15:35:00 | G192: 2011-06-09T15:46:00 | H192: 0 | I192: 11 | J192: 40 | L192: 700 | M192: 9
A193: A8076426 | B193: 10 | C193: 2 | D193: 8 | E193: 1 | F193: 2011-06-09T16:05:00 | G193: 2011-06-09T16:14:00 | H193: 0 | I193: 9 | J193: 10 | L193: 550 | M193: 9
A194: A8076441 | B194: 10 | C194: 2 | D194: 8 | E194: 1 | F194: 2011-12-09T10:58:00 | G194: 2011-12-09T11:40:00 | H194: 0 | I194: 41 | J194: 31 | L194: 2491 | M194: 9
A195: A8076427 | B195: 10 | C195: 2 | D195: 8 | E195: 1 | F195: 2011-07-09T11:13:00 | G195: 2011-07-09T11:46:00 | H195: 0 | I195: 32 | J195: 29 | L195: 1949 | M195: 9
A196: A8076450 | B196: 10 | C196: 2 | D196: 8 | E196: 1 | F196: 9/13/11 12:09 PM | G196: 9/13/11 12:20 PM | H196: 0 | I196: 10 | J196: 36 | L196: 636 | M196: 9
A197: A8076473 | B197: 10 | C197: 2 | D197: 8 | E197: 1 | F197: 9/22/11 10:39 AM | G197: 9/22/11 10:47 AM | H197: 0 | I197: 8 | J197: 22 | L197: =H197*60*60+I197*60+J197 -> 502 | M197: 9
A198: A8076411 | B198: 10 | C198: 2 | D198: 8 | E198: 1 | F198: 2011-02-09T13:39:00 | G198: 2011-02-09T13:54:00 | H198: 0 | I198: 15 | J198: 19 | L198: 919 | M198: 9
A199: A8076354 | B199: 10 | C199: 2 | D199: 8 | E199: 1 | F199: 2011-11-08T12:34:00 | G199: 2011-11-08T12:54:00 | H199: 0 | I199: 19 | J199: 49 | L199: 1189 | M199: 8
A200: A8076454 | B200: 10 | C200: 2 | D200: 8 | E200: 1 | F200: 9/14/11 1:01 PM | G200: 9/14/11 1:14 PM | H200: 0 | I200: 12 | J200: 57 | L200: 777 | M200: 9
... 863 more rows

Sheet 2012
A1: REPORTE DE TIEMPO DE TRÁMITE DE ALTA PATRONAL | L1: TOTAL DE REGISTOS ENCONTRADOS: 1114
A2: REG PATRONAL | B2: MODALIDAD | C2: CIZ | D2: DELEGACIÓN | E2: SUBDELEGACIÓN | F2: HORA | H2: TIEMPO DE TRÁMITE | L2: Segundos totales | M2: Mes en que se realizó | O2: 2012
F3: INICIO | G3: TERMINO | H3: HORAS | I3: MINUTOS | J3: SEGUNDOS | O3: Mes | P3: Promedio Mes
A4: A7411275 | B4: 10 | C4: 2 | D4: 8 | E4: 1 | F4: 2012-08-02T14:53:00 | G4: 2012-08-02T15:01:00 | H4: 0 | I4: 7 | J4: 15 | L4: =H4*60*60+I4*60+J4 -> 435 | M4: 2 | O4: Enero | P4: =AVERAGEIF(dos,"=1",tiempodos) -> 1304.268293
A5: A8076822 | B5: 10 | C5: 2 | D5: 8 | E5: 1 | F5: 2/14/12 1:37 PM | G5: 2/14/12 2:13 PM | H5: 0 | I5: 35 | J5: 33 | L5: =H5*60*60+I5*60+J5 -> 2133 | M5: 2 | O5: Febrero | P5: =AVERAGEIF(dos,"=2",tiempodos) -> 1205.91954
A6: A8076816 | B6: 10 | C6: 2 | D6: 8 | E6: 1 | F6: 2012-08-02T15:41:00 | G6: 2012-08-02T15:52:00 | H6: 0 | I6: 10 | J6: 45 | L6: 645 | M6: 2 | O6: Marzo | P6: =AVERAGEIF(dos,"=3",tiempodos) -> 1600.54955
A7: A8076762 | B7: 10 | C7: 2 | D7: 8 | E7: 1 | F7: 1/24/12 1:09 PM | G7: 1/24/12 1:20 PM | H7: 0 | I7: 11 | J7: 32 | L7: 692 | M7: 1 | O7: Abril | P7: =AVERAGEIF(dos,"=4",tiempodos) -> 1842.322581
A8: A8076820 | B8: 10 | C8: 2 | D8: 8 | E8: 1 | F8: 2012-10-02T13:53:00 | G8: 2012-10-02T14:06:00 | H8: 0 | I8: 13 | J8: 51 | L8: 831 | M8: 2 | O8: Mayo | P8: =AVERAGEIF(dos,"=5",tiempodos) -> 1061.256881
A9: A8076821 | B9: 10 | C9: 2 | D9: 8 | E9: 1 | F9: 2/14/12 11:37 AM | G9: 2/14/12 11:49 AM | H9: 0 | I9: 11 | J9: 46 | L9: 706 | M9: 2 | O9: Junio | P9: =AVERAGEIF(dos,"=6",tiempodos) -> 1039.536585
A10: A8076760 | B10: 10 | C10: 2 | D10: 8 | E10: 1 | F10: 1/24/12 11:02 AM | G10: 1/24/12 11:47 AM | H10: 0 | I10: 45 | J10: 4 | L10: 2704 | M10: 1 | O10: Julio | P10: =AVERAGEIF(dos,"=7",tiempodos) -> 949.5051546
A11: A8076826 | B11: 10 | C11: 2 | D11: 8 | E11: 1 | F11: 2/15/12 3:27 PM | G11: 2/15/12 3:51 PM | H11: 0 | I11: 24 | J11: 20 | L11: 1460 | M11: 2 | O11: Agosto | P11: =AVERAGEIF(dos,"=8",tiempodos) -> 870.8571429
A12: A8076827 | B12: 10 | C12: 2 | D12: 8 | E12: 1 | F12: 2/15/12 4:32 PM | G12: 2/15/12 4:57 PM | H12: 0 | I12: 24 | J12: 45 | L12: 1485 | M12: 2 | O12: Septiembre | P12: =AVERAGEIF(dos,"=9",tiempodos) -> 786.8369565
A13: A8076814 | B13: 10 | C13: 2 | D13: 8 | E13: 1 | F13: 2012-08-02T09:38:00 | G13: 2012-08-02T09:56:00 | H13: 0 | I13: 17 | J13: 41 | L13: 1061 | M13: 2 | O13: Octubre | P13: =AVERAGEIF(dos,"=10",tiempodos) -> 892.8541667
A14: A8076797 | B14: 10 | C14: 2 | D14: 8 | E14: 1 | F14: 2012-01-02T14:55:00 | G14: 2012-01-02T15:04:00 | H14: 0 | I14: 8 | J14: 37 | L14: 517 | M14: 2 | O14: Noviembre | P14: =AVERAGEIF(dos,"=11",tiempodos) -> 773.9791667
A15: A8076817 | B15: 10 | C15: 2 | D15: 8 | E15: 1 | F15: 2012-09-02T11:46:00 | G15: 2012-09-02T12:07:00 | H15: 0 | I15: 20 | J15: 55 | L15: 1255 | M15: 2 | O15: Diciembre | P15: =AVERAGEIF(dos,"=12",tiempodos) -> 864.1728395
A16: A8076804 | B16: 10 | C16: 2 | D16: 8 | E16: 1 | F16: 2012-02-02T16:25:00 | G16: 2012-02-02T16:35:00 | H16: 0 | I16: 9 | J16: 43 | L16: 583 | M16: 2
A17: H8012145 | B17: 13 | C17: 2 | D17: 8 | E17: 1 | F17: 2012-02-02T16:21:00 | G17: 2012-02-02T16:45:00 | H17: 0 | I17: 23 | J17: 51 | L17: 1431 | M17: 2
A18: A8076823 | B18: 10 | C18: 2 | D18: 8 | E18: 1 | F18: 2/15/12 11:48 AM | G18: 2/15/12 11:59 AM | H18: 0 | I18: 10 | J18: 48 | L18: 648 | M18: 2
A19: A8076810 | B19: 10 | C19: 2 | D19: 8 | E19: 1 | F19: 2012-03-02T14:18:00 | G19: 2012-03-02T14:32:00 | H19: 0 | I19: 14 | J19: 44 | L19: 884 | M19: 2
A20: A8076811 | B20: 10 | C20: 2 | D20: 8 | E20: 1 | F20: 2012-03-02T14:51:00 | G20: 2012-03-02T15:02:00 | H20: 0 | I20: 10 | J20: 34 | L20: 634 | M20: 2
A21: A8076819 | B21: 10 | C21: 2 | D21: 8 | E21: 1 | F21: 2012-10-02T12:05:00 | G21: 2012-10-02T12:13:00 | H21: 0 | I21: 8 | J21: 1 | L21: 481 | M21: 2
A22: A8076785 | B22: 10 | C22: 2 | D22: 8 | E22: 1 | F22: 1/30/12 10:41 AM | G22: 1/30/12 11:17 AM | H22: 0 | I22: 36 | J22: 13 | L22: 2173 | M22: 1
A23: A8076824 | B23: 10 | C23: 2 | D23: 8 | E23: 1 | F23: 2/15/12 12:22 PM | G23: 2/15/12 12:33 PM | H23: 0 | I23: 10 | J23: 34 | L23: 634 | M23: 2
A24: A8076825 | B24: 10 | C24: 2 | D24: 8 | E24: 1 | F24: 2/15/12 12:33 PM | G24: 2/15/12 12:44 PM | H24: 0 | I24: 10 | J24: 28 | L24: 628 | M24: 2
A25: A8076813 | B25: 10 | C25: 2 | D25: 8 | E25: 1 | F25: 2012-07-02T11:11:00 | G25: 2012-07-02T11:34:00 | H25: 0 | I25: 22 | J25: 58 | L25: 1378 | M25: 2
A26: A8076815 | B26: 10 | C26: 2 | D26: 8 | E26: 1 | F26: 2012-08-02T13:42:00 | G26: 2012-08-02T13:52:00 | H26: 0 | I26: 9 | J26: 51 | L26: 591 | M26: 2
A27: A8076798 | B27: 13 | C27: 2 | D27: 8 | E27: 1 | F27: 2012-02-02T10:25:00 | G27: 2012-02-02T10:51:00 | H27: 0 | I27: 26 | J27: 14 | L27: 1574 | M27: 2
A28: A8076799 | B28: 10 | C28: 2 | D28: 8 | E28: 1 | F28: 2012-02-02T11:24:00 | G28: 2012-02-02T11:40:00 | H28: 0 | I28: 15 | J28: 32 | L28: 932 | M28: 2
A29: A8076812 | B29: 10 | C29: 2 | D29: 8 | E29: 1 | F29: 2012-03-02T15:54:00 | G29: 2012-03-02T16:00:00 | H29: 0 | I29: 6 | J29: 30 | L29: 390 | M29: 2
A30: A8076793 | B30: 10 | C30: 2 | D30: 8 | E30: 1 | F30: 1/31/12 12:22 PM | G30: 1/31/12 12:44 PM | H30: 0 | I30: 22 | J30: 15 | L30: 1335 | M30: 1
A31: A8076818 | B31: 10 | C31: 2 | D31: 8 | E31: 1 | F31: 2012-09-02T13:15:00 | G31: 2012-09-02T13:23:00 | H31: 0 | I31: 8 | J31: 41 | L31: 521 | M31: 2
A32: A8076830 | B32: 10 | C32: 2 | D32: 8 | E32: 1 | F32: 2/16/12 1:18 PM | G32: 2/16/12 1:29 PM | H32: 0 | I32: 10 | J32: 45 | L32: 645 | M32: 2
A33: A8076767 | B33: 10 | C33: 2 | D33: 8 | E33: 1 | F33: 1/26/12 10:58 AM | G33: 1/26/12 11:19 AM | H33: 0 | I33: 21 | J33: 18 | L33: 1278 | M33: 1
A34: A8076846 | B34: 10 | C34: 2 | D34: 8 | E34: 1 | F34: 2/22/12 11:52 AM | G34: 2/22/12 11:55 AM | H34: 0 | I34: 2 | J34: 49 | L34: 169 | M34: 2
A35: A8076858 | B35: 10 | C35: 2 | D35: 8 | E35: 1 | F35: 2/27/12 12:12 PM | G35: 2/27/12 12:28 PM | H35: 0 | I35: 15 | J35: 56 | L35: 956 | M35: 2
A36: A8076859 | B36: 10 | C36: 2 | D36: 8 | E36: 1 | F36: 2/27/12 12:37 PM | G36: 2/27/12 12:49 PM | H36: 0 | I36: 12 | J36: 33 | L36: 753 | M36: 2
A37: A8076844 | B37: 10 | C37: 2 | D37: 8 | E37: 1 | F37: 2/22/12 9:29 AM | G37: 2/22/12 9:38 AM | H37: 0 | I37: 8 | J37: 36 | L37: 516 | M37: 2
A38: A8076854 | B38: 10 | C38: 2 | D38: 8 | E38: 1 | F38: 2/24/12 1:19 PM | G38: 2/24/12 1:31 PM | H38: 0 | I38: 12 | J38: 48 | L38: 768 | M38: 2
A39: A8076838 | B39: 10 | C39: 2 | D39: 8 | E39: 1 | F39: 2/20/12 1:27 PM | G39: 2/20/12 1:43 PM | H39: 0 | I39: 16 | J39: 33 | L39: 993 | M39: 2
A40: A8076840 | B40: 10 | C40: 2 | D40: 8 | E40: 1 | F40: 2/21/12 9:59 AM | G40: 2/21/12 10:12 AM | H40: 0 | I40: 13 | J40: 0 | L40: 780 | M40: 2
A41: A8076842 | B41: 10 | C41: 2 | D41: 8 | E41: 1 | F41: 2/21/12 12:42 PM | G41: 2/21/12 1:04 PM | H41: 0 | I41: 21 | J41: 46 | L41: 1306 | M41: 2
A42: A8076843 | B42: 10 | C42: 2 | D42: 8 | E42: 1 | F42: 2/21/12 1:25 PM | G42: 2/21/12 1:41 PM | H42: 0 | I42: 16 | J42: 0 | L42: 960 | M42: 2
A43: A8076847 | B43: 10 | C43: 2 | D43: 8 | E43: 1 | F43: 2/22/12 12:39 PM | G43: 2/22/12 12:43 PM | H43: 0 | I43: 4 | J43: 29 | L43: 269 | M43: 2
A44: A8076852 | B44: 10 | C44: 2 | D44: 8 | E44: 1 | F44: 2/24/12 10:24 AM | G44: 2/24/12 11:01 AM | H44: 0 | I44: 37 | J44: 36 | L44: 2256 | M44: 2
A45: A8076834 | B45: 10 | C45: 2 | D45: 8 | E45: 1 | F45: 2/17/12 1:39 PM | G45: 2/17/12 1:55 PM | H45: 0 | I45: 15 | J45: 51 | L45: 951 | M45: 2
A46: A8076835 | B46: 10 | C46: 2 | D46: 8 | E46: 1 | F46: 2/17/12 2:35 PM | G46: 2/17/12 2:45 PM | H46: 0 | I46: 9 | J46: 39 | L46: 579 | M46: 2
A47: A8076836 | B47: 10 | C47: 2 | D47: 8 | E47: 1 | F47: 2/17/12 3:23 PM | G47: 2/17/12 3:31 PM | H47: 0 | I47: 8 | J47: 18 | L47: 498 | M47: 2
A48: A8076845 | B48: 10 | C48: 2 | D48: 8 | E48: 1 | F48: 2/22/12 10:01 AM | G48: 2/22/12 10:24 AM | H48: 0 | I48: 22 | J48: 57 | L48: 1377 | M48: 2
A49: A8076855 | B49: 10 | C49: 2 | D49: 8 | E49: 1 | F49: 2/27/12 10:38 AM | G49: 2/27/12 10:53 AM | H49: 0 | I49: 14 | J49: 35 | L49: 875 | M49: 2
A50: A8076856 | B50: 10 | C50: 2 | D50: 8 | E50: 1 | F50: 2/27/12 10:41 AM | G50: 2/27/12 10:58 AM | H50: 0 | I50: 17 | J50: 6 | L50: 1026 | M50: 2
A51: A8076831 | B51: 10 | C51: 2 | D51: 8 | E51: 1 | F51: 2/17/12 11:08 AM | G51: 2/17/12 11:22 AM | H51: 0 | I51: 14 | J51: 10 | L51: 850 | M51: 2
A52: A8076832 | B52: 10 | C52: 2 | D52: 8 | E52: 1 | F52: 2/17/12 11:24 AM | G52: 2/17/12 11:51 AM | H52: 0 | I52: 27 | J52: 15 | L52: 1635 | M52: 2
A53: A8076848 | B53: 10 | C53: 2 | D53: 8 | E53: 1 | F53: 2/23/12 9:42 AM | G53: 2/23/12 9:52 AM | H53: 0 | I53: 10 | J53: 8 | L53: 608 | M53: 2
A54: H8012146 | B54: 10 | C54: 2 | D54: 8 | E54: 1 | F54: 2/23/12 10:45 AM | G54: 2/23/12 12:35 PM | H54: 1 | I54: 50 | J54: 13 | L54: 6613 | M54: 2
A55: A8076849 | B55: 10 | C55: 2 | D55: 8 | E55: 1 | F55: 2/23/12 12:15 PM | G55: 2/23/12 12:36 PM | H55: 0 | I55: 20 | J55: 17 | L55: 1217 | M55: 2
A56: A8076839 | B56: 10 | C56: 2 | D56: 8 | E56: 1 | F56: 2/20/12 4:40 PM | G56: 2/20/12 4:54 PM | H56: 0 | I56: 14 | J56: 11 | L56: 851 | M56: 2
A57: A8076784 | B57: 10 | C57: 2 | D57: 8 | E57: 1 | F57: 1/30/12 10:30 AM | G57: 1/30/12 10:43 AM | H57: 0 | I57: 13 | J57: 21 | L57: 801 | M57: 1
A58: A8076851 | B58: 10 | C58: 2 | D58: 8 | E58: 1 | F58: 2/24/12 9:25 AM | G58: 2/24/12 9:36 AM | H58: 0 | I58: 11 | J58: 6 | L58: 666 | M58: 2
A59: A8076853 | B59: 10 | C59: 2 | D59: 8 | E59: 1 | F59: 2/24/12 12:03 PM | G59: 2/24/12 12:08 PM | H59: 0 | I59: 5 | J59: 36 | L59: 336 | M59: 2
A60: A8076857 | B60: 10 | C60: 2 | D60: 8 | E60: 1 | F60: 2/27/12 10:48 AM | G60: 2/27/12 11:22 AM | H60: 0 | I60: 34 | J60: 13 | L60: 2053 | M60: 2
A61: A8076828 | B61: 10 | C61: 2 | D61: 8 | E61: 1 | F61: 2/16/12 12:20 PM | G61: 2/16/12 12:33 PM | H61: 0 | I61: 12 | J61: 34 | L61: 754 | M61: 2
A62: A8076829 | B62: 10 | C62: 2 | D62: 8 | E62: 1 | F62: 2/16/12 12:46 PM | G62: 2/16/12 12:57 PM | H62: 0 | I62: 11 | J62: 10 | L62: 670 | M62: 2
A63: A8076850 | B63: 10 | C63: 2 | D63: 8 | E63: 1 | F63: 2/23/12 12:40 PM | G63: 2/23/12 1:24 PM | H63: 0 | I63: 44 | J63: 20 | L63: 2660 | M63: 2
A64: H8012147 | B64: 13 | C64: 2 | D64: 8 | E64: 1 | F64: 2/23/12 1:05 PM | G64: 2/23/12 1:33 PM | H64: 0 | I64: 28 | J64: 15 | L64: 1695 | M64: 2
A65: A8076833 | B65: 10 | C65: 2 | D65: 8 | E65: 1 | F65: 2/17/12 12:20 PM | G65: 2/17/12 12:31 PM | H65: 0 | I65: 11 | J65: 22 | L65: 682 | M65: 2
A66: H8012144 | B66: 10 | C66: 2 | D66: 8 | E66: 1 | F66: 1/20/12 1:30 PM | G66: 1/20/12 1:43 PM | H66: 0 | I66: 12 | J66: 37 | L66: 757 | M66: 1
A67: A8076837 | B67: 10 | C67: 2 | D67: 8 | E67: 1 | F67: 2/20/12 12:42 PM | G67: 2/20/12 12:55 PM | H67: 0 | I67: 12 | J67: 55 | L67: 775 | M67: 2
A68: A8076783 | B68: 10 | C68: 2 | D68: 8 | E68: 1 | F68: 1/27/12 3:03 PM | G68: 1/27/12 3:20 PM | H68: 0 | I68: 16 | J68: 55 | L68: 1015 | M68: 1
A69: A8076781 | B69: 10 | C69: 2 | D69: 8 | E69: 1 | F69: 1/27/12 1:46 PM | G69: 1/27/12 1:57 PM | H69: 0 | I69: 11 | J69: 13 | L69: =H69*60*60+I69*60+J69 -> 673 | M69: 1
A70: A8076782 | B70: 10 | C70: 2 | D70: 8 | E70: 1 | F70: 1/27/12 2:12 PM | G70: 1/27/12 2:25 PM | H70: 0 | I70: 12 | J70: 55 | L70: 775 | M70: 1
A71: A8076841 | B71: 10 | C71: 2 | D71: 8 | E71: 1 | F71: 2/21/12 12:10 PM | G71: 2/21/12 12:32 PM | H71: 0 | I71: 21 | J71: 31 | L71: 1291 | M71: 2
A72: A8076792 | B72: 10 | C72: 2 | D72: 8 | E72: 1 | F72: 1/31/12 11:39 AM | G72: 1/31/12 11:55 AM | H72: 0 | I72: 15 | J72: 39 | L72: 939 | M72: 1
A73: A8076791 | B73: 10 | C73: 2 | D73: 8 | E73: 1 | F73: 1/31/12 10:53 AM | G73: 1/31/12 11:32 AM | H73: 0 | I73: 38 | J73: 58 | L73: 2338 | M73: 1
A74: A8076801 | B74: 10 | C74: 2 | D74: 8 | E74: 1 | F74: 2012-02-02T12:50:00 | G74: 2012-02-02T13:12:00 | H74: 0 | I74: 21 | J74: 22 | L74: 1282 | M74: 2
A75: A8076768 | B75: 10 | C75: 2 | D75: 8 | E75: 1 | F75: 1/26/12 1:05 PM | G75: 1/26/12 1:16 PM | H75: 0 | I75: 11 | J75: 5 | L75: 665 | M75: 1
A76: A8076769 | B76: 10 | C76: 2 | D76: 8 | E76: 1 | F76: 1/26/12 1:12 PM | G76: 1/26/12 1:19 PM | H76: 0 | I76: 7 | J76: 36 | L76: 456 | M76: 1
A77: A8076770 | B77: 10 | C77: 2 | D77: 8 | E77: 1 | F77: 1/26/12 1:05 PM | G77: 1/26/12 1:21 PM | H77: 0 | I77: 16 | J77: 34 | L77: 994 | M77: 1
A78: A8076809 | B78: 10 | C78: 2 | D78: 8 | E78: 1 | F78: 2012-03-02T12:52:00 | G78: 2012-03-02T13:51:00 | H78: 0 | I78: 59 | J78: 37 | L78: 3577 | M78: 2
A79: A8076790 | B79: 10 | C79: 2 | D79: 8 | E79: 1 | F79: 1/31/12 10:58 AM | G79: 1/31/12 11:09 AM | H79: 0 | I79: 11 | J79: 22 | L79: 682 | M79: 1
A80: A8076802 | B80: 10 | C80: 2 | D80: 8 | E80: 1 | F80: 2012-02-02T13:01:00 | G80: 2012-02-02T13:46:00 | H80: 0 | I80: 44 | J80: 46 | L80: 2686 | M80: 2
A81: A8076803 | B81: 10 | C81: 2 | D81: 8 | E81: 1 | F81: 2012-02-02T15:10:00 | G81: 2012-02-02T15:19:00 | H81: 0 | I81: 9 | J81: 7 | L81: 547 | M81: 2
A82: A8076805 | B82: 10 | C82: 2 | D82: 8 | E82: 1 | F82: 2012-03-02T09:58:00 | G82: 2012-03-02T10:04:00 | H82: 0 | I82: 5 | J82: 53 | L82: 353 | M82: 2
A83: A8076786 | B83: 10 | C83: 2 | D83: 8 | E83: 1 | F83: 1/30/12 1:05 PM | G83: 1/30/12 1:23 PM | H83: 0 | I83: 17 | J83: 54 | L83: 1074 | M83: 1
A84: A8076766 | B84: 10 | C84: 2 | D84: 8 | E84: 1 | F84: 1/25/12 2:37 PM | G84: 1/25/12 3:07 PM | H84: 0 | I84: 30 | J84: 14 | L84: 1814 | M84: 1
A85: A8076763 | B85: 10 | C85: 2 | D85: 8 | E85: 1 | F85: 1/25/12 10:44 AM | G85: 1/25/12 11:20 AM | H85: 0 | I85: 36 | J85: 1 | L85: 2161 | M85: 1
A86: A8076794 | B86: 10 | C86: 2 | D86: 8 | E86: 1 | F86: 1/31/12 2:32 PM | G86: 1/31/12 2:47 PM | H86: 0 | I86: 14 | J86: 34 | L86: 874 | M86: 1
A87: A8076779 | B87: 10 | C87: 2 | D87: 8 | E87: 1 | F87: 1/27/12 12:04 PM | G87: 1/27/12 12:48 PM | H87: 0 | I87: 44 | J87: 29 | L87: 2669 | M87: 1
A88: A8076780 | B88: 10 | C88: 2 | D88: 8 | E88: 1 | F88: 1/27/12 12:49 PM | G88: 1/27/12 1:07 PM | H88: 0 | I88: 17 | J88: 22 | L88: 1042 | M88: 1
A89: A8076776 | B89: 10 | C89: 2 | D89: 8 | E89: 1 | F89: 1/27/12 10:15 AM | G89: 1/27/12 10:29 AM | H89: 0 | I89: 14 | J89: 39 | L89: 879 | M89: 1
A90: A8076777 | B90: 10 | C90: 2 | D90: 8 | E90: 1 | F90: 1/27/12 10:30 AM | G90: 1/27/12 10:59 AM | H90: 0 | I90: 29 | J90: 37 | L90: 1777 | M90: 1
A91: A8076778 | B91: 10 | C91: 2 | D91: 8 | E91: 1 | F91: 1/27/12 10:57 AM | G91: 1/27/12 11:09 AM | H91: 0 | I91: 12 | J91: 38 | L91: 758 | M91: 1
A92: A8076796 | B92: 10 | C92: 2 | D92: 8 | E92: 1 | F92: 2012-01-02T13:05:00 | G92: 2012-01-02T13:15:00 | H92: 0 | I92: 9 | J92: 50 | L92: 590 | M92: 2
A93: A8076771 | B93: 10 | C93: 2 | D93: 8 | E93: 1 | F93: 1/26/12 2:02 PM | G93: 1/26/12 2:27 PM | H93: 0 | I93: 25 | J93: 49 | L93: 1549 | M93: 1
A94: A8076772 | B94: 10 | C94: 2 | D94: 8 | E94: 1 | F94: 1/26/12 2:28 PM | G94: 1/26/12 2:44 PM | H94: 0 | I94: 16 | J94: 1 | L94: 961 | M94: 1
A95: A8076773 | B95: 10 | C95: 2 | D95: 8 | E95: 1 | F95: 1/26/12 2:53 PM | G95: 1/26/12 3:01 PM | H95: 0 | I95: 7 | J95: 51 | L95: 471 | M95: 1
A96: A8076774 | B96: 10 | C96: 2 | D96: 8 | E96: 1 | F96: 1/26/12 3:20 PM | G96: 1/26/12 3:57 PM | H96: 0 | I96: 36 | J96: 54 | L96: 2214 | M96: 1
A97: A8076806 | B97: 10 | C97: 2 | D97: 8 | E97: 1 | F97: 2012-03-02T10:56:00 | G97: 2012-03-02T11:06:00 | H97: 0 | I97: 9 | J97: 47 | L97: 587 | M97: 2
A98: A8076807 | B98: 10 | C98: 2 | D98: 8 | E98: 1 | F98: 2012-03-02T11:00:00 | G98: 2012-03-02T11:06:00 | H98: 0 | I98: 5 | J98: 50 | L98: 350 | M98: 2
A99: A8076808 | B99: 10 | C99: 2 | D99: 8 | E99: 1 | F99: 2012-03-02T10:59:00 | G99: 2012-03-02T11:12:00 | H99: 0 | I99: 12 | J99: 56 | L99: 776 | M99: 2
A100: A8076764 | B100: 10 | C100: 2 | D100: 8 | E100: 1 | F100: 1/25/12 12:11 PM | G100: 1/25/12 12:22 PM | H100: 0 | I100: 11 | J100: 41 | L100: 701 | M100: 1
A101: A8076795 | B101: 10 | C101: 2 | D101: 8 | E101: 1 | F101: 2012-01-02T10:42:00 | G101: 2012-01-02T10:50:00 | H101: 0 | I101: 8 | J101: 48 | L101: 528 | M101: 2
A102: A8076800 | B102: 10 | C102: 2 | D102: 8 | E102: 1 | F102: 2012-02-02T09:46:00 | G102: 2012-02-02T12:09:00 | H102: 2 | I102: 23 | J102: 26 | L102: 8606 | M102: 2
A103: A8076775 | B103: 10 | C103: 2 | D103: 8 | E103: 1 | F103: 1/26/12 4:20 PM | G103: 1/26/12 4:38 PM | H103: 0 | I103: 18 | J103: 12 | L103: 1092 | M103: 1
A104: A8076787 | B104: 10 | C104: 2 | D104: 8 | E104: 1 | F104: 1/30/12 2:30 PM | G104: 1/30/12 2:43 PM | H104: 0 | I104: 13 | J104: 10 | L104: 790 | M104: 1
A105: A8076788 | B105: 10 | C105: 2 | D105: 8 | E105: 1 | F105: 1/30/12 2:54 PM | G105: 1/30/12 3:36 PM | H105: 0 | I105: 41 | J105: 54 | L105: 2514 | M105: 1
A106: A8076789 | B106: 10 | C106: 2 | D106: 8 | E106: 1 | F106: 1/30/12 3:28 PM | G106: 1/30/12 3:48 PM | H106: 0 | I106: 19 | J106: 58 | L106: 1198 | M106: 1
A107: A8076761 | B107: 10 | C107: 2 | D107: 8 | E107: 1 | F107: 1/24/12 11:55 AM | G107: 1/24/12 12:10 PM | H107: 0 | I107: 15 | J107: 6 | L107: 906 | M107: 1
A108: A8076765 | B108: 10 | C108: 2 | D108: 8 | E108: 1 | F108: 1/25/12 1:06 PM | G108: 1/25/12 1:23 PM | H108: 0 | I108: 16 | J108: 54 | L108: 1014 | M108: 1
A109: A7411274 | B109: 10 | C109: 2 | D109: 8 | E109: 1 | F109: 1/18/12 10:30 AM | G109: 1/18/12 10:39 AM | H109: 0 | I109: 9 | J109: 17 | L109: 557 | M109: 1
A110: A8076742 | B110: 10 | C110: 2 | D110: 8 | E110: 1 | F110: 1/18/12 11:14 AM | G110: 1/18/12 11:20 AM | H110: 0 | I110: 5 | J110: 56 | L110: 356 | M110: 1
A111: A8076757 | B111: 10 | C111: 2 | D111: 8 | E111: 1 | F111: 1/23/12 3:28 PM | G111: 1/23/12 3:47 PM | H111: 0 | I111: 18 | J111: 48 | L111: 1128 | M111: 1
A112: A8076756 | B112: 10 | C112: 2 | D112: 8 | E112: 1 | F112: 1/23/12 2:25 PM | G112: 1/23/12 2:35 PM | H112: 0 | I112: 10 | J112: 33 | L112: 633 | M112: 1
A113: A8076746 | B113: 10 | C113: 2 | D113: 8 | E113: 1 | F113: 1/19/12 12:19 PM | G113: 1/19/12 12:48 PM | H113: 0 | I113: 29 | J113: 26 | L113: 1766 | M113: 1
A114: A8076747 | B114: 10 | C114: 2 | D114: 8 | E114: 1 | F114: 1/19/12 12:43 PM | G114: 1/19/12 12:48 PM | H114: 0 | I114: 5 | J114: 45 | L114: 345 | M114: 1
A115: A8076748 | B115: 10 | C115: 2 | D115: 8 | E115: 1 | F115: 1/19/12 12:07 PM | G115: 1/19/12 1:01 PM | H115: 0 | I115: 54 | J115: 40 | L115: 3280 | M115: 1
A116: A8076749 | B116: 10 | C116: 2 | D116: 8 | E116: 1 | F116: 1/19/12 1:53 PM | G116: 1/19/12 2:03 PM | H116: 0 | I116: 10 | J116: 2 | L116: 602 | M116: 1
A117: A8076750 | B117: 10 | C117: 2 | D117: 8 | E117: 1 | F117: 1/19/12 2:18 PM | G117: 1/19/12 2:48 PM | H117: 0 | I117: 29 | J117: 54 | L117: 1794 | M117: 1
A118: H8012143 | B118: 10 | C118: 2 | D118: 8 | E118: 1 | F118: 1/17/12 1:45 PM | G118: 1/17/12 2:30 PM | H118: 0 | I118: 45 | J118: 5 | L118: 2705 | M118: 1
A119: A8076754 | B119: 10 | C119: 2 | D119: 8 | E119: 1 | F119: 1/23/12 11:52 AM | G119: 1/23/12 12:26 PM | H119: 0 | I119: 33 | J119: 9 | L119: 1989 | M119: 1
A120: A8076751 | B120: 10 | C120: 2 | D120: 8 | E120: 1 | F120: 1/20/12 12:38 PM | G120: 1/20/12 12:51 PM | H120: 0 | I120: 13 | J120: 34 | L120: 814 | M120: 1
A121: A8076752 | B121: 10 | C121: 2 | D121: 8 | E121: 1 | F121: 1/20/12 12:58 PM | G121: 1/20/12 1:27 PM | H121: 0 | I121: 29 | J121: 20 | L121: 1760 | M121: 1
A122: A8076737 | B122: 10 | C122: 2 | D122: 8 | E122: 1 | F122: 1/13/12 12:55 PM | G122: 1/13/12 1:15 PM | H122: 0 | I122: 19 | J122: 35 | L122: 1175 | M122: 1
A123: A8076738 | B123: 10 | C123: 2 | D123: 8 | E123: 1 | F123: 1/13/12 1:10 PM | G123: 1/13/12 1:33 PM | H123: 0 | I123: 22 | J123: 59 | L123: 1379 | M123: 1
A124: A8076744 | B124: 10 | C124: 2 | D124: 8 | E124: 1 | F124: 1/18/12 2:44 PM | G124: 1/18/12 3:01 PM | H124: 0 | I124: 16 | J124: 54 | L124: 1014 | M124: 1
A125: A8076745 | B125: 10 | C125: 2 | D125: 8 | E125: 1 | F125: 1/18/12 2:53 PM | G125: 1/18/12 3:14 PM | H125: 0 | I125: 20 | J125: 49 | L125: 1249 | M125: 1
A126: A8076740 | B126: 10 | C126: 2 | D126: 8 | E126: 1 | F126: 1/16/12 3:16 PM | G126: 1/16/12 3:26 PM | H126: 0 | I126: 10 | J126: 2 | L126: 602 | M126: 1
A127: A8076753 | B127: 10 | C127: 2 | D127: 8 | E127: 1 | F127: 1/23/12 10:13 AM | G127: 1/23/12 10:34 AM | H127: 0 | I127: 20 | J127: 51 | L127: 1251 | M127: 1
A128: A8076739 | B128: 10 | C128: 2 | D128: 8 | E128: 1 | F128: 1/16/12 11:09 AM | G128: 1/16/12 11:27 AM | H128: 0 | I128: 18 | J128: 10 | L128: 1090 | M128: 1
A129: A8076743 | B129: 10 | C129: 2 | D129: 8 | E129: 1 | F129: 1/18/12 12:07 PM | G129: 1/18/12 12:34 PM | H129: 0 | I129: 26 | J129: 46 | L129: 1606 | M129: 1
A130: A8076755 | B130: 10 | C130: 2 | D130: 8 | E130: 1 | F130: 1/23/12 1:50 PM | G130: 1/23/12 2:06 PM | H130: 0 | I130: 16 | J130: 10 | L130: 970 | M130: 1
A131: A8076758 | B131: 10 | C131: 2 | D131: 8 | E131: 1 | F131: 1/24/12 10:15 AM | G131: 1/24/12 10:31 AM | H131: 0 | I131: 16 | J131: 8 | L131: 968 | M131: 1
A132: A8076759 | B132: 10 | C132: 2 | D132: 8 | E132: 1 | F132: 1/24/12 10:02 AM | G132: 1/24/12 10:37 AM | H132: 0 | I132: 34 | J132: 56 | L132: 2096 | M132: 1
A133: A8076741 | B133: 10 | C133: 2 | D133: 8 | E133: 1 | F133: 1/17/12 12:54 PM | G133: 1/17/12 1:05 PM | H133: 0 | I133: 10 | J133: 46 | L133: =H133*60*60+I133*60+J133 -> 646 | M133: 1
A134: H8012158 | B134: 10 | C134: 2 | D134: 8 | E134: 1 | F134: 6/21/12 12:27 PM | G134: 6/21/12 12:52 PM | H134: 0 | I134: 25 | J134: 42 | L134: 1542 | M134: 6
A135: A7510882 | B135: 10 | C135: 2 | D135: 8 | E135: 1 | F135: 6/22/12 10:18 AM | G135: 6/22/12 10:33 AM | H135: 0 | I135: 14 | J135: 45 | L135: 885 | M135: 6
A136: H8012160 | B136: 10 | C136: 2 | D136: 8 | E136: 1 | F136: 6/27/12 1:58 PM | G136: 6/27/12 2:13 PM | H136: 0 | I136: 15 | J136: 5 | L136: 905 | M136: 6
A137: A8077195 | B137: 10 | C137: 2 | D137: 8 | E137: 1 | F137: 6/21/12 12:39 PM | G137: 6/21/12 12:44 PM | H137: 0 | I137: 5 | J137: 10 | L137: 310 | M137: 6
A138: A8077196 | B138: 10 | C138: 2 | D138: 8 | E138: 1 | F138: 6/21/12 12:31 PM | G138: 6/21/12 1:10 PM | H138: 0 | I138: 39 | J138: 3 | L138: 2343 | M138: 6
A139: A8077206 | B139: 10 | C139: 2 | D139: 8 | E139: 1 | F139: 6/27/12 1:28 PM | G139: 6/27/12 1:39 PM | H139: 0 | I139: 11 | J139: 16 | L139: 676 | M139: 6
A140: A8077207 | B140: 10 | C140: 2 | D140: 8 | E140: 1 | F140: 6/27/12 2:03 PM | G140: 6/27/12 2:32 PM | H140: 0 | I140: 28 | J140: 38 | L140: 1718 | M140: 6
A141: A8077223 | B141: 10 | C141: 2 | D141: 8 | E141: 1 | F141: 6/29/12 1:19 PM | G141: 6/29/12 1:23 PM | H141: 0 | I141: 4 | J141: 35 | L141: 275 | M141: 6
A142: A8077221 | B142: 10 | C142: 2 | D142: 8 | E142: 1 | F142: 6/29/12 12:12 PM | G142: 6/29/12 12:18 PM | H142: 0 | I142: 6 | J142: 9 | L142: 369 | M142: 6
A143: A8077222 | B143: 10 | C143: 2 | D143: 8 | E143: 1 | F143: 6/29/12 12:48 PM | G143: 6/29/12 12:59 PM | H143: 0 | I143: 11 | J143: 1 | L143: 661 | M143: 6
A144: A8077220 | B144: 10 | C144: 2 | D144: 8 | E144: 1 | F144: 6/29/12 11:30 AM | G144: 6/29/12 11:38 AM | H144: 0 | I144: 8 | J144: 9 | L144: 489 | M144: 6
A145: A8077217 | B145: 10 | C145: 2 | D145: 8 | E145: 1 | F145: 6/29/12 10:07 AM | G145: 6/29/12 10:42 AM | H145: 0 | I145: 35 | J145: 7 | L145: 2107 | M145: 6
A146: A8077218 | B146: 10 | C146: 2 | D146: 8 | E146: 1 | F146: 6/29/12 10:15 AM | G146: 6/29/12 10:44 AM | H146: 0 | I146: 28 | J146: 37 | L146: 1717 | M146: 6
A147: A8077219 | B147: 10 | C147: 2 | D147: 8 | E147: 1 | F147: 6/29/12 10:40 AM | G147: 6/29/12 10:55 AM | H147: 0 | I147: 15 | J147: 18 | L147: 918 | M147: 6
A148: A8077205 | B148: 10 | C148: 2 | D148: 8 | E148: 1 | F148: 6/27/12 11:59 AM | G148: 6/27/12 12:21 PM | H148: 0 | I148: 21 | J148: 54 | L148: 1314 | M148: 6
A149: A8077194 | B149: 10 | C149: 2 | D149: 8 | E149: 1 | F149: 6/20/12 1:11 PM | G149: 6/20/12 1:30 PM | H149: 0 | I149: 18 | J149: 46 | L149: 1126 | M149: 6
A150: A8077211 | B150: 10 | C150: 2 | D150: 8 | E150: 1 | F150: 6/28/12 11:58 AM | G150: 6/28/12 12:19 PM | H150: 0 | I150: 21 | J150: 5 | L150: 1265 | M150: 6
A151: A8077212 | B151: 10 | C151: 2 | D151: 8 | E151: 1 | F151: 6/28/12 11:43 AM | G151: 6/28/12 12:47 PM | H151: 1 | I151: 3 | J151: 59 | L151: 3839 | M151: 6
A152: A8077213 | B152: 10 | C152: 2 | D152: 8 | E152: 1 | F152: 6/28/12 1:14 PM | G152: 6/28/12 1:28 PM | H152: 0 | I152: 13 | J152: 28 | L152: 808 | M152: 6
A153: A8077214 | B153: 10 | C153: 2 | D153: 8 | E153: 1 | F153: 6/28/12 1:43 PM | G153: 6/28/12 1:53 PM | H153: 0 | I153: 10 | J153: 10 | L153: 610 | M153: 6
A154: A8077215 | B154: 10 | C154: 2 | D154: 8 | E154: 1 | F154: 6/28/12 2:17 PM | G154: 6/28/12 2:26 PM | H154: 0 | I154: 8 | J154: 54 | L154: 534 | M154: 6
A155: A8077225 | B155: 10 | C155: 2 | D155: 8 | E155: 1 | F155: 2012-02-07T12:58:00 | G155: 2012-02-07T13:11:00 | H155: 0 | I155: 13 | J155: 33 | L155: 813 | M155: 7
A156: A8077197 | B156: 10 | C156: 2 | D156: 8 | E156: 1 | F156: 6/22/12 12:14 PM | G156: 6/22/12 12:25 PM | H156: 0 | I156: 10 | J156: 51 | L156: 651 | M156: 6
A157: A8077198 | B157: 10 | C157: 2 | D157: 8 | E157: 1 | F157: 6/22/12 1:29 PM | G157: 6/22/12 1:38 PM | H157: 0 | I157: 9 | J157: 12 | L157: 552 | M157: 6
A158: A8077203 | B158: 10 | C158: 2 | D158: 8 | E158: 1 | F158: 6/26/12 1:25 PM | G158: 6/26/12 1:43 PM | H158: 0 | I158: 17 | J158: 54 | L158: 1074 | M158: 6
A159: A8077204 | B159: 10 | C159: 2 | D159: 8 | E159: 1 | F159: 6/26/12 1:37 PM | G159: 6/26/12 1:54 PM | H159: 0 | I159: 16 | J159: 57 | L159: 1017 | M159: 6
A160: A8077209 | B160: 10 | C160: 2 | D160: 8 | E160: 1 | F160: 6/28/12 10:33 AM | G160: 6/28/12 10:43 AM | H160: 0 | I160: 10 | J160: 5 | L160: 605 | M160: 6
A161: A8077210 | B161: 10 | C161: 2 | D161: 8 | E161: 1 | F161: 6/28/12 10:35 AM | G161: 6/28/12 10:49 AM | H161: 0 | I161: 14 | J161: 38 | L161: 878 | M161: 6
A162: A8077199 | B162: 10 | C162: 2 | D162: 8 | E162: 1 | F162: 6/25/12 9:53 AM | G162: 6/25/12 10:06 AM | H162: 0 | I162: 13 | J162: 28 | L162: 808 | M162: 6
A163: A8077200 | B163: 10 | C163: 2 | D163: 8 | E163: 1 | F163: 6/25/12 10:21 AM | G163: 6/25/12 10:28 AM | H163: 0 | I163: 7 | J163: 26 | L163: 446 | M163: 6
A164: A8077201 | B164: 10 | C164: 2 | D164: 8 | E164: 1 | F164: 6/25/12 2:39 PM | G164: 6/25/12 2:59 PM | H164: 0 | I164: 19 | J164: 43 | L164: 1183 | M164: 6
A165: A8077224 | B165: 10 | C165: 2 | D165: 8 | E165: 1 | F165: 2012-02-07T10:38:00 | G165: 2012-02-07T10:52:00 | H165: 0 | I165: 13 | J165: 41 | L165: 821 | M165: 7
A166: A8077202 | B166: 10 | C166: 2 | D166: 8 | E166: 1 | F166: 6/26/12 11:33 AM | G166: 6/26/12 11:40 AM | H166: 0 | I166: 6 | J166: 36 | L166: 396 | M166: 6
A167: H8012159 | B167: 10 | C167: 2 | D167: 8 | E167: 1 | F167: 6/25/12 1:05 PM | G167: 6/25/12 1:13 PM | H167: 0 | I167: 7 | J167: 42 | L167: 462 | M167: 6
A168: A8077208 | B168: 10 | C168: 2 | D168: 8 | E168: 1 | F168: 6/27/12 4:21 PM | G168: 6/27/12 4:52 PM | H168: 0 | I168: 31 | J168: 8 | L168: 1868 | M168: 6
A169: A8077235 | B169: 10 | C169: 2 | D169: 8 | E169: 1 | F169: 2012-05-07T12:27:00 | G169: 2012-05-07T12:51:00 | H169: 0 | I169: 23 | J169: 45 | L169: 1425 | M169: 7
A170: A8077216 | B170: 10 | C170: 2 | D170: 8 | E170: 1 | F170: 6/28/12 3:12 PM | G170: 6/28/12 3:27 PM | H170: 0 | I170: 14 | J170: 48 | L170: 888 | M170: 6
A171: A8077242 | B171: 10 | C171: 2 | D171: 8 | E171: 1 | F171: 2012-06-07T14:12:00 | G171: 2012-06-07T14:30:00 | H171: 0 | I171: 17 | J171: 38 | L171: 1058 | M171: 7
A172: A8077243 | B172: 10 | C172: 2 | D172: 8 | E172: 1 | F172: 2012-06-07T14:32:00 | G172: 2012-06-07T15:05:00 | H172: 0 | I172: 33 | J172: 40 | L172: 2020 | M172: 7
A173: A8077248 | B173: 10 | C173: 2 | D173: 8 | E173: 1 | F173: 2012-10-07T10:41:00 | G173: 2012-10-07T10:54:00 | H173: 0 | I173: 13 | J173: 43 | L173: 823 | M173: 7
A174: H8012161 | B174: 10 | C174: 2 | D174: 8 | E174: 1 | F174: 2012-11-07T12:57:00 | G174: 2012-11-07T13:26:00 | H174: 0 | I174: 29 | J174: 24 | L174: 1764 | M174: 7
A175: A8077253 | B175: 10 | C175: 2 | D175: 8 | E175: 1 | F175: 2012-11-07T15:09:00 | G175: 2012-11-07T15:21:00 | H175: 0 | I175: 11 | J175: 37 | L175: 697 | M175: 7
A176: A8077234 | B176: 10 | C176: 2 | D176: 8 | E176: 1 | F176: 2012-05-07T12:00:00 | G176: 2012-05-07T12:13:00 | H176: 0 | I176: 13 | J176: 45 | L176: 825 | M176: 7
A177: A8077232 | B177: 10 | C177: 2 | D177: 8 | E177: 1 | F177: 2012-05-07T10:56:00 | G177: 2012-05-07T11:04:00 | H177: 0 | I177: 7 | J177: 29 | L177: 449 | M177: 7
A178: A8077233 | B178: 10 | C178: 2 | D178: 8 | E178: 1 | F178: 2012-05-07T11:02:00 | G178: 2012-05-07T11:20:00 | H178: 0 | I178: 18 | J178: 2 | L178: 1082 | M178: 7
A179: A7411290 | B179: 10 | C179: 2 | D179: 8 | E179: 1 | F179: 2012-06-07T11:24:00 | G179: 2012-06-07T11:40:00 | H179: 0 | I179: 16 | J179: 9 | L179: 969 | M179: 7
A180: A8077250 | B180: 10 | C180: 2 | D180: 8 | E180: 1 | F180: 2012-11-07T10:45:00 | G180: 2012-11-07T11:01:00 | H180: 0 | I180: 16 | J180: 19 | L180: 979 | M180: 7
A181: A8077229 | B181: 10 | C181: 2 | D181: 8 | E181: 1 | F181: 2012-04-07T12:09:00 | G181: 2012-04-07T12:24:00 | H181: 0 | I181: 15 | J181: 15 | L181: 915 | M181: 7
A182: A7510883 | B182: 13 | C182: 2 | D182: 8 | E182: 1 | F182: 2012-03-07T12:10:00 | G182: 2012-03-07T12:19:00 | H182: 0 | I182: 8 | J182: 21 | L182: 501 | M182: 7
A183: A8077245 | B183: 10 | C183: 2 | D183: 8 | E183: 1 | F183: 2012-09-07T11:35:00 | G183: 2012-09-07T12:07:00 | H183: 0 | I183: 32 | J183: 47 | L183: 1967 | M183: 7
A184: A8077246 | B184: 10 | C184: 2 | D184: 8 | E184: 1 | F184: 2012-09-07T12:45:00 | G184: 2012-09-07T13:03:00 | H184: 0 | I184: 18 | J184: 27 | L184: 1107 | M184: 7
A185: A8077247 | B185: 10 | C185: 2 | D185: 8 | E185: 1 | F185: 2012-09-07T14:11:00 | G185: 2012-09-07T14:28:00 | H185: 0 | I185: 16 | J185: 53 | L185: 1013 | M185: 7
A186: A8077251 | B186: 10 | C186: 2 | D186: 8 | E186: 1 | F186: 2012-11-07T11:11:00 | G186: 2012-11-07T11:19:00 | H186: 0 | I186: 8 | J186: 25 | L186: 505 | M186: 7
A187: A8077254 | B187: 10 | C187: 2 | D187: 8 | E187: 1 | F187: 2012-12-07T10:46:00 | G187: 2012-12-07T11:08:00 | H187: 0 | I187: 21 | J187: 5 | L187: 1265 | M187: 7
A188: A8077255 | B188: 10 | C188: 2 | D188: 8 | E188: 1 | F188: 2012-12-07T11:34:00 | G188: 2012-12-07T11:48:00 | H188: 0 | I188: 13 | J188: 8 | L188: 788 | M188: 7
A189: A8077237 | B189: 10 | C189: 2 | D189: 8 | E189: 1 | F189: 2012-06-07T12:18:00 | G189: 2012-06-07T12:34:00 | H189: 0 | I189: 15 | J189: 49 | L189: 949 | M189: 7
A190: A8077238 | B190: 10 | C190: 2 | D190: 8 | E190: 1 | F190: 2012-06-07T12:10:00 | G190: 2012-06-07T12:44:00 | H190: 0 | I190: 34 | J190: 1 | L190: 2041 | M190: 7
A191: A8077239 | B191: 10 | C191: 2 | D191: 8 | E191: 1 | F191: 2012-06-07T13:06:00 | G191: 2012-06-07T13:14:00 | H191: 0 | I191: 8 | J191: 4 | L191: 484 | M191: 7
A192: A8077240 | B192: 10 | C192: 2 | D192: 8 | E192: 1 | F192: 2012-06-07T13:49:00 | G192: 2012-06-07T14:02:00 | H192: 0 | I192: 12 | J192: 18 | L192: 738 | M192: 7
A193: A8077241 | B193: 10 | C193: 2 | D193: 8 | E193: 1 | F193: 2012-06-07T13:54:00 | G193: 2012-06-07T14:03:00 | H193: 0 | I193: 9 | J193: 6 | L193: 546 | M193: 7
A194: A8077226 | B194: 10 | C194: 2 | D194: 8 | E194: 1 | F194: 2012-03-07T12:37:00 | G194: 2012-03-07T12:59:00 | H194: 0 | I194: 22 | J194: 13 | L194: 1333 | M194: 7
A195: A8077230 | B195: 10 | C195: 2 | D195: 8 | E195: 1 | F195: 2012-04-07T13:57:00 | G195: 2012-04-07T14:09:00 | H195: 0 | I195: 12 | J195: 13 | L195: 733 | M195: 7
A196: A8077231 | B196: 10 | C196: 2 | D196: 8 | E196: 1 | F196: 2012-04-07T15:30:00 | G196: 2012-04-07T16:01:00 | H196: 0 | I196: 31 | J196: 18 | L196: 1878 | M196: 7
A197: A8077252 | B197: 10 | C197: 2 | D197: 8 | E197: 1 | F197: 2012-11-07T12:38:00 | G197: 2012-11-07T12:55:00 | H197: 0 | I197: 16 | J197: 31 | L197: =H197*60*60+I197*60+J197 -> 991 | M197: 7
A198: A7411289 | B198: 10 | C198: 2 | D198: 8 | E198: 1 | F198: 2012-06-07T10:14:00 | G198: 2012-06-07T10:22:00 | H198: 0 | I198: 8 | J198: 5 | L198: 485 | M198: 7
A199: A8077249 | B199: 10 | C199: 2 | D199: 8 | E199: 1 | F199: 2012-10-07T12:48:00 | G199: 2012-10-07T12:59:00 | H199: 0 | I199: 11 | J199: 8 | L199: 668 | M199: 7
A200: A8077228 | B200: 10 | C200: 2 | D200: 8 | E200: 1 | F200: 2012-04-07T09:48:00 | G200: 2012-04-07T10:18:00 | H200: 0 | I200: 30 | J200: 8 | L200: 1808 | M200: 7
... 917 more rows

Sheet 2013
A1: REPORTE DE TIEMPO DE TRÁMITE DE ALTA PATRONAL | L1: TOTAL DE REGISTOS ENCONTRADOS: 1341
A2: REG PATRONAL | B2: MODALIDAD | C2: CIZ | D2: DELEGACIÓN | E2: SUBDELEGACIÓN | F2: HORA | H2: TIEMPO DE TRÁMITE | L2: Segundos totales | M2: Mes en que se realizó | O2: 2014
F3: INICIO | G3: TERMINO | H3: HORAS | I3: MINUTOS | J3: SEGUNDOS | O3: Mes | P3: Promedio Mes
A4: A8078105 | B4: 10 | C4: 2 | D4: 8 | E4: 1 | F4: 4/10/13 2:40 PM | G4: 4/10/13 2:53 PM | H4: 0 | I4: 13 | J4: 15 | L4: =H4*60*60+I4*60+J4 -> 795 | M4: 4 | O4: 1 | P4: =AVERAGEIF(tres,"=1",tiempotres) -> 812.7209302
A5: A8078107 | B5: 10 | C5: 2 | D5: 8 | E5: 1 | F5: 4/11/13 10:15 AM | G5: 4/11/13 10:26 AM | H5: 0 | I5: 11 | J5: 9 | L5: =H5*60*60+I5*60+J5 -> 669 | M5: 4 | O5: 2 | P5: =AVERAGEIF(tres,"=2",tiempotres) -> 946.6979167
A6: A8078068 | B6: 10 | C6: 2 | D6: 8 | E6: 1 | F6: 4/2/13 10:57 AM | G6: 4/2/13 11:17 AM | H6: 0 | I6: 20 | J6: 10 | L6: 1210 | M6: 4 | O6: 3 | P6: =AVERAGEIF(tres,"=3",tiempotres) -> 785.3181818
A7: A8078077 | B7: 10 | C7: 2 | D7: 8 | E7: 1 | F7: 4/4/13 12:19 PM | G7: 4/4/13 12:27 PM | H7: 0 | I7: 7 | J7: 22 | L7: 442 | M7: 4 | O7: 4 | P7: =AVERAGEIF(tres,"=4",tiempotres) -> 920.1209677
A8: A8078084 | B8: 10 | C8: 2 | D8: 8 | E8: 1 | F8: 4/5/13 11:13 AM | G8: 4/5/13 11:25 AM | H8: 0 | I8: 11 | J8: 50 | L8: 710 | M8: 4 | O8: 5 | P8: =AVERAGEIF(tres,"5",tiempotres) -> 950.2016129
A9: A8078086 | B9: 10 | C9: 2 | D9: 8 | E9: 1 | F9: 4/5/13 11:34 AM | G9: 4/5/13 11:38 AM | H9: 0 | I9: 4 | J9: 25 | L9: 265 | M9: 4 | O9: 6 | P9: =AVERAGEIF(tres,"=6",tiempotres) -> 938.6896552
A10: A8078098 | B10: 10 | C10: 2 | D10: 8 | E10: 1 | F10: 4/9/13 11:22 AM | G10: 4/9/13 12:01 PM | H10: 0 | I10: 38 | J10: 48 | L10: 2328 | M10: 4 | O10: 7 | P10: =AVERAGEIF(tres,"=7",tiempotres) -> 851.2520325
A11: A8078043 | B11: 10 | C11: 2 | D11: 8 | E11: 1 | F11: 3/21/13 2:32 PM | G11: 3/21/13 3:05 PM | H11: 0 | I11: 32 | J11: 53 | L11: 1973 | M11: 3 | O11: 8 | P11: =AVERAGEIF(tres,"=8",tiempotres) -> 709.3333333
A12: A8078104 | B12: 10 | C12: 2 | D12: 8 | E12: 1 | F12: 4/10/13 11:38 AM | G12: 4/10/13 11:56 AM | H12: 0 | I12: 17 | J12: 19 | L12: 1039 | M12: 4 | O12: 9 | P12: =AVERAGEIF(tres,"=9",tiempotres) -> 714.3781513
A13: A8078078 | B13: 10 | C13: 2 | D13: 8 | E13: 1 | F13: 4/4/13 12:28 PM | G13: 4/4/13 12:54 PM | H13: 0 | I13: 25 | J13: 48 | L13: 1548 | M13: 4 | O13: 10 | P13: =AVERAGEIF(tres,"=10",tiempotres) -> 717.2013889
A14: A8078072 | B14: 10 | C14: 2 | D14: 8 | E14: 1 | F14: 4/3/13 9:46 AM | G14: 4/3/13 9:58 AM | H14: 0 | I14: 11 | J14: 26 | L14: 686 | M14: 4 | O14: 11 | P14: =AVERAGEIF(tres,"=11",tiempotres) -> 675.4587156
A15: A8078069 | B15: 10 | C15: 2 | D15: 8 | E15: 1 | F15: 4/2/13 12:55 PM | G15: 4/2/13 1:04 PM | H15: 0 | I15: 8 | J15: 58 | L15: 538 | M15: 4 | O15: 12 | P15: =AVERAGEIF(tres,"=12",tiempotres) -> 728.3026316
A16: A8078074 | B16: 10 | C16: 2 | D16: 8 | E16: 1 | F16: 4/4/13 10:20 AM | G16: 4/4/13 10:37 AM | H16: 0 | I16: 17 | J16: 18 | L16: 1038 | M16: 4
A17: A8078079 | B17: 10 | C17: 2 | D17: 8 | E17: 1 | F17: 4/4/13 1:23 PM | G17: 4/4/13 1:30 PM | H17: 0 | I17: 7 | J17: 10 | L17: 430 | M17: 4
A18: A8078087 | B18: 10 | C18: 2 | D18: 8 | E18: 1 | F18: 4/5/13 12:11 PM | G18: 4/5/13 12:18 PM | H18: 0 | I18: 7 | J18: 12 | L18: 432 | M18: 4
A19: A8078080 | B19: 10 | C19: 2 | D19: 8 | E19: 1 | F19: 4/4/13 1:39 PM | G19: 4/4/13 1:58 PM | H19: 0 | I19: 18 | J19: 45 | L19: 1125 | M19: 4
A20: A8078070 | B20: 10 | C20: 2 | D20: 8 | E20: 1 | F20: 4/2/13 1:29 PM | G20: 4/2/13 1:36 PM | H20: 0 | I20: 7 | J20: 6 | L20: 426 | M20: 4
A21: A8078108 | B21: 10 | C21: 2 | D21: 8 | E21: 1 | F21: 4/11/13 11:41 AM | G21: 4/11/13 11:57 AM | H21: 0 | I21: 15 | J21: 43 | L21: 943 | M21: 4
A22: A8078071 | B22: 10 | C22: 2 | D22: 8 | E22: 1 | F22: 4/2/13 1:35 PM | G22: 4/2/13 1:42 PM | H22: 0 | I22: 6 | J22: 53 | L22: 413 | M22: 4
A23: A8078075 | B23: 10 | C23: 2 | D23: 8 | E23: 1 | F23: 4/4/13 10:51 AM | G23: 4/4/13 11:16 AM | H23: 0 | I23: 24 | J23: 48 | L23: 1488 | M23: 4
A24: A8078081 | B24: 10 | C24: 2 | D24: 8 | E24: 1 | F24: 4/4/13 2:14 PM | G24: 4/4/13 2:24 PM | H24: 0 | I24: 10 | J24: 40 | L24: 640 | M24: 4
A25: A8078090 | B25: 10 | C25: 2 | D25: 8 | E25: 1 | F25: 4/8/13 1:28 PM | G25: 4/8/13 1:52 PM | H25: 0 | I25: 23 | J25: 15 | L25: 1395 | M25: 4
A26: A8078091 | B26: 10 | C26: 2 | D26: 8 | E26: 1 | F26: 4/8/13 1:57 PM | G26: 4/8/13 1:59 PM | H26: 0 | I26: 2 | J26: 18 | L26: 138 | M26: 4
A27: A8078099 | B27: 10 | C27: 2 | D27: 8 | E27: 1 | F27: 4/9/13 1:53 PM | G27: 4/9/13 1:57 PM | H27: 0 | I27: 3 | J27: 59 | L27: 239 | M27: 4
A28: A8078083 | B28: 10 | C28: 2 | D28: 8 | E28: 1 | F28: 4/5/13 9:50 AM | G28: 4/5/13 10:14 AM | H28: 0 | I28: 24 | J28: 0 | L28: 1440 | M28: 4
A29: A8078088 | B29: 10 | C29: 2 | D29: 8 | E29: 1 | F29: 4/5/13 12:46 PM | G29: 4/5/13 1:02 PM | H29: 0 | I29: 15 | J29: 58 | L29: 958 | M29: 4
A30: A8078092 | B30: 10 | C30: 2 | D30: 8 | E30: 1 | F30: 4/8/13 2:07 PM | G30: 4/8/13 2:13 PM | H30: 0 | I30: 5 | J30: 25 | L30: 325 | M30: 4
A31: A8078100 | B31: 10 | C31: 2 | D31: 8 | E31: 1 | F31: 4/9/13 2:01 PM | G31: 4/9/13 2:24 PM | H31: 0 | I31: 22 | J31: 58 | L31: 1378 | M31: 4
A32: A8078093 | B32: 10 | C32: 2 | D32: 8 | E32: 1 | F32: 4/8/13 2:26 PM | G32: 4/8/13 2:38 PM | H32: 0 | I32: 11 | J32: 15 | L32: 675 | M32: 4
A33: A8078094 | B33: 10 | C33: 2 | D33: 8 | E33: 1 | F33: 4/8/13 2:33 PM | G33: 4/8/13 2:38 PM | H33: 0 | I33: 4 | J33: 29 | L33: 269 | M33: 4
A34: A8078102 | B34: 10 | C34: 2 | D34: 8 | E34: 1 | F34: 4/10/13 10:49 AM | G34: 4/10/13 11:02 AM | H34: 0 | I34: 12 | J34: 42 | L34: 762 | M34: 4
A35: A8078109 | B35: 10 | C35: 2 | D35: 8 | E35: 1 | F35: 4/11/13 12:35 PM | G35: 4/11/13 12:39 PM | H35: 0 | I35: 4 | J35: 12 | L35: 252 | M35: 4
A36: A8078089 | B36: 10 | C36: 2 | D36: 8 | E36: 1 | F36: 4/5/13 1:27 PM | G36: 4/5/13 1:42 PM | H36: 0 | I36: 14 | J36: 29 | L36: 869 | M36: 4
A37: A8078106 | B37: 10 | C37: 2 | D37: 8 | E37: 1 | F37: 4/11/13 9:54 AM | G37: 4/11/13 10:04 AM | H37: 0 | I37: 9 | J37: 43 | L37: 583 | M37: 4
A38: A8078073 | B38: 10 | C38: 2 | D38: 8 | E38: 1 | F38: 4/3/13 12:08 PM | G38: 4/3/13 12:12 PM | H38: 0 | I38: 4 | J38: 19 | L38: 259 | M38: 4
A39: A8078095 | B39: 10 | C39: 2 | D39: 8 | E39: 1 | F39: 4/8/13 3:24 PM | G39: 4/8/13 3:36 PM | H39: 0 | I39: 12 | J39: 28 | L39: 748 | M39: 4
A40: A8078103 | B40: 10 | C40: 2 | D40: 8 | E40: 1 | F40: 4/10/13 11:15 AM | G40: 4/10/13 11:23 AM | H40: 0 | I40: 7 | J40: 37 | L40: 457 | M40: 4
A41: A8078076 | B41: 10 | C41: 2 | D41: 8 | E41: 1 | F41: 4/4/13 11:58 AM | G41: 4/4/13 12:09 PM | H41: 0 | I41: 10 | J41: 11 | L41: 611 | M41: 4
A42: A8078096 | B42: 10 | C42: 2 | D42: 8 | E42: 1 | F42: 4/8/13 4:41 PM | G42: 4/8/13 4:52 PM | H42: 0 | I42: 10 | J42: 41 | L42: 641 | M42: 4
A43: A8078097 | B43: 10 | C43: 2 | D43: 8 | E43: 1 | F43: 4/9/13 11:16 AM | G43: 4/9/13 11:22 AM | H43: 0 | I43: 6 | J43: 36 | L43: 396 | M43: 4
A44: A8078101 | B44: 10 | C44: 2 | D44: 8 | E44: 1 | F44: 4/9/13 4:18 PM | G44: 4/9/13 4:26 PM | H44: 0 | I44: 7 | J44: 35 | L44: 455 | M44: 4
A45: A8078133 | B45: 10 | C45: 2 | D45: 8 | E45: 1 | F45: 4/18/13 1:34 PM | G45: 4/18/13 2:06 PM | H45: 0 | I45: 32 | J45: 12 | L45: 1932 | M45: 4
A46: A8078137 | B46: 10 | C46: 2 | D46: 8 | E46: 1 | F46: 4/22/13 10:15 AM | G46: 4/22/13 10:21 AM | H46: 0 | I46: 6 | J46: 38 | L46: 398 | M46: 4
A47: A8078120 | B47: 10 | C47: 2 | D47: 8 | E47: 1 | F47: 4/15/13 1:34 PM | G47: 4/15/13 1:37 PM | H47: 0 | I47: 3 | J47: 28 | L47: 208 | M47: 4
A48: A7411305 | B48: 10 | C48: 2 | D48: 8 | E48: 1 | F48: 4/17/13 3:58 PM | G48: 4/17/13 4:24 PM | H48: 0 | I48: 25 | J48: 34 | L48: 1534 | M48: 4
A49: A8078129 | B49: 10 | C49: 2 | D49: 8 | E49: 1 | F49: 4/17/13 4:13 PM | G49: 4/17/13 4:30 PM | H49: 0 | I49: 16 | J49: 50 | L49: 1010 | M49: 4
A50: A8078134 | B50: 10 | C50: 2 | D50: 8 | E50: 1 | F50: 4/19/13 10:01 AM | G50: 4/19/13 10:28 AM | H50: 0 | I50: 27 | J50: 31 | L50: 1651 | M50: 4
A51: A8078135 | B51: 10 | C51: 2 | D51: 8 | E51: 1 | F51: 4/19/13 1:02 PM | G51: 4/19/13 1:09 PM | H51: 0 | I51: 6 | J51: 41 | L51: 401 | M51: 4
A52: A8078116 | B52: 10 | C52: 2 | D52: 8 | E52: 1 | F52: 4/15/13 10:29 AM | G52: 4/15/13 10:37 AM | H52: 0 | I52: 8 | J52: 29 | L52: 509 | M52: 4
A53: H8012176 | B53: 10 | C53: 2 | D53: 8 | E53: 1 | F53: 4/15/13 10:13 AM | G53: 4/15/13 10:38 AM | H53: 0 | I53: 24 | J53: 24 | L53: 1464 | M53: 4
A54: H8012177 | B54: 10 | C54: 2 | D54: 8 | E54: 1 | F54: 4/15/13 2:07 PM | G54: 4/15/13 2:26 PM | H54: 0 | I54: 18 | J54: 10 | L54: 1090 | M54: 4
A55: A8078136 | B55: 10 | C55: 2 | D55: 8 | E55: 1 | F55: 4/19/13 1:21 PM | G55: 4/19/13 1:30 PM | H55: 0 | I55: 9 | J55: 1 | L55: 541 | M55: 4
A56: A8078138 | B56: 10 | C56: 2 | D56: 8 | E56: 1 | F56: 4/22/13 10:51 AM | G56: 4/22/13 11:23 AM | H56: 0 | I56: 32 | J56: 7 | L56: 1927 | M56: 4
A57: A8078112 | B57: 10 | C57: 2 | D57: 8 | E57: 1 | F57: 2013-12-04T13:16:00 | G57: 2013-12-04T13:34:00 | H57: 0 | I57: 18 | J57: 16 | L57: 1096 | M57: 4
A58: A8078122 | B58: 10 | C58: 2 | D58: 8 | E58: 1 | F58: 4/16/13 10:30 AM | G58: 4/16/13 10:45 AM | H58: 0 | I58: 14 | J58: 32 | L58: 872 | M58: 4
A59: A8078110 | B59: 10 | C59: 2 | D59: 8 | E59: 1 | F59: 2013-11-04T14:22:00 | G59: 2013-11-04T14:32:00 | H59: 0 | I59: 10 | J59: 28 | L59: 628 | M59: 4
A60: A8078121 | B60: 10 | C60: 2 | D60: 8 | E60: 1 | F60: 4/15/13 3:05 PM | G60: 4/15/13 3:16 PM | H60: 0 | I60: 10 | J60: 44 | L60: 644 | M60: 4
A61: A8078139 | B61: 10 | C61: 2 | D61: 8 | E61: 1 | F61: 4/22/13 11:36 AM | G61: 4/22/13 11:46 AM | H61: 0 | I61: 10 | J61: 7 | L61: 607 | M61: 4
A62: A8078127 | B62: 10 | C62: 2 | D62: 8 | E62: 1 | F62: 4/17/13 1:04 PM | G62: 4/17/13 1:13 PM | H62: 0 | I62: 9 | J62: 10 | L62: 550 | M62: 4
A63: A8078113 | B63: 10 | C63: 2 | D63: 8 | E63: 1 | F63: 2013-12-04T13:42:00 | G63: 2013-12-04T15:11:00 | H63: 1 | I63: 29 | J63: 11 | L63: 5351 | M63: 4
A64: A8078114 | B64: 10 | C64: 2 | D64: 8 | E64: 1 | F64: 2013-12-04T15:06:00 | G64: 2013-12-04T15:16:00 | H64: 0 | I64: 9 | J64: 9 | L64: 549 | M64: 4
A65: A8078115 | B65: 10 | C65: 2 | D65: 8 | E65: 1 | F65: 4/15/13 10:23 AM | G65: 4/15/13 10:34 AM | H65: 0 | I65: 11 | J65: 12 | L65: 672 | M65: 4
A66: A8078111 | B66: 10 | C66: 2 | D66: 8 | E66: 1 | F66: 2013-11-04T16:33:00 | G66: 2013-11-04T16:46:00 | H66: 0 | I66: 12 | J66: 54 | L66: 774 | M66: 4
A67: A8078132 | B67: 10 | C67: 2 | D67: 8 | E67: 1 | F67: 4/18/13 1:03 PM | G67: 4/18/13 1:13 PM | H67: 0 | I67: 9 | J67: 32 | L67: 572 | M67: 4
A68: A8078140 | B68: 10 | C68: 2 | D68: 8 | E68: 1 | F68: 4/22/13 12:39 PM | G68: 4/22/13 12:51 PM | H68: 0 | I68: 11 | J68: 51 | L68: 711 | M68: 4
A69: A8078125 | B69: 10 | C69: 2 | D69: 8 | E69: 1 | F69: 4/17/13 11:20 AM | G69: 4/17/13 11:35 AM | H69: 0 | I69: 15 | J69: 47 | L69: =H69*60*60+I69*60+J69 -> 947 | M69: 4
A70: A8078123 | B70: 10 | C70: 2 | D70: 8 | E70: 1 | F70: 4/16/13 12:09 PM | G70: 4/16/13 12:30 PM | H70: 0 | I70: 21 | J70: 14 | L70: 1274 | M70: 4
A71: A8078126 | B71: 10 | C71: 2 | D71: 8 | E71: 1 | F71: 4/17/13 11:19 AM | G71: 4/17/13 11:42 AM | H71: 0 | I71: 22 | J71: 13 | L71: 1333 | M71: 4
A72: A8078041 | B72: 10 | C72: 2 | D72: 8 | E72: 1 | F72: 3/21/13 2:33 PM | G72: 3/21/13 2:45 PM | H72: 0 | I72: 12 | J72: 44 | L72: 764 | M72: 3
A73: A8078042 | B73: 10 | C73: 2 | D73: 8 | E73: 1 | F73: 3/21/13 2:49 PM | G73: 3/21/13 2:58 PM | H73: 0 | I73: 8 | J73: 56 | L73: 536 | M73: 3
A74: A8078053 | B74: 10 | C74: 2 | D74: 8 | E74: 1 | F74: 3/25/13 2:07 PM | G74: 3/25/13 2:18 PM | H74: 0 | I74: 11 | J74: 3 | L74: 663 | M74: 3
A75: A8078046 | B75: 10 | C75: 2 | D75: 8 | E75: 1 | F75: 3/22/13 1:43 PM | G75: 3/22/13 1:59 PM | H75: 0 | I75: 15 | J75: 37 | L75: 937 | M75: 3
A76: A8078044 | B76: 10 | C76: 2 | D76: 8 | E76: 1 | F76: 3/22/13 11:01 AM | G76: 3/22/13 11:17 AM | H76: 0 | I76: 16 | J76: 23 | L76: 983 | M76: 3
A77: A8078039 | B77: 10 | C77: 2 | D77: 8 | E77: 1 | F77: 3/21/13 12:05 PM | G77: 3/21/13 12:20 PM | H77: 0 | I77: 14 | J77: 46 | L77: 886 | M77: 3
A78: A8078045 | B78: 10 | C78: 2 | D78: 8 | E78: 1 | F78: 3/22/13 11:17 AM | G78: 3/22/13 11:25 AM | H78: 0 | I78: 7 | J78: 54 | L78: 474 | M78: 3
A79: A8078047 | B79: 10 | C79: 2 | D79: 8 | E79: 1 | F79: 3/22/13 2:15 PM | G79: 3/22/13 2:28 PM | H79: 0 | I79: 13 | J79: 39 | L79: 819 | M79: 3
A80: A8078061 | B80: 10 | C80: 2 | D80: 8 | E80: 1 | F80: 3/27/13 10:08 AM | G80: 3/27/13 10:15 AM | H80: 0 | I80: 6 | J80: 24 | L80: 384 | M80: 3
A81: A8078067 | B81: 10 | C81: 2 | D81: 8 | E81: 1 | F81: 2013-01-04T12:05:00 | G81: 2013-01-04T12:19:00 | H81: 0 | I81: 13 | J81: 47 | L81: 827 | M81: 4
A82: A8078037 | B82: 10 | C82: 2 | D82: 8 | E82: 1 | F82: 3/21/13 10:19 AM | G82: 3/21/13 10:26 AM | H82: 0 | I82: 7 | J82: 40 | L82: 460 | M82: 3
A83: A8078040 | B83: 10 | C83: 2 | D83: 8 | E83: 1 | F83: 3/21/13 1:17 PM | G83: 3/21/13 1:33 PM | H83: 0 | I83: 16 | J83: 42 | L83: 1002 | M83: 3
A84: A8078060 | B84: 10 | C84: 2 | D84: 8 | E84: 1 | F84: 3/26/13 2:50 PM | G84: 3/26/13 2:59 PM | H84: 0 | I84: 9 | J84: 33 | L84: 573 | M84: 3
A85: A8078007 | B85: 10 | C85: 2 | D85: 8 | E85: 1 | F85: 2013-12-03T13:24:00 | G85: 2013-12-03T14:03:00 | H85: 0 | I85: 38 | J85: 6 | L85: 2286 | M85: 3
A86: A8078571 | B86: 10 | C86: 2 | D86: 8 | E86: 1 | F86: 2013-02-08T10:22:00 | G86: 2013-02-08T10:26:00 | H86: 0 | I86: 4 | J86: 52 | L86: 292 | M86: 8
A87: A8078082 | B87: 10 | C87: 2 | D87: 8 | E87: 1 | F87: 2013-04-04T16:37:00 | G87: 2013-04-04T16:51:00 | H87: 0 | I87: 13 | J87: 37 | L87: 817 | M87: 4
A88: A8078062 | B88: 10 | C88: 2 | D88: 8 | E88: 1 | F88: 3/27/13 11:37 AM | G88: 3/27/13 11:50 AM | H88: 0 | I88: 12 | J88: 41 | L88: 761 | M88: 3
A89: A8078063 | B89: 10 | C89: 2 | D89: 8 | E89: 1 | F89: 3/27/13 12:07 PM | G89: 3/27/13 12:19 PM | H89: 0 | I89: 12 | J89: 12 | L89: 732 | M89: 3
A90: A8078130 | B90: 10 | C90: 2 | D90: 8 | E90: 1 | F90: 4/18/13 11:07 AM | G90: 4/18/13 11:24 AM | H90: 0 | I90: 17 | J90: 6 | L90: 1026 | M90: 4
A91: A8078131 | B91: 10 | C91: 2 | D91: 8 | E91: 1 | F91: 4/18/13 11:37 AM | G91: 4/18/13 11:47 AM | H91: 0 | I91: 9 | J91: 49 | L91: 589 | M91: 4
A92: A8078124 | B92: 10 | C92: 2 | D92: 8 | E92: 1 | F92: 4/17/13 9:51 AM | G92: 4/17/13 10:35 AM | H92: 0 | I92: 44 | J92: 3 | L92: 2643 | M92: 4
A93: A8078117 | B93: 10 | C93: 2 | D93: 8 | E93: 1 | F93: 4/15/13 11:31 AM | G93: 4/15/13 11:42 AM | H93: 0 | I93: 10 | J93: 50 | L93: 650 | M93: 4
A94: A8078118 | B94: 10 | C94: 2 | D94: 8 | E94: 1 | F94: 4/15/13 11:57 AM | G94: 4/15/13 12:06 PM | H94: 0 | I94: 8 | J94: 18 | L94: 498 | M94: 4
A95: A8078119 | B95: 10 | C95: 2 | D95: 8 | E95: 1 | F95: 4/15/13 12:21 PM | G95: 4/15/13 12:29 PM | H95: 0 | I95: 8 | J95: 43 | L95: 523 | M95: 4
A96: A8078128 | B96: 10 | C96: 2 | D96: 8 | E96: 1 | F96: 4/17/13 2:21 PM | G96: 4/17/13 2:28 PM | H96: 0 | I96: 7 | J96: 18 | L96: 438 | M96: 4
A97: A8078049 | B97: 10 | C97: 2 | D97: 8 | E97: 1 | F97: 3/25/13 10:18 AM | G97: 3/25/13 10:22 AM | H97: 0 | I97: 4 | J97: 19 | L97: 259 | M97: 3
A98: A8078050 | B98: 10 | C98: 2 | D98: 8 | E98: 1 | F98: 3/25/13 10:23 AM | G98: 3/25/13 10:36 AM | H98: 0 | I98: 12 | J98: 37 | L98: 757 | M98: 3
A99: A8078035 | B99: 10 | C99: 2 | D99: 8 | E99: 1 | F99: 3/20/13 3:30 PM | G99: 3/20/13 3:39 PM | H99: 0 | I99: 8 | J99: 46 | L99: 526 | M99: 3
A100: A8078034 | B100: 10 | C100: 2 | D100: 8 | E100: 1 | F100: 3/20/13 2:24 PM | G100: 3/20/13 2:31 PM | H100: 0 | I100: 6 | J100: 36 | L100: 396 | M100: 3
A101: A8078038 | B101: 10 | C101: 2 | D101: 8 | E101: 1 | F101: 3/21/13 11:17 AM | G101: 3/21/13 11:24 AM | H101: 0 | I101: 7 | J101: 38 | L101: 458 | M101: 3
A102: A8078065 | B102: 13 | C102: 2 | D102: 8 | E102: 1 | F102: 3/27/13 12:22 PM | G102: 3/27/13 12:37 PM | H102: 0 | I102: 15 | J102: 22 | L102: 922 | M102: 3
A103: A8078066 | B103: 10 | C103: 2 | D103: 8 | E103: 1 | F103: 3/27/13 12:58 PM | G103: 3/27/13 1:06 PM | H103: 0 | I103: 7 | J103: 53 | L103: 473 | M103: 3
A104: A8078064 | B104: 10 | C104: 2 | D104: 8 | E104: 1 | F104: 3/27/13 12:08 PM | G104: 3/27/13 12:23 PM | H104: 0 | I104: 15 | J104: 1 | L104: 901 | M104: 3
A105: A8078058 | B105: 10 | C105: 2 | D105: 8 | E105: 1 | F105: 3/26/13 12:00 PM | G105: 3/26/13 12:25 PM | H105: 0 | I105: 24 | J105: 9 | L105: 1449 | M105: 3
A106: A8078032 | B106: 10 | C106: 2 | D106: 8 | E106: 1 | F106: 3/20/13 12:34 PM | G106: 3/20/13 1:00 PM | H106: 0 | I106: 25 | J106: 53 | L106: 1553 | M106: 3
A107: A8078033 | B107: 10 | C107: 2 | D107: 8 | E107: 1 | F107: 3/20/13 2:02 PM | G107: 3/20/13 2:16 PM | H107: 0 | I107: 14 | J107: 13 | L107: 853 | M107: 3
A108: A8078054 | B108: 10 | C108: 2 | D108: 8 | E108: 1 | F108: 3/25/13 2:46 PM | G108: 3/25/13 3:11 PM | H108: 0 | I108: 24 | J108: 15 | L108: 1455 | M108: 3
A109: A8078055 | B109: 10 | C109: 2 | D109: 8 | E109: 1 | F109: 3/25/13 3:43 PM | G109: 3/25/13 3:50 PM | H109: 0 | I109: 7 | J109: 2 | L109: 422 | M109: 3
A110: A8078059 | B110: 10 | C110: 2 | D110: 8 | E110: 1 | F110: 3/26/13 1:04 PM | G110: 3/26/13 1:19 PM | H110: 0 | I110: 14 | J110: 31 | L110: 871 | M110: 3
A111: A8078036 | B111: 10 | C111: 2 | D111: 8 | E111: 1 | F111: 3/21/13 9:58 AM | G111: 3/21/13 10:07 AM | H111: 0 | I111: 8 | J111: 43 | L111: 523 | M111: 3
A112: A8078029 | B112: 10 | C112: 2 | D112: 8 | E112: 1 | F112: 3/19/13 11:03 AM | G112: 3/19/13 11:13 AM | H112: 0 | I112: 9 | J112: 45 | L112: 585 | M112: 3
A113: A8078030 | B113: 10 | C113: 2 | D113: 8 | E113: 1 | F113: 3/19/13 11:08 AM | G113: 3/19/13 11:20 AM | H113: 0 | I113: 11 | J113: 47 | L113: 707 | M113: 3
A114: A8078048 | B114: 10 | C114: 2 | D114: 8 | E114: 1 | F114: 3/22/13 4:02 PM | G114: 3/22/13 4:15 PM | H114: 0 | I114: 12 | J114: 24 | L114: 744 | M114: 3
A115: A8078031 | B115: 10 | C115: 2 | D115: 8 | E115: 1 | F115: 3/19/13 11:33 AM | G115: 3/19/13 11:37 AM | H115: 0 | I115: 4 | J115: 47 | L115: 287 | M115: 3
A116: A8078056 | B116: 10 | C116: 2 | D116: 8 | E116: 1 | F116: 3/26/13 10:19 AM | G116: 3/26/13 11:03 AM | H116: 0 | I116: 43 | J116: 59 | L116: 2639 | M116: 3
A117: A8078057 | B117: 10 | C117: 2 | D117: 8 | E117: 1 | F117: 3/26/13 11:02 AM | G117: 3/26/13 11:13 AM | H117: 0 | I117: 10 | J117: 52 | L117: 652 | M117: 3
A118: A8078051 | B118: 10 | C118: 2 | D118: 8 | E118: 1 | F118: 3/25/13 11:00 AM | G118: 3/25/13 11:30 AM | H118: 0 | I118: 30 | J118: 23 | L118: 1823 | M118: 3
A119: A8078052 | B119: 10 | C119: 2 | D119: 8 | E119: 1 | F119: 3/25/13 11:20 AM | G119: 3/25/13 11:41 AM | H119: 0 | I119: 20 | J119: 46 | L119: 1246 | M119: 3
A120: A8077980 | B120: 10 | C120: 2 | D120: 8 | E120: 1 | F120: 2013-07-03T11:42:00 | G120: 2013-07-03T11:53:00 | H120: 0 | I120: 10 | J120: 58 | L120: 658 | M120: 3
A121: A8077984 | B121: 10 | C121: 2 | D121: 8 | E121: 1 | F121: 2013-08-03T10:28:00 | G121: 2013-08-03T10:40:00 | H121: 0 | I121: 11 | J121: 56 | L121: 716 | M121: 3
A122: A8077996 | B122: 10 | C122: 2 | D122: 8 | E122: 1 | F122: 2013-11-03T12:26:00 | G122: 2013-11-03T12:31:00 | H122: 0 | I122: 5 | J122: 22 | L122: 322 | M122: 3
A123: A8078024 | B123: 10 | C123: 2 | D123: 8 | E123: 1 | F123: 3/15/13 2:09 PM | G123: 3/15/13 2:16 PM | H123: 0 | I123: 7 | J123: 11 | L123: 431 | M123: 3
A124: A8078026 | B124: 10 | C124: 2 | D124: 8 | E124: 1 | F124: 3/15/13 2:21 PM | G124: 3/15/13 2:33 PM | H124: 0 | I124: 11 | J124: 59 | L124: 719 | M124: 3
A125: A8078027 | B125: 10 | C125: 2 | D125: 8 | E125: 1 | F125: 3/15/13 2:35 PM | G125: 3/15/13 2:49 PM | H125: 0 | I125: 13 | J125: 53 | L125: 833 | M125: 3
A126: A8078008 | B126: 10 | C126: 2 | D126: 8 | E126: 1 | F126: 2013-12-03T14:33:00 | G126: 2013-12-03T14:45:00 | H126: 0 | I126: 12 | J126: 24 | L126: 744 | M126: 3
A127: A8078013 | B127: 10 | C127: 2 | D127: 8 | E127: 1 | F127: 3/14/13 9:39 AM | G127: 3/14/13 10:02 AM | H127: 0 | I127: 22 | J127: 58 | L127: 1378 | M127: 3
A128: A8078014 | B128: 10 | C128: 2 | D128: 8 | E128: 1 | F128: 3/14/13 10:08 AM | G128: 3/14/13 10:21 AM | H128: 0 | I128: 12 | J128: 50 | L128: 770 | M128: 3
A129: A8078015 | B129: 10 | C129: 2 | D129: 8 | E129: 1 | F129: 3/14/13 11:19 AM | G129: 3/14/13 11:27 AM | H129: 0 | I129: 7 | J129: 27 | L129: 447 | M129: 3
A130: A8077989 | B130: 10 | C130: 2 | D130: 8 | E130: 1 | F130: 2013-08-03T13:06:00 | G130: 2013-08-03T13:21:00 | H130: 0 | I130: 14 | J130: 59 | L130: 899 | M130: 3
A131: A8078003 | B131: 10 | C131: 2 | D131: 8 | E131: 1 | F131: 2013-12-03T11:30:00 | G131: 2013-12-03T11:42:00 | H131: 0 | I131: 12 | J131: 28 | L131: 748 | M131: 3
A132: A8078021 | B132: 10 | C132: 2 | D132: 8 | E132: 1 | F132: 3/15/13 10:31 AM | G132: 3/15/13 10:44 AM | H132: 0 | I132: 12 | J132: 58 | L132: 778 | M132: 3
A133: A8078028 | B133: 10 | C133: 2 | D133: 8 | E133: 1 | F133: 3/19/13 9:45 AM | G133: 3/19/13 9:55 AM | H133: 0 | I133: 9 | J133: 58 | L133: =H133*60*60+I133*60+J133 -> 598 | M133: 3
A134: A8077999 | B134: 10 | C134: 2 | D134: 8 | E134: 1 | F134: 2013-11-03T14:10:00 | G134: 2013-11-03T14:19:00 | H134: 0 | I134: 8 | J134: 6 | L134: 486 | M134: 3
A135: A8078000 | B135: 10 | C135: 2 | D135: 8 | E135: 1 | F135: 2013-11-03T14:32:00 | G135: 2013-11-03T14:34:00 | H135: 0 | I135: 2 | J135: 44 | L135: 164 | M135: 3
A136: A8078017 | B136: 10 | C136: 2 | D136: 8 | E136: 1 | F136: 3/14/13 1:09 PM | G136: 3/14/13 1:29 PM | H136: 0 | I136: 19 | J136: 34 | L136: 1174 | M136: 3
A137: A9210425 | B137: 10 | C137: 2 | D137: 8 | E137: 1 | F137: 3/14/13 12:10 PM | G137: 3/14/13 12:24 PM | H137: 0 | I137: 13 | J137: 26 | L137: 806 | M137: 3
A138: A8078016 | B138: 10 | C138: 2 | D138: 8 | E138: 1 | F138: 3/14/13 12:36 PM | G138: 3/14/13 12:42 PM | H138: 0 | I138: 5 | J138: 40 | L138: 340 | M138: 3
A139: A8077997 | B139: 10 | C139: 2 | D139: 8 | E139: 1 | F139: 2013-11-03T13:00:00 | G139: 2013-11-03T13:10:00 | H139: 0 | I139: 10 | J139: 20 | L139: 620 | M139: 3
A140: A8077998 | B140: 10 | C140: 2 | D140: 8 | E140: 1 | F140: 2013-11-03T12:42:00 | G140: 2013-11-03T13:13:00 | H140: 0 | I140: 31 | J140: 10 | L140: 1870 | M140: 3
A141: A8078004 | B141: 10 | C141: 2 | D141: 8 | E141: 1 | F141: 2013-12-03T12:14:00 | G141: 2013-12-03T12:18:00 | H141: 0 | I141: 4 | J141: 8 | L141: 248 | M141: 3
A142: A8078005 | B142: 10 | C142: 2 | D142: 8 | E142: 1 | F142: 2013-12-03T13:07:00 | G142: 2013-12-03T13:12:00 | H142: 0 | I142: 5 | J142: 18 | L142: 318 | M142: 3
A143: A8078006 | B143: 10 | C143: 2 | D143: 8 | E143: 1 | F143: 2013-12-03T13:16:00 | G143: 2013-12-03T13:22:00 | H143: 0 | I143: 5 | J143: 47 | L143: 347 | M143: 3
A144: A8078022 | B144: 10 | C144: 2 | D144: 8 | E144: 1 | F144: 3/15/13 11:19 AM | G144: 3/15/13 11:24 AM | H144: 0 | I144: 4 | J144: 45 | L144: 285 | M144: 3
A145: A8078023 | B145: 10 | C145: 2 | D145: 8 | E145: 1 | F145: 3/15/13 11:33 AM | G145: 3/15/13 11:42 AM | H145: 0 | I145: 9 | J145: 2 | L145: 542 | M145: 3
A146: A8077990 | B146: 10 | C146: 2 | D146: 8 | E146: 1 | F146: 2013-08-03T14:04:00 | G146: 2013-08-03T14:32:00 | H146: 0 | I146: 28 | J146: 29 | L146: 1709 | M146: 3
A147: A8078020 | B147: 10 | C147: 2 | D147: 8 | E147: 1 | F147: 3/15/13 9:38 AM | G147: 3/15/13 9:43 AM | H147: 0 | I147: 5 | J147: 17 | L147: 317 | M147: 3
A148: A8077991 | B148: 10 | C148: 2 | D148: 8 | E148: 1 | F148: 2013-08-03T15:14:00 | G148: 2013-08-03T15:32:00 | H148: 0 | I148: 18 | J148: 1 | L148: 1081 | M148: 3
A149: A8077992 | B149: 10 | C149: 2 | D149: 8 | E149: 1 | F149: 2013-08-03T15:34:00 | G149: 2013-08-03T15:40:00 | H149: 0 | I149: 6 | J149: 22 | L149: 382 | M149: 3
A150: A8078009 | B150: 10 | C150: 2 | D150: 8 | E150: 1 | F150: 3/13/13 11:27 AM | G150: 3/13/13 11:39 AM | H150: 0 | I150: 12 | J150: 18 | L150: 738 | M150: 3
A151: A8078011 | B151: 10 | C151: 2 | D151: 8 | E151: 1 | F151: 3/13/13 2:37 PM | G151: 3/13/13 2:54 PM | H151: 0 | I151: 16 | J151: 3 | L151: 963 | M151: 3
A152: A8078012 | B152: 10 | C152: 2 | D152: 8 | E152: 1 | F152: 3/13/13 2:53 PM | G152: 3/13/13 3:08 PM | H152: 0 | I152: 15 | J152: 43 | L152: 943 | M152: 3
A153: A8078018 | B153: 10 | C153: 2 | D153: 8 | E153: 1 | F153: 3/14/13 2:01 PM | G153: 3/14/13 2:20 PM | H153: 0 | I153: 19 | J153: 41 | L153: 1181 | M153: 3
A154: A8077985 | B154: 10 | C154: 2 | D154: 8 | E154: 1 | F154: 2013-08-03T12:01:00 | G154: 2013-08-03T12:08:00 | H154: 0 | I154: 7 | J154: 29 | L154: 449 | M154: 3
A155: A8077986 | B155: 10 | C155: 2 | D155: 8 | E155: 1 | F155: 2013-08-03T12:19:00 | G155: 2013-08-03T12:29:00 | H155: 0 | I155: 10 | J155: 4 | L155: 604 | M155: 3
A156: A8077987 | B156: 10 | C156: 2 | D156: 8 | E156: 1 | F156: 2013-08-03T12:36:00 | G156: 2013-08-03T12:44:00 | H156: 0 | I156: 8 | J156: 7 | L156: 487 | M156: 3
A157: A8078010 | B157: 10 | C157: 2 | D157: 8 | E157: 1 | F157: 3/13/13 11:59 AM | G157: 3/13/13 12:07 PM | H157: 0 | I157: 7 | J157: 50 | L157: 470 | M157: 3
A158: A8077982 | B158: 10 | C158: 2 | D158: 8 | E158: 1 | F158: 2013-07-03T14:25:00 | G158: 2013-07-03T14:39:00 | H158: 0 | I158: 13 | J158: 49 | L158: 829 | M158: 3
A159: A8077983 | B159: 10 | C159: 2 | D159: 8 | E159: 1 | F159: 2013-07-03T15:29:00 | G159: 2013-07-03T15:41:00 | H159: 0 | I159: 12 | J159: 29 | L159: 749 | M159: 3
A160: A8077994 | B160: 10 | C160: 2 | D160: 8 | E160: 1 | F160: 2013-08-03T15:57:00 | G160: 2013-08-03T16:02:00 | H160: 0 | I160: 5 | J160: 2 | L160: 302 | M160: 3
A161: A8077995 | B161: 10 | C161: 2 | D161: 8 | E161: 1 | F161: 2013-08-03T16:09:00 | G161: 2013-08-03T16:15:00 | H161: 0 | I161: 6 | J161: 5 | L161: 365 | M161: 3
A162: A8077993 | B162: 10 | C162: 2 | D162: 8 | E162: 1 | F162: 2013-08-03T15:28:00 | G162: 2013-08-03T15:48:00 | H162: 0 | I162: 20 | J162: 32 | L162: 1232 | M162: 3
A163: A8078001 | B163: 10 | C163: 2 | D163: 8 | E163: 1 | F163: 2013-12-03T10:43:00 | G163: 2013-12-03T11:16:00 | H163: 0 | I163: 33 | J163: 39 | L163: 2019 | M163: 3
A164: A8078019 | B164: 10 | C164: 2 | D164: 8 | E164: 1 | F164: 3/14/13 4:16 PM | G164: 3/14/13 4:27 PM | H164: 0 | I164: 11 | J164: 1 | L164: 661 | M164: 3
A165: A8078556 | B165: 10 | C165: 2 | D165: 8 | E165: 1 | F165: 7/30/13 9:26 AM | G165: 7/30/13 9:46 AM | H165: 0 | I165: 19 | J165: 31 | L165: 1171 | M165: 7
A166: A8078559 | B166: 10 | C166: 2 | D166: 8 | E166: 1 | F166: 7/30/13 1:08 PM | G166: 7/30/13 1:49 PM | H166: 0 | I166: 40 | J166: 28 | L166: 2428 | M166: 7
A167: A8078563 | B167: 10 | C167: 2 | D167: 8 | E167: 1 | F167: 2013-01-08T10:53:00 | G167: 2013-01-08T11:03:00 | H167: 0 | I167: 10 | J167: 14 | L167: 614 | M167: 8
A168: A8078564 | B168: 10 | C168: 2 | D168: 8 | E168: 1 | F168: 2013-01-08T11:03:00 | G168: 2013-01-08T11:08:00 | H168: 0 | I168: 4 | J168: 58 | L168: 298 | M168: 8
A169: A8078570 | B169: 10 | C169: 2 | D169: 8 | E169: 1 | F169: 2013-02-08T09:52:00 | G169: 2013-02-08T10:04:00 | H169: 0 | I169: 11 | J169: 48 | L169: 708 | M169: 8
A170: A8078518 | B170: 10 | C170: 2 | D170: 8 | E170: 1 | F170: 7/18/13 11:01 AM | G170: 7/18/13 11:14 AM | H170: 0 | I170: 13 | J170: 0 | L170: 780 | M170: 7
A171: A8078546 | B171: 10 | C171: 2 | D171: 8 | E171: 1 | F171: 7/25/13 1:21 PM | G171: 7/25/13 1:24 PM | H171: 0 | I171: 3 | J171: 28 | L171: 208 | M171: 7
A172: A8078515 | B172: 10 | C172: 2 | D172: 8 | E172: 1 | F172: 7/17/13 3:16 PM | G172: 7/17/13 3:27 PM | H172: 0 | I172: 11 | J172: 24 | L172: 684 | M172: 7
A173: A8078519 | B173: 10 | C173: 2 | D173: 8 | E173: 1 | F173: 7/18/13 11:11 AM | G173: 7/18/13 11:37 AM | H173: 0 | I173: 26 | J173: 28 | L173: 1588 | M173: 7
A174: A8078520 | B174: 10 | C174: 2 | D174: 8 | E174: 1 | F174: 7/18/13 11:35 AM | G174: 7/18/13 11:42 AM | H174: 0 | I174: 7 | J174: 4 | L174: 424 | M174: 7
A175: A8078517 | B175: 10 | C175: 2 | D175: 8 | E175: 1 | F175: 7/18/13 10:21 AM | G175: 7/18/13 10:39 AM | H175: 0 | I175: 18 | J175: 37 | L175: 1117 | M175: 7
A176: A8078530 | B176: 10 | C176: 2 | D176: 8 | E176: 1 | F176: 7/22/13 2:35 PM | G176: 7/22/13 2:41 PM | H176: 0 | I176: 5 | J176: 39 | L176: 339 | M176: 7
A177: H8012193 | B177: 10 | C177: 2 | D177: 8 | E177: 1 | F177: 7/24/13 3:06 PM | G177: 7/24/13 3:09 PM | H177: 0 | I177: 3 | J177: 40 | L177: 220 | M177: 7
A178: A8078514 | B178: 10 | C178: 2 | D178: 8 | E178: 1 | F178: 7/17/13 1:42 PM | G178: 7/17/13 2:00 PM | H178: 0 | I178: 17 | J178: 59 | L178: 1079 | M178: 7
A179: A8078566 | B179: 10 | C179: 2 | D179: 8 | E179: 1 | F179: 2013-01-08T12:00:00 | G179: 2013-01-08T12:04:00 | H179: 0 | I179: 4 | J179: 31 | L179: 271 | M179: 8
A180: A8078516 | B180: 10 | C180: 2 | D180: 8 | E180: 1 | F180: 7/18/13 9:44 AM | G180: 7/18/13 9:52 AM | H180: 0 | I180: 8 | J180: 2 | L180: 482 | M180: 7
A181: A8078562 | B181: 10 | C181: 2 | D181: 8 | E181: 1 | F181: 2013-01-08T10:28:00 | G181: 2013-01-08T10:33:00 | H181: 0 | I181: 5 | J181: 15 | L181: 315 | M181: 8
A182: A8078567 | B182: 10 | C182: 2 | D182: 8 | E182: 1 | F182: 2013-01-08T12:20:00 | G182: 2013-01-08T12:36:00 | H182: 0 | I182: 16 | J182: 23 | L182: 983 | M182: 8
A183: A8078548 | B183: 10 | C183: 2 | D183: 8 | E183: 1 | F183: 7/25/13 2:44 PM | G183: 7/25/13 2:54 PM | H183: 0 | I183: 10 | J183: 18 | L183: 618 | M183: 7
A184: A8078545 | B184: 10 | C184: 2 | D184: 8 | E184: 1 | F184: 7/25/13 12:59 PM | G184: 7/25/13 1:08 PM | H184: 0 | I184: 9 | J184: 20 | L184: 560 | M184: 7
A185: A8078541 | B185: 10 | C185: 2 | D185: 8 | E185: 1 | F185: 7/25/13 9:48 AM | G185: 7/25/13 10:05 AM | H185: 0 | I185: 16 | J185: 5 | L185: 965 | M185: 7
A186: A8078509 | B186: 10 | C186: 2 | D186: 8 | E186: 1 | F186: 7/17/13 10:03 AM | G186: 7/17/13 10:15 AM | H186: 0 | I186: 12 | J186: 7 | L186: 727 | M186: 7
A187: A8078511 | B187: 10 | C187: 2 | D187: 8 | E187: 1 | F187: 7/17/13 10:51 AM | G187: 7/17/13 11:09 AM | H187: 0 | I187: 17 | J187: 22 | L187: 1042 | M187: 7
A188: A8078522 | B188: 10 | C188: 2 | D188: 8 | E188: 1 | F188: 7/18/13 2:54 PM | G188: 7/18/13 3:11 PM | H188: 0 | I188: 16 | J188: 38 | L188: 998 | M188: 7
A189: A8078507 | B189: 10 | C189: 2 | D189: 8 | E189: 1 | F189: 7/16/13 11:42 AM | G189: 7/16/13 11:54 AM | H189: 0 | I189: 11 | J189: 55 | L189: 715 | M189: 7
A190: A8078534 | B190: 10 | C190: 2 | D190: 8 | E190: 1 | F190: 7/23/13 1:48 PM | G190: 7/23/13 2:03 PM | H190: 0 | I190: 14 | J190: 57 | L190: 897 | M190: 7
A191: A8078550 | B191: 10 | C191: 2 | D191: 8 | E191: 1 | F191: 7/26/13 12:19 PM | G191: 7/26/13 12:27 PM | H191: 0 | I191: 8 | J191: 2 | L191: 482 | M191: 7
A192: A7411318 | B192: 13 | C192: 2 | D192: 8 | E192: 1 | F192: 7/25/13 3:18 PM | G192: 7/25/13 3:58 PM | H192: 0 | I192: 40 | J192: 6 | L192: 2406 | M192: 7
A193: A8078533 | B193: 10 | C193: 2 | D193: 8 | E193: 1 | F193: 7/23/13 11:51 AM | G193: 7/23/13 12:13 PM | H193: 0 | I193: 22 | J193: 17 | L193: 1337 | M193: 7
A194: A8078508 | B194: 10 | C194: 2 | D194: 8 | E194: 1 | F194: 7/16/13 2:08 PM | G194: 7/16/13 2:19 PM | H194: 0 | I194: 10 | J194: 39 | L194: 639 | M194: 7
A195: A8078527 | B195: 10 | C195: 2 | D195: 8 | E195: 1 | F195: 7/19/13 2:47 PM | G195: 7/19/13 2:59 PM | H195: 0 | I195: 12 | J195: 25 | L195: 745 | M195: 7
A196: A8078558 | B196: 10 | C196: 2 | D196: 8 | E196: 1 | F196: 7/30/13 1:03 PM | G196: 7/30/13 1:19 PM | H196: 0 | I196: 15 | J196: 54 | L196: 954 | M196: 7
A197: A8078560 | B197: 10 | C197: 2 | D197: 8 | E197: 1 | F197: 2013-01-08T09:25:00 | G197: 2013-01-08T09:33:00 | H197: 0 | I197: 7 | J197: 27 | L197: =H197*60*60+I197*60+J197 -> 447 | M197: 8
A198: A8078561 | B198: 10 | C198: 2 | D198: 8 | E198: 1 | F198: 2013-01-08T09:43:00 | G198: 2013-01-08T10:01:00 | H198: 0 | I198: 18 | J198: 23 | L198: 1103 | M198: 8
A199: A8078553 | B199: 10 | C199: 2 | D199: 8 | E199: 1 | F199: 7/26/13 2:37 PM | G199: 7/26/13 2:41 PM | H199: 0 | I199: 3 | J199: 47 | L199: 227 | M199: 7
A200: H8012194 | B200: 10 | C200: 2 | D200: 8 | E200: 1 | F200: 7/26/13 3:08 PM | G200: 7/26/13 3:29 PM | H200: 0 | I200: 21 | J200: 1 | L200: 1261 | M200: 7
... 1144 more rows

Sheet 2014
A1: REPORTE DE TIEMPO DE TRÁMITE DE ALTA PATRONAL | L1: TOTAL DE REGISTOS ENCONTRADOS: 682
A2: REG PATRONAL | B2: MODALIDAD | C2: CIZ | D2: DELEGACIÓN | E2: SUBDELEGACIÓN | F2: HORA | H2: TIEMPO DE TRÁMITE | L2: Segundos totales | M2: Mes en que se realizó
F3: INICIO | G3: TERMINO | H3: HORAS | I3: MINUTOS | J3: SEGUNDOS | O3: 2014
A4: A8079721 | B4: 10 | C4: 2 | D4: 8 | E4: 1 | F4: 2014-07-05T10:58:00 | G4: 2014-07-05T11:01:00 | H4: 0 | I4: 3 | J4: 30 | L4: =H4*60*60+I4*60+J4 -> 210 | M4: 5 | O4: Mes | P4: Promedio Mes | Q4: 14 10:58 AM | R4: =TRIM(Q4) -> 14 10:58 AM
A5: A8079514 | B5: 10 | C5: 2 | D5: 8 | E5: 1 | F5: 3/25/14 10:01 AM | G5: 3/25/14 10:17 AM | H5: 0 | I5: 16 | J5: 11 | L5: =H5*60*60+I5*60+J5 -> 971 | M5: 3 | O5: Enero | P5: =AVERAGEIF(cuatro,"=1",tiempocuatro) -> 672.1209677 | Q5: 14 10:01 AM | R5: =TRIM(Q5) -> 14 10:01 AM
A6: A8079605 | B6: 10 | C6: 2 | D6: 8 | E6: 1 | F6: 2014-10-04T10:56:00 | G6: 2014-10-04T11:20:00 | H6: 0 | I6: 23 | J6: 21 | L6: 1401 | M6: 4 | O6: Febrero | P6: =AVERAGEIF(cuatro,"=2",tiempocuatro) -> 661.6568047 | Q6: 14 10:56 AM | R6: 14 10:56 AM
A7: A8079345 | B7: 10 | C7: 2 | D7: 8 | E7: 1 | F7: 2/21/14 1:52 PM | G7: 2/21/14 2:06 PM | H7: 0 | I7: 13 | J7: 55 | L7: 835 | M7: 2 | O7: Marzo | P7: =AVERAGEIF(cuatro,"=3",tiempocuatro) -> 829.3424658 | Q7: 14 1:52 PM | R7: 14 1:52 PM
A8: A8079500 | B8: 10 | C8: 2 | D8: 8 | E8: 1 | F8: 3/21/14 12:15 PM | G8: 3/21/14 12:22 PM | H8: 0 | I8: 6 | J8: 46 | L8: 406 | M8: 3 | O8: Abril | P8: =AVERAGEIF(cuatro,"=4",tiempocuatro) -> 1122.838028 | Q8: 14 12:15 PM | R8: 14 12:15 PM
A9: A8079633 | B9: 10 | C9: 2 | D9: 8 | E9: 1 | F9: 4/15/14 2:38 PM | G9: 4/15/14 3:00 PM | H9: 0 | I9: 22 | J9: 19 | L9: 1339 | M9: 4 | O9: Mayo | P9: =AVERAGEIF(cuatro,"=5",tiempocuatro) -> 1223.277228 | Q9: 14 2:38 PM | R9: 14 2:38 PM
A10: A8079574 | B10: 10 | C10: 2 | D10: 8 | E10: 1 | F10: 2014-04-04T13:36:00 | G10: 2014-04-04T13:47:00 | H10: 0 | I10: 10 | J10: 58 | L10: 658 | M10: 4 | Q10: 14 1:36 PM | R10: 14 1:36 PM
A11: A8079693 | B11: 10 | C11: 2 | D11: 8 | E11: 1 | F11: 4/29/14 1:22 PM | G11: 4/29/14 1:39 PM | H11: 0 | I11: 16 | J11: 38 | L11: 998 | M11: 4 | Q11: 14 1:22 PM | R11: 14 1:22 PM
A12: A8079455 | B12: 10 | C12: 2 | D12: 8 | E12: 1 | F12: 3/13/14 11:04 AM | G12: 3/13/14 11:13 AM | H12: 0 | I12: 8 | J12: 55 | L12: 535 | M12: 3 | Q12: 14 11:04 AM | R12: 14 11:04 AM
A13: A8079585 | B13: 10 | C13: 2 | D13: 8 | E13: 1 | F13: 2014-08-04T13:43:00 | G13: 2014-08-04T14:03:00 | H13: 0 | I13: 19 | J13: 59 | L13: 1199 | M13: 4 | Q13: 14 1:43 PM | R13: 14 1:43 PM
A14: A8079691 | B14: 10 | C14: 2 | D14: 8 | E14: 1 | F14: 4/29/14 11:11 AM | G14: 4/29/14 11:20 AM | H14: 0 | I14: 8 | J14: 44 | L14: 524 | M14: 4 | Q14: 14 11:11 AM | R14: 14 11:11 AM
A15: A8079587 | B15: 10 | C15: 2 | D15: 8 | E15: 1 | F15: 2014-08-04T15:12:00 | G15: 2014-08-04T15:21:00 | H15: 0 | I15: 8 | J15: 43 | L15: 523 | M15: 4 | Q15: 14 3:12 PM | R15: 14 3:12 PM
A16: A8079483 | B16: 10 | C16: 2 | D16: 8 | E16: 1 | F16: 3/20/14 9:17 AM | G16: 3/20/14 9:36 AM | H16: 0 | I16: 18 | J16: 39 | L16: 1119 | M16: 3 | Q16: 14 9:17 AM | R16: 14 9:17 AM
A17: A8079282 | B17: 10 | C17: 2 | D17: 8 | E17: 1 | F17: 2/13/14 10:56 AM | G17: 2/13/14 11:05 AM | H17: 0 | I17: 9 | J17: 6 | L17: 546 | M17: 2 | Q17: 14 10:56 AM | R17: 14 10:56 AM
A18: A8079597 | B18: 10 | C18: 2 | D18: 8 | E18: 1 | F18: 2014-09-04T12:02:00 | G18: 2014-09-04T12:25:00 | H18: 0 | I18: 22 | J18: 22 | L18: 1342 | M18: 4 | Q18: 14 12:02 PM | R18: 14 12:02 PM
A19: A8079598 | B19: 10 | C19: 2 | D19: 8 | E19: 1 | F19: 2014-09-04T12:13:00 | G19: 2014-09-04T12:31:00 | H19: 0 | I19: 17 | J19: 32 | L19: 1052 | M19: 4 | Q19: 14 12:13 PM | R19: 14 12:13 PM
A20: A8079694 | B20: 10 | C20: 2 | D20: 8 | E20: 1 | F20: 4/29/14 2:59 PM | G20: 4/29/14 3:08 PM | H20: 0 | I20: 8 | J20: 49 | L20: 529 | M20: 4 | Q20: 14 2:59 PM | R20: 14 2:59 PM
A21: A8079377 | B21: 10 | C21: 2 | D21: 8 | E21: 1 | F21: 2/27/14 1:01 PM | G21: 2/27/14 1:25 PM | H21: 0 | I21: 24 | J21: 34 | L21: 1474 | M21: 2 | Q21: 14 1:01 PM | R21: 14 1:01 PM
A22: A8079289 | B22: 10 | C22: 2 | D22: 8 | E22: 1 | F22: 2/14/14 9:29 AM | G22: 2/14/14 9:40 AM | H22: 0 | I22: 10 | J22: 40 | L22: 640 | M22: 2 | Q22: 14 9:29 AM | R22: 14 9:29 AM
A23: A8079601 | B23: 10 | C23: 2 | D23: 8 | E23: 1 | F23: 2014-09-04T16:33:00 | G23: 2014-09-04T16:35:00 | H23: 0 | I23: 2 | J23: 18 | L23: 138 | M23: 4 | Q23: 14 4:33 PM | R23: 14 4:33 PM
A24: A8079545 | B24: 10 | C24: 2 | D24: 8 | E24: 1 | F24: 3/31/14 9:20 AM | G24: 3/31/14 9:47 AM | H24: 0 | I24: 26 | J24: 57 | L24: 1617 | M24: 3 | Q24: 14 9:20 AM | R24: 14 9:20 AM
A25: A8079349 | B25: 10 | C25: 2 | D25: 8 | E25: 1 | F25: 2/24/14 11:28 AM | G25: 2/24/14 11:31 AM | H25: 0 | I25: 3 | J25: 24 | L25: 204 | M25: 2 | Q25: 14 11:28 AM | R25: 14 11:28 AM
A26: A8079611 | B26: 10 | C26: 2 | D26: 8 | E26: 1 | F26: 2014-11-04T10:42:00 | G26: 2014-11-04T10:54:00 | H26: 0 | I26: 11 | J26: 30 | L26: 690 | M26: 4 | Q26: 14 10:42 AM | R26: 14 10:42 AM
A27: A8079403 | B27: 10 | C27: 2 | D27: 8 | E27: 1 | F27: 2014-05-03T13:20:00 | G27: 2014-05-03T13:43:00 | H27: 0 | I27: 23 | J27: 36 | L27: 1416 | M27: 3 | Q27: 14 1:20 PM | R27: 14 1:20 PM
A28: A8079620 | B28: 10 | C28: 2 | D28: 8 | E28: 1 | F28: 4/14/14 11:29 AM | G28: 4/14/14 11:38 AM | H28: 0 | I28: 9 | J28: 6 | L28: 546 | M28: 4 | Q28: 14 11:29 AM | R28: 14 11:29 AM
A29: A8079632 | B29: 10 | C29: 2 | D29: 8 | E29: 1 | F29: 4/15/14 1:39 PM | G29: 4/15/14 2:33 PM | H29: 0 | I29: 53 | J29: 57 | L29: 3237 | M29: 4 | Q29: 14 1:39 PM | R29: 14 1:39 PM
A30: A8079710 | B30: 10 | C30: 2 | D30: 8 | E30: 1 | F30: 2014-02-05T14:17:00 | G30: 2014-02-05T14:30:00 | H30: 0 | I30: 13 | J30: 29 | L30: 809 | M30: 5 | Q30: 14 2:17 PM | R30: 14 2:17 PM
A31: A8079493 | B31: 10 | C31: 2 | D31: 8 | E31: 1 | F31: 3/21/14 8:27 AM | G31: 3/21/14 8:47 AM | H31: 0 | I31: 19 | J31: 46 | L31: 1186 | M31: 3 | Q31: 14 8:27 AM | R31: 14 8:27 AM
A32: A8079333 | B32: 10 | C32: 2 | D32: 8 | E32: 1 | F32: 2/21/14 9:56 AM | G32: 2/21/14 10:02 AM | H32: 0 | I32: 6 | J32: 31 | L32: 391 | M32: 2 | Q32: 14 9:56 AM | R32: 14 9:56 AM
A33: A8079715 | B33: 10 | C33: 2 | D33: 8 | E33: 1 | F33: 2014-06-05T10:11:00 | G33: 2014-06-05T10:22:00 | H33: 0 | I33: 11 | J33: 27 | L33: 687 | M33: 5 | Q33: 14 10:11 AM | R33: 14 10:11 AM
A34: A8079335 | B34: 10 | C34: 2 | D34: 8 | E34: 1 | F34: 2/21/14 10:19 AM | G34: 2/21/14 10:30 AM | H34: 0 | I34: 11 | J34: 21 | L34: 681 | M34: 2 | Q34: 14 10:19 AM | R34: 14 10:19 AM
A35: A8079494 | B35: 10 | C35: 2 | D35: 8 | E35: 1 | F35: 3/21/14 9:18 AM | G35: 3/21/14 9:33 AM | H35: 0 | I35: 14 | J35: 53 | L35: 893 | M35: 3 | Q35: 14 9:18 AM | R35: 14 9:18 AM
A36: A8079375 | B36: 10 | C36: 2 | D36: 8 | E36: 1 | F36: 2/27/14 12:13 PM | G36: 2/27/14 12:28 PM | H36: 0 | I36: 14 | J36: 43 | L36: 883 | M36: 2 | Q36: 14 12:13 PM | R36: 14 12:13 PM
A37: A8079378 | B37: 10 | C37: 2 | D37: 8 | E37: 1 | F37: 2/27/14 1:35 PM | G37: 2/27/14 1:39 PM | H37: 0 | I37: 4 | J37: 22 | L37: 262 | M37: 2 | Q37: 14 1:35 PM | R37: 14 1:35 PM
A38: A8079410 | B38: 10 | C38: 2 | D38: 8 | E38: 1 | F38: 2014-06-03T14:30:00 | G38: 2014-06-03T14:45:00 | H38: 0 | I38: 14 | J38: 36 | L38: 876 | M38: 3 | Q38: 14 2:30 PM | R38: 14 2:30 PM
A39: A8079720 | B39: 10 | C39: 2 | D39: 8 | E39: 1 | F39: 2014-07-05T10:08:00 | G39: 2014-07-05T10:19:00 | H39: 0 | I39: 11 | J39: 10 | L39: 670 | M39: 5 | Q39: 14 10:08 AM | R39: 14 10:08 AM
A40: A8079554 | B40: 10 | C40: 2 | D40: 8 | E40: 1 | F40: 2014-01-04T13:52:00 | G40: 2014-01-04T14:17:00 | H40: 0 | I40: 25 | J40: 5 | L40: 1505 | M40: 4 | Q40: 14 1:52 PM | R40: 14 1:52 PM
A41: A8079336 | B41: 10 | C41: 2 | D41: 8 | E41: 1 | F41: 2/21/14 11:06 AM | G41: 2/21/14 11:12 AM | H41: 0 | I41: 5 | J41: 51 | L41: 351 | M41: 2 | Q41: 14 11:06 AM | R41: 14 11:06 AM
A42: A8079713 | B42: 10 | C42: 2 | D42: 8 | E42: 1 | F42: 2014-05-05T13:14:00 | G42: 2014-05-05T13:48:00 | H42: 0 | I42: 33 | J42: 56 | L42: 2036 | M42: 5 | Q42: 14 1:14 PM | R42: 14 1:14 PM
A43: A8079564 | B43: 10 | C43: 2 | D43: 8 | E43: 1 | F43: 2014-03-04T12:36:00 | G43: 2014-03-04T12:39:00 | H43: 0 | I43: 3 | J43: 11 | L43: 191 | M43: 4 | Q43: 14 12:36 PM | R43: 14 12:36 PM
A44: A8079719 | B44: 10 | C44: 2 | D44: 8 | E44: 1 | F44: 2014-06-05T13:21:00 | G44: 2014-06-05T13:38:00 | H44: 0 | I44: 16 | J44: 54 | L44: 1014 | M44: 5 | Q44: 14 1:21 PM | R44: 14 1:21 PM
A45: A8079727 | B45: 10 | C45: 2 | D45: 8 | E45: 1 | F45: 2014-07-05T14:20:00 | G45: 2014-07-05T14:53:00 | H45: 0 | I45: 32 | J45: 37 | L45: 1957 | M45: 5 | Q45: 14 2:20 PM | R45: 14 2:20 PM
A46: A8079273 | B46: 10 | C46: 2 | D46: 8 | E46: 1 | F46: 2014-12-02T09:55:00 | G46: 2014-12-02T10:00:00 | H46: 0 | I46: 4 | J46: 43 | L46: 283 | M46: 2 | Q46: 14 9:55 AM | R46: 14 9:55 AM
A47: A8079497 | B47: 10 | C47: 2 | D47: 8 | E47: 1 | F47: 3/21/14 10:37 AM | G47: 3/21/14 10:48 AM | H47: 0 | I47: 10 | J47: 42 | L47: 642 | M47: 3 | Q47: 14 10:37 AM | R47: 14 10:37 AM
A48: A8079563 | B48: 10 | C48: 2 | D48: 8 | E48: 1 | F48: 2014-03-04T11:16:00 | G48: 2014-03-04T11:23:00 | H48: 0 | I48: 7 | J48: 24 | L48: 444 | M48: 4 | Q48: 14 11:16 AM | R48: 14 11:16 AM
A49: A8079340 | B49: 10 | C49: 2 | D49: 8 | E49: 1 | F49: 2/21/14 12:00 PM | G49: 2/21/14 12:20 PM | H49: 0 | I49: 20 | J49: 24 | L49: 1224 | M49: 2 | Q49: 14 12:00 PM | R49: 14 12:00 PM
A50: A8079341 | B50: 10 | C50: 2 | D50: 8 | E50: 1 | F50: 2/21/14 12:21 PM | G50: 2/21/14 12:26 PM | H50: 0 | I50: 4 | J50: 46 | L50: 286 | M50: 2 | Q50: 14 12:21 PM | R50: 14 12:21 PM
A51: A8079386 | B51: 10 | C51: 2 | D51: 8 | E51: 1 | F51: 2/28/14 3:01 PM | G51: 2/28/14 3:16 PM | H51: 0 | I51: 14 | J51: 16 | L51: 856 | M51: 2 | Q51: 14 3:01 PM | R51: 14 3:01 PM
A52: A7411338 | B52: 10 | C52: 2 | D52: 8 | E52: 1 | F52: 3/21/14 11:21 AM | G52: 3/21/14 11:29 AM | H52: 0 | I52: 8 | J52: 5 | L52: 485 | M52: 3 | Q52: 14 11:21 AM | R52: 14 11:21 AM
A53: A8079358 | B53: 10 | C53: 2 | D53: 8 | E53: 1 | F53: 2/25/14 9:21 AM | G53: 2/25/14 9:37 AM | H53: 0 | I53: 15 | J53: 46 | L53: 946 | M53: 2 | Q53: 14 9:21 AM | R53: 14 9:21 AM
A54: A8079374 | B54: 10 | C54: 2 | D54: 8 | E54: 1 | F54: 2/27/14 11:59 AM | G54: 2/27/14 12:11 PM | H54: 0 | I54: 11 | J54: 14 | L54: 674 | M54: 2 | Q54: 14 11:59 AM | R54: 14 11:59 AM
A55: A8079346 | B55: 10 | C55: 2 | D55: 8 | E55: 1 | F55: 2/21/14 2:34 PM | G55: 2/21/14 2:44 PM | H55: 0 | I55: 9 | J55: 39 | L55: 579 | M55: 2 | Q55: 14 2:34 PM | R55: 14 2:34 PM
A56: A8079284 | B56: 10 | C56: 2 | D56: 8 | E56: 1 | F56: 2/13/14 11:52 AM | G56: 2/13/14 11:59 AM | H56: 0 | I56: 7 | J56: 34 | L56: 454 | M56: 2 | Q56: 14 11:52 AM | R56: 14 11:52 AM
A57: A8079342 | B57: 10 | C57: 2 | D57: 8 | E57: 1 | F57: 2/21/14 12:22 PM | G57: 2/21/14 12:33 PM | H57: 0 | I57: 11 | J57: 43 | L57: 703 | M57: 2 | Q57: 14 12:22 PM | R57: 14 12:22 PM
A58: A8079347 | B58: 10 | C58: 2 | D58: 8 | E58: 1 | F58: 2/21/14 3:21 PM | G58: 2/21/14 3:26 PM | H58: 0 | I58: 4 | J58: 50 | L58: 290 | M58: 2 | Q58: 14 3:21 PM | R58: 14 3:21 PM
A59: A8079317 | B59: 10 | C59: 2 | D59: 8 | E59: 1 | F59: 2/20/14 9:10 AM | G59: 2/20/14 9:18 AM | H59: 0 | I59: 7 | J59: 51 | L59: 471 | M59: 2 | Q59: 14 9:10 AM | R59: 14 9:10 AM
A60: A8079365 | B60: 10 | C60: 2 | D60: 8 | E60: 1 | F60: 2/25/14 1:55 PM | G60: 2/25/14 1:59 PM | H60: 0 | I60: 3 | J60: 31 | L60: 211 | M60: 2 | Q60: 14 1:55 PM | R60: 14 1:55 PM
A61: A8079290 | B61: 10 | C61: 2 | D61: 8 | E61: 1 | F61: 2/14/14 10:39 AM | G61: 2/14/14 10:41 AM | H61: 0 | I61: 2 | J61: 8 | L61: 128 | M61: 2 | Q61: 14 10:39 AM | R61: 14 10:39 AM
A62: A8079298 | B62: 10 | C62: 2 | D62: 8 | E62: 1 | F62: 2/17/14 11:08 AM | G62: 2/17/14 11:15 AM | H62: 0 | I62: 6 | J62: 37 | L62: 397 | M62: 2 | Q62: 14 11:08 AM | R62: 14 11:08 AM
A63: A8079343 | B63: 10 | C63: 2 | D63: 8 | E63: 1 | F63: 2/21/14 12:45 PM | G63: 2/21/14 12:52 PM | H63: 0 | I63: 6 | J63: 59 | L63: 419 | M63: 2 | Q63: 14 12:45 PM | R63: 14 12:45 PM
A64: A8079305 | B64: 10 | C64: 2 | D64: 8 | E64: 1 | F64: 2/18/14 1:02 PM | G64: 2/18/14 1:14 PM | H64: 0 | I64: 12 | J64: 24 | L64: 744 | M64: 2 | Q64: 14 1:02 PM | R64: 14 1:02 PM
A65: A8079308 | B65: 10 | C65: 2 | D65: 8 | E65: 1 | F65: 2/18/14 2:01 PM | G65: 2/18/14 2:06 PM | H65: 0 | I65: 5 | J65: 20 | L65: 320 | M65: 2 | Q65: 14 2:01 PM | R65: 14 2:01 PM
A66: A8079291 | B66: 10 | C66: 2 | D66: 8 | E66: 1 | F66: 2/14/14 11:21 AM | G66: 2/14/14 11:37 AM | H66: 0 | I66: 15 | J66: 1 | L66: 901 | M66: 2 | Q66: 14 11:21 AM | R66: 14 11:21 AM
A67: A8079295 | B67: 10 | C67: 2 | D67: 8 | E67: 1 | F67: 2/14/14 1:27 PM | G67: 2/14/14 1:43 PM | H67: 0 | I67: 15 | J67: 50 | L67: 950 | M67: 2 | Q67: 14 1:27 PM | R67: 14 1:27 PM
A68: A8079296 | B68: 10 | C68: 2 | D68: 8 | E68: 1 | F68: 2/14/14 1:35 PM | G68: 2/14/14 1:44 PM | H68: 0 | I68: 8 | J68: 31 | L68: 511 | M68: 2 | Q68: 14 1:35 PM | R68: 14 1:35 PM
A69: A8079313 | B69: 10 | C69: 2 | D69: 8 | E69: 1 | F69: 2/19/14 12:20 PM | G69: 2/19/14 12:39 PM | H69: 0 | I69: 18 | J69: 32 | L69: =H69*60*60+I69*60+J69 -> 1112 | M69: 2 | Q69: 14 12:20 PM | R69: =TRIM(Q69) -> 14 12:20 PM
A70: A8079303 | B70: 10 | C70: 2 | D70: 8 | E70: 1 | F70: 2/18/14 11:30 AM | G70: 2/18/14 11:49 AM | H70: 0 | I70: 19 | J70: 24 | L70: 1164 | M70: 2 | Q70: 14 11:30 AM | R70: 14 11:30 AM
A71: A8079304 | B71: 10 | C71: 2 | D71: 8 | E71: 1 | F71: 2/18/14 12:23 PM | G71: 2/18/14 1:13 PM | H71: 0 | I71: 50 | J71: 23 | L71: 3023 | M71: 2 | Q71: 14 12:23 PM | R71: 14 12:23 PM
A72: A7411334 | B72: 10 | C72: 2 | D72: 8 | E72: 1 | F72: 2/26/14 12:47 PM | G72: 2/26/14 12:54 PM | H72: 0 | I72: 7 | J72: 19 | L72: 439 | M72: 2 | Q72: 14 12:47 PM | R72: 14 12:47 PM
A73: A8079367 | B73: 10 | C73: 2 | D73: 8 | E73: 1 | F73: 2/26/14 10:14 AM | G73: 2/26/14 10:46 AM | H73: 0 | I73: 31 | J73: 11 | L73: 1871 | M73: 2 | Q73: 14 10:14 AM | R73: 14 10:14 AM
A74: A8079314 | B74: 10 | C74: 2 | D74: 8 | E74: 1 | F74: 2/19/14 1:04 PM | G74: 2/19/14 1:12 PM | H74: 0 | I74: 7 | J74: 56 | L74: 476 | M74: 2 | Q74: 14 1:04 PM | R74: 14 1:04 PM
A75: A8079324 | B75: 10 | C75: 2 | D75: 8 | E75: 1 | F75: 2/20/14 11:37 AM | G75: 2/20/14 11:42 AM | H75: 0 | I75: 4 | J75: 26 | L75: 266 | M75: 2 | Q75: 14 11:37 AM | R75: 14 11:37 AM
A76: A8079457 | B76: 10 | C76: 2 | D76: 8 | E76: 1 | F76: 3/13/14 12:11 PM | G76: 3/13/14 12:16 PM | H76: 0 | I76: 5 | J76: 12 | L76: 312 | M76: 3 | Q76: 14 12:11 PM | R76: 14 12:11 PM
A77: A8079538 | B77: 10 | C77: 2 | D77: 8 | E77: 1 | F77: 3/27/14 11:33 AM | G77: 3/27/14 11:46 AM | H77: 0 | I77: 12 | J77: 8 | L77: 728 | M77: 3 | Q77: 14 11:33 AM | R77: 14 11:33 AM
A78: A8079326 | B78: 10 | C78: 2 | D78: 8 | E78: 1 | F78: 2/20/14 12:19 PM | G78: 2/20/14 12:27 PM | H78: 0 | I78: 8 | J78: 28 | L78: 508 | M78: 2 | Q78: 14 12:19 PM | R78: 14 12:19 PM
A79: A8079319 | B79: 10 | C79: 2 | D79: 8 | E79: 1 | F79: 2/20/14 9:53 AM | G79: 2/20/14 10:09 AM | H79: 0 | I79: 16 | J79: 4 | L79: 964 | M79: 2 | Q79: 14 9:53 AM | R79: 14 9:53 AM
A80: A8079185 | B80: 10 | C80: 2 | D80: 8 | E80: 1 | F80: 1/24/14 10:07 AM | G80: 1/24/14 10:11 AM | H80: 0 | I80: 4 | J80: 11 | L80: 251 | M80: 1 | Q80: 14 10:07 AM | R80: 14 10:07 AM
A81: A8079188 | B81: 10 | C81: 2 | D81: 8 | E81: 1 | F81: 1/24/14 11:29 AM | G81: 1/24/14 11:45 AM | H81: 0 | I81: 15 | J81: 29 | L81: 929 | M81: 1 | Q81: 14 11:29 AM | R81: 14 11:29 AM
A82: A8079248 | B82: 10 | C82: 2 | D82: 8 | E82: 1 | F82: 2014-06-02T14:48:00 | G82: 2014-06-02T15:01:00 | H82: 0 | I82: 12 | J82: 23 | L82: 743 | M82: 2 | O82: 405 | Q82: 14 2:48 PM | R82: 14 2:48 PM
A83: A8079228 | B83: 10 | C83: 2 | D83: 8 | E83: 1 | F83: 2014-04-02T12:02:00 | G83: 2014-04-02T12:20:00 | H83: 0 | I83: 18 | J83: 10 | L83: 1090 | M83: 2 | O83: 666 | Q83: 14 12:02 PM | R83: 14 12:02 PM
A84: R3910369 | B84: 13 | C84: 2 | D84: 8 | E84: 1 | F84: 4/29/14 3:44 PM | G84: 4/29/14 3:52 PM | H84: 0 | I84: 8 | J84: 4 | L84: 484 | M84: 4 | O84: 1324 | Q84: 14 3:44 PM | R84: 14 3:44 PM
A85: A8079351 | B85: 10 | C85: 2 | D85: 8 | E85: 1 | F85: 2/24/14 11:51 AM | G85: 2/24/14 11:58 AM | H85: 0 | I85: 7 | J85: 14 | L85: 434 | M85: 2 | O85: 699 | Q85: 14 11:51 AM | R85: 14 11:51 AM
A86: A8079215 | B86: 10 | C86: 2 | D86: 8 | E86: 1 | F86: 1/30/14 12:56 PM | G86: 1/30/14 1:03 PM | H86: 0 | I86: 6 | J86: 45 | L86: 405 | M86: 1 | Q86: 14 12:56 PM | R86: 14 12:56 PM
A87: A7411333 | B87: 10 | C87: 2 | D87: 8 | E87: 1 | F87: 2/21/14 11:01 AM | G87: 2/21/14 11:23 AM | H87: 0 | I87: 22 | J87: 38 | L87: 1358 | M87: 2 | O87: 428 | Q87: 14 11:01 AM | R87: 14 11:01 AM
A88: A8079297 | B88: 10 | C88: 2 | D88: 8 | E88: 1 | F88: 2/14/14 2:57 PM | G88: 2/14/14 3:06 PM | H88: 0 | I88: 9 | J88: 5 | L88: 545 | M88: 2 | O88: 383 | Q88: 14 2:57 PM | R88: 14 2:57 PM
A89: A8079368 | B89: 10 | C89: 2 | D89: 8 | E89: 1 | F89: 2/26/14 11:46 AM | G89: 2/26/14 11:57 AM | H89: 0 | I89: 11 | J89: 12 | L89: 672 | M89: 2 | O89: 408 | Q89: 14 11:46 AM | R89: 14 11:46 AM
A90: A8079369 | B90: 10 | C90: 2 | D90: 8 | E90: 1 | F90: 2/26/14 12:24 PM | G90: 2/26/14 12:35 PM | H90: 0 | I90: 10 | J90: 45 | L90: 645 | M90: 2 | O90: 1045 | Q90: 14 12:24 PM | R90: 14 12:24 PM
A91: A8079315 | B91: 10 | C91: 2 | D91: 8 | E91: 1 | F91: 2/19/14 2:16 PM | G91: 2/19/14 2:31 PM | H91: 0 | I91: 14 | J91: 52 | L91: 892 | M91: 2 | O91: 371 | Q91: 14 2:16 PM | R91: 14 2:16 PM
A92: A8079337 | B92: 10 | C92: 2 | D92: 8 | E92: 1 | F92: 2/21/14 11:20 AM | G92: 2/21/14 11:35 AM | H92: 0 | I92: 14 | J92: 38 | L92: 878 | M92: 2 | O92: 449 | Q92: 14 11:20 AM | R92: 14 11:20 AM
A93: A8079338 | B93: 10 | C93: 2 | D93: 8 | E93: 1 | F93: 2/21/14 11:24 AM | G93: 2/21/14 11:36 AM | H93: 0 | I93: 12 | J93: 16 | L93: 736 | M93: 2 | O93: 234 | Q93: 14 11:24 AM | R93: 14 11:24 AM
A94: A8079362 | B94: 10 | C94: 2 | D94: 8 | E94: 1 | F94: 2/25/14 11:06 AM | G94: 2/25/14 11:33 AM | H94: 0 | I94: 27 | J94: 53 | L94: 1673 | M94: 2 | O94: 603 | Q94: 14 11:06 AM | R94: 14 11:06 AM
A95: A8079330 | B95: 10 | C95: 2 | D95: 8 | E95: 1 | F95: 2/20/14 2:01 PM | G95: 2/20/14 2:04 PM | H95: 0 | I95: 3 | J95: 16 | L95: 196 | M95: 2 | O95: 344 | Q95: 14 2:01 PM | R95: 14 2:01 PM
A96: A8079344 | B96: 10 | C96: 2 | D96: 8 | E96: 1 | F96: 2/21/14 1:36 PM | G96: 2/21/14 1:48 PM | H96: 0 | I96: 12 | J96: 22 | L96: 742 | M96: 2 | O96: 552 | Q96: 14 1:36 PM | R96: 14 1:36 PM
A97: A8079357 | B97: 10 | C97: 2 | D97: 8 | E97: 1 | F97: 2/24/14 3:21 PM | G97: 2/24/14 3:52 PM | H97: 0 | I97: 30 | J97: 29 | L97: 1829 | M97: 2 | O97: 618 | Q97: 14 3:21 PM | R97: 14 3:21 PM
A98: A8079318 | B98: 10 | C98: 2 | D98: 8 | E98: 1 | F98: 2/20/14 9:57 AM | G98: 2/20/14 10:04 AM | H98: 0 | I98: 7 | J98: 9 | L98: 429 | M98: 2 | O98: 469 | Q98: 14 9:57 AM | R98: 14 9:57 AM
A99: A8079373 | B99: 10 | C99: 2 | D99: 8 | E99: 1 | F99: 2/27/14 11:08 AM | G99: 2/27/14 11:28 AM | H99: 0 | I99: 19 | J99: 31 | L99: 1171 | M99: 2 | O99: 152 | Q99: 14 11:08 AM | R99: 14 11:08 AM
A100: A8079331 | B100: 10 | C100: 2 | D100: 8 | E100: 1 | F100: 2/20/14 2:06 PM | G100: 2/20/14 2:26 PM | H100: 0 | I100: 19 | J100: 47 | L100: 1187 | M100: 2 | O100: 273 | Q100: 14 2:06 PM | R100: 14 2:06 PM
A101: A8079339 | B101: 10 | C101: 2 | D101: 8 | E101: 1 | F101: 2/21/14 11:56 AM | G101: 2/21/14 12:09 PM | H101: 0 | I101: 13 | J101: 4 | L101: 784 | M101: 2 | O101: 864 | Q101: 14 11:56 AM | R101: 14 11:56 AM
A102: A8079320 | B102: 10 | C102: 2 | D102: 8 | E102: 1 | F102: 2/20/14 10:28 AM | G102: 2/20/14 10:38 AM | H102: 0 | I102: 9 | J102: 59 | L102: 599 | M102: 2 | O102: 659 | Q102: 14 10:28 AM | R102: 14 10:28 AM
A103: A8079334 | B103: 10 | C103: 2 | D103: 8 | E103: 1 | F103: 2/21/14 10:21 AM | G103: 2/21/14 10:25 AM | H103: 0 | I103: 3 | J103: 59 | L103: 239 | M103: 2 | O103: 877 | Q103: 14 10:21 AM | R103: 14 10:21 AM
A104: A8079219 | B104: 10 | C104: 2 | D104: 8 | E104: 1 | F104: 1/31/14 10:43 AM | G104: 1/31/14 10:55 AM | H104: 0 | I104: 11 | J104: 6 | L104: 666 | M104: 1 | Q104: 14 10:43 AM | R104: 14 10:43 AM
A105: A8079220 | B105: 10 | C105: 2 | D105: 8 | E105: 1 | F105: 1/31/14 10:33 AM | G105: 1/31/14 10:55 AM | H105: 0 | I105: 22 | J105: 4 | L105: 1324 | M105: 1 | Q105: 14 10:33 AM | R105: 14 10:33 AM
A106: A8079364 | B106: 10 | C106: 2 | D106: 8 | E106: 1 | F106: 2/25/14 12:48 PM | G106: 2/25/14 1:10 PM | H106: 0 | I106: 21 | J106: 55 | L106: 1315 | M106: 2 | O106: 153 | Q106: 14 12:48 PM | R106: 14 12:48 PM
A107: A8079322 | B107: 10 | C107: 2 | D107: 8 | E107: 1 | F107: 2/20/14 11:07 AM | G107: 2/20/14 11:12 AM | H107: 0 | I107: 5 | J107: 21 | L107: 321 | M107: 2 | O107: 923 | Q107: 14 11:07 AM | R107: 14 11:07 AM
A108: A8079683 | B108: 10 | C108: 2 | D108: 8 | E108: 1 | F108: 4/28/14 9:14 AM | G108: 4/28/14 9:27 AM | H108: 0 | I108: 13 | J108: 23 | L108: 803 | M108: 4 | O108: 759 | Q108: 14 9:14 AM | R108: 14 9:14 AM
A109: A8079371 | B109: 10 | C109: 2 | D109: 8 | E109: 1 | F109: 2/26/14 1:28 PM | G109: 2/26/14 1:39 PM | H109: 0 | I109: 10 | J109: 48 | L109: 648 | M109: 2 | O109: 355 | Q109: 14 1:28 PM | R109: 14 1:28 PM
A110: A8079328 | B110: 10 | C110: 2 | D110: 8 | E110: 1 | F110: 2/20/14 1:07 PM | G110: 2/20/14 1:26 PM | H110: 0 | I110: 19 | J110: 28 | L110: 1168 | M110: 2 | O110: 330 | Q110: 14 1:07 PM | R110: 14 1:07 PM
A111: A8079329 | B111: 10 | C111: 2 | D111: 8 | E111: 1 | F111: 2/20/14 1:34 PM | G111: 2/20/14 1:40 PM | H111: 0 | I111: 6 | J111: 37 | L111: 397 | M111: 2 | O111: 671 | Q111: 14 1:34 PM | R111: 14 1:34 PM
A112: A8079325 | B112: 10 | C112: 2 | D112: 8 | E112: 1 | F112: 2/20/14 11:56 AM | G112: 2/20/14 12:01 PM | H112: 0 | I112: 4 | J112: 54 | L112: 294 | M112: 2 | O112: 339 | Q112: 14 11:56 AM | R112: 14 11:56 AM
A113: A8079584 | B113: 10 | C113: 2 | D113: 8 | E113: 1 | F113: 2014-08-04T11:45:00 | G113: 2014-08-04T12:08:00 | H113: 0 | I113: 22 | J113: 40 | L113: 1360 | M113: 4 | O113: 813 | Q113: 14 11:45 AM | R113: 14 11:45 AM
A114: A8079327 | B114: 10 | C114: 2 | D114: 8 | E114: 1 | F114: 2/20/14 12:48 PM | G114: 2/20/14 1:08 PM | H114: 0 | I114: 19 | J114: 48 | L114: 1188 | M114: 2 | O114: 378 | Q114: 14 12:48 PM | R114: 14 12:48 PM
A115: A8079508 | B115: 10 | C115: 2 | D115: 8 | E115: 1 | F115: 3/24/14 11:03 AM | G115: 3/24/14 11:26 AM | H115: 0 | I115: 23 | J115: 46 | L115: 1426 | M115: 3 | O115: 407 | Q115: 14 11:03 AM | R115: 14 11:03 AM
A116: A8079509 | B116: 10 | C116: 2 | D116: 8 | E116: 1 | F116: 3/24/14 11:08 AM | G116: 3/24/14 11:39 AM | H116: 0 | I116: 31 | J116: 0 | L116: 1860 | M116: 3 | O116: 1585 | Q116: 14 11:08 AM | R116: 14 11:08 AM
A117: A8079245 | B117: 10 | C117: 2 | D117: 8 | E117: 1 | F117: 2014-06-02T12:21:00 | G117: 2014-06-02T12:27:00 | H117: 0 | I117: 5 | J117: 34 | L117: 334 | M117: 2 | O117: 677 | Q117: 14 12:21 PM | R117: 14 12:21 PM
A118: A8079332 | B118: 10 | C118: 2 | D118: 8 | E118: 1 | F118: 2/20/14 2:33 PM | G118: 2/20/14 2:38 PM | H118: 0 | I118: 4 | J118: 38 | L118: 278 | M118: 2 | O118: 2687 | Q118: 14 2:33 PM | R118: 14 2:33 PM
A119: A8079606 | B119: 10 | C119: 2 | D119: 8 | E119: 1 | F119: 2014-10-04T11:10:00 | G119: 2014-10-04T11:27:00 | H119: 0 | I119: 17 | J119: 1 | L119: 1021 | M119: 4 | O119: 3121 | Q119: 14 11:10 AM | R119: 14 11:10 AM
A120: A8079463 | B120: 10 | C120: 2 | D120: 8 | E120: 1 | F120: 3/14/14 10:20 AM | G120: 3/14/14 10:29 AM | H120: 0 | I120: 9 | J120: 28 | L120: 568 | M120: 3 | O120: 202 | Q120: 14 10:20 AM | R120: 14 10:20 AM
A121: A8079525 | B121: 10 | C121: 2 | D121: 8 | E121: 1 | F121: 3/26/14 10:55 AM | G121: 3/26/14 11:05 AM | H121: 0 | I121: 10 | J121: 22 | L121: 622 | M121: 3 | O121: 152 | Q121: 14 10:55 AM | R121: 14 10:55 AM
A122: A8079299 | B122: 10 | C122: 2 | D122: 8 | E122: 1 | F122: 2/17/14 11:25 AM | G122: 2/17/14 11:32 AM | H122: 0 | I122: 6 | J122: 35 | L122: 395 | M122: 2 | O122: 995 | Q122: 14 11:25 AM | R122: 14 11:25 AM
A123: A8079669 | B123: 10 | C123: 2 | D123: 8 | E123: 1 | F123: 4/24/14 12:21 PM | G123: 4/24/14 12:35 PM | H123: 0 | I123: 13 | J123: 42 | L123: 822 | M123: 4 | O123: 165 | Q123: 14 12:21 PM | R123: 14 12:21 PM
A124: A8079670 | B124: 10 | C124: 2 | D124: 8 | E124: 1 | F124: 4/24/14 12:47 PM | G124: 4/24/14 12:54 PM | H124: 0 | I124: 6 | J124: 41 | L124: 401 | M124: 4 | O124: 492 | Q124: 14 12:47 PM | R124: 14 12:47 PM
A125: A8079281 | B125: 10 | C125: 2 | D125: 8 | E125: 1 | F125: 2/13/14 10:47 AM | G125: 2/13/14 10:56 AM | H125: 0 | I125: 8 | J125: 49 | L125: 529 | M125: 2 | O125: 529 | Q125: 14 10:47 AM | R125: 14 10:47 AM
A126: A8079243 | B126: 10 | C126: 2 | D126: 8 | E126: 1 | F126: 2014-06-02T11:30:00 | G126: 2014-06-02T11:40:00 | H126: 0 | I126: 9 | J126: 49 | L126: 589 | M126: 2 | O126: 221 | Q126: 14 11:30 AM | R126: 14 11:30 AM
A127: A8079618 | B127: 10 | C127: 2 | D127: 8 | E127: 1 | F127: 4/14/14 9:44 AM | G127: 4/14/14 10:09 AM | H127: 0 | I127: 25 | J127: 14 | L127: 1514 | M127: 4 | O127: 668 | Q127: 14 9:44 AM | R127: 14 9:44 AM
A128: A8079674 | B128: 10 | C128: 2 | D128: 8 | E128: 1 | F128: 4/25/14 10:00 AM | G128: 4/25/14 10:07 AM | H128: 0 | I128: 7 | J128: 28 | L128: 448 | M128: 4 | O128: 906 | Q128: 14 10:00 AM | R128: 14 10:00 AM
A129: A8079348 | B129: 10 | C129: 2 | D129: 8 | E129: 1 | F129: 2/24/14 9:40 AM | G129: 2/24/14 9:46 AM | H129: 0 | I129: 6 | J129: 28 | L129: 388 | M129: 2 | O129: 209 | Q129: 14 9:40 AM | R129: 14 9:40 AM
A130: A8079467 | B130: 10 | C130: 2 | D130: 8 | E130: 1 | F130: 3/14/14 1:16 PM | G130: 3/14/14 1:24 PM | H130: 0 | I130: 8 | J130: 34 | L130: 514 | M130: 3 | O130: 433 | Q130: 14 1:16 PM | R130: 14 1:16 PM
A131: A8079680 | B131: 10 | C131: 2 | D131: 8 | E131: 1 | F131: 4/25/14 1:10 PM | G131: 4/25/14 1:22 PM | H131: 0 | I131: 11 | J131: 4 | L131: 664 | M131: 4 | O131: 165 | Q131: 14 1:10 PM | R131: 14 1:10 PM
A132: A8079503 | B132: 10 | C132: 2 | D132: 8 | E132: 1 | F132: 3/21/14 1:48 PM | G132: 3/21/14 2:08 PM | H132: 0 | I132: 19 | J132: 31 | L132: 1171 | M132: 3 | O132: 240 | Q132: 14 1:48 PM | R132: 14 1:48 PM
A133: A8079675 | B133: 10 | C133: 2 | D133: 8 | E133: 1 | F133: 4/25/14 10:25 AM | G133: 4/25/14 10:33 AM | H133: 0 | I133: 7 | J133: 50 | L133: =H133*60*60+I133*60+J133 -> 470 | M133: 4 | O133: 772 | Q133: 14 10:25 AM | R133: =TRIM(Q133) -> 14 10:25 AM
A134: A8079681 | B134: 10 | C134: 2 | D134: 8 | E134: 1 | F134: 4/25/14 1:24 PM | G134: 4/25/14 1:51 PM | H134: 0 | I134: 26 | J134: 56 | L134: 1616 | M134: 4 | O134: 467 | Q134: 14 1:24 PM | R134: 14 1:24 PM
A135: A8079676 | B135: 10 | C135: 2 | D135: 8 | E135: 1 | F135: 4/25/14 9:59 AM | G135: 4/25/14 10:36 AM | H135: 0 | I135: 37 | J135: 6 | L135: 2226 | M135: 4 | O135: 947 | Q135: 14 9:59 AM | R135: 14 9:59 AM
A136: A8079163 | B136: 10 | C136: 2 | D136: 8 | E136: 1 | F136: 1/21/14 9:42 AM | G136: 1/21/14 9:54 AM | H136: 0 | I136: 11 | J136: 39 | L136: 699 | M136: 1 | Q136: 14 9:42 AM | R136: 14 9:42 AM
A137: A8079218 | B137: 10 | C137: 2 | D137: 8 | E137: 1 | F137: 1/31/14 9:31 AM | G137: 1/31/14 9:57 AM | H137: 0 | I137: 26 | J137: 7 | L137: 1567 | M137: 1 | Q137: 14 9:31 AM | R137: 14 9:31 AM
A138: A8079199 | B138: 10 | C138: 2 | D138: 8 | E138: 1 | F138: 1/28/14 10:39 AM | G138: 1/28/14 10:47 AM | H138: 0 | I138: 7 | J138: 8 | L138: 428 | M138: 1 | Q138: 14 10:39 AM | R138: 14 10:39 AM
A139: A8079200 | B139: 10 | C139: 2 | D139: 8 | E139: 1 | F139: 1/28/14 10:51 AM | G139: 1/28/14 10:57 AM | H139: 0 | I139: 6 | J139: 23 | L139: 383 | M139: 1 | Q139: 14 10:51 AM | R139: 14 10:51 AM
A140: A8079679 | B140: 10 | C140: 2 | D140: 8 | E140: 1 | F140: 4/25/14 12:08 PM | G140: 4/25/14 12:13 PM | H140: 0 | I140: 4 | J140: 54 | L140: 294 | M140: 4 | O140: 717 | Q140: 14 12:08 PM | R140: 14 12:08 PM
A141: A8079678 | B141: 10 | C141: 2 | D141: 8 | E141: 1 | F141: 4/25/14 11:34 AM | G141: 4/25/14 11:48 AM | H141: 0 | I141: 14 | J141: 25 | L141: 865 | M141: 4 | O141: 216 | Q141: 14 11:34 AM | R141: 14 11:34 AM
A142: A8079567 | B142: 10 | C142: 2 | D142: 8 | E142: 1 | F142: 2014-04-04T09:28:00 | G142: 2014-04-04T09:45:00 | H142: 0 | I142: 17 | J142: 3 | L142: 1023 | M142: 4 | O142: 838 | Q142: 14 9:28 AM | R142: 14 9:28 AM
A143: A8079690 | B143: 10 | C143: 2 | D143: 8 | E143: 1 | F143: 4/28/14 1:44 PM | G143: 4/28/14 2:15 PM | H143: 0 | I143: 30 | J143: 22 | L143: 1822 | M143: 4 | O143: 759 | Q143: 14 1:44 PM | R143: 14 1:44 PM
A144: A8079352 | B144: 10 | C144: 2 | D144: 8 | E144: 1 | F144: 2/24/14 12:17 PM | G144: 2/24/14 12:21 PM | H144: 0 | I144: 4 | J144: 11 | L144: 251 | M144: 2 | O144: 758 | Q144: 14 12:17 PM | R144: 14 12:17 PM
A145: A8079572 | B145: 10 | C145: 2 | D145: 8 | E145: 1 | F145: 2014-04-04T13:00:00 | G145: 2014-04-04T13:13:00 | H145: 0 | I145: 12 | J145: 11 | L145: 731 | M145: 4 | O145: 501 | Q145: 14 1:00 PM | R145: 14 1:00 PM
A146: A8079573 | B146: 10 | C146: 2 | D146: 8 | E146: 1 | F146: 2014-04-04T12:46:00 | G146: 2014-04-04T13:17:00 | H146: 0 | I146: 30 | J146: 55 | L146: 1855 | M146: 4 | O146: 101 | Q146: 14 12:46 PM | R146: 14 12:46 PM
A147: A8079666 | B147: 10 | C147: 2 | D147: 8 | E147: 1 | F147: 4/24/14 10:42 AM | G147: 4/24/14 10:57 AM | H147: 0 | I147: 15 | J147: 29 | L147: 929 | M147: 4 | O147: 184 | Q147: 14 10:42 AM | R147: 14 10:42 AM
A148: A8079294 | B148: 10 | C148: 2 | D148: 8 | E148: 1 | F148: 2/14/14 1:11 PM | G148: 2/14/14 1:25 PM | H148: 0 | I148: 13 | J148: 27 | L148: 807 | M148: 2 | O148: 615 | Q148: 14 1:11 PM | R148: 14 1:11 PM
A149: A8079354 | B149: 10 | C149: 2 | D149: 8 | E149: 1 | F149: 2/24/14 12:44 PM | G149: 2/24/14 12:51 PM | H149: 0 | I149: 7 | J149: 8 | L149: 428 | M149: 2 | O149: 763 | Q149: 14 12:44 PM | R149: 14 12:44 PM
A150: A8079667 | B150: 10 | C150: 2 | D150: 8 | E150: 1 | F150: 4/24/14 10:40 AM | G150: 4/24/14 11:05 AM | H150: 0 | I150: 25 | J150: 25 | L150: 1525 | M150: 4 | O150: 1017 | Q150: 14 10:40 AM | R150: 14 10:40 AM
A151: A8079673 | B151: 10 | C151: 2 | D151: 8 | E151: 1 | F151: 4/25/14 9:18 AM | G151: 4/25/14 9:27 AM | H151: 0 | I151: 9 | J151: 20 | L151: 560 | M151: 4 | O151: 314 | Q151: 14 9:18 AM | R151: 14 9:18 AM
A152: A8079366 | B152: 10 | C152: 2 | D152: 8 | E152: 1 | F152: 2/26/14 10:29 AM | G152: 2/26/14 10:34 AM | H152: 0 | I152: 4 | J152: 58 | L152: 298 | M152: 2 | O152: 560 | Q152: 14 10:29 AM | R152: 14 10:29 AM
A153: A8079229 | B153: 10 | C153: 2 | D153: 8 | E153: 1 | F153: 2014-04-02T14:53:00 | G153: 2014-04-02T15:08:00 | H153: 0 | I153: 15 | J153: 52 | L153: 952 | M153: 2 | O153: 530 | Q153: 14 2:53 PM | R153: 14 2:53 PM
A154: A8079255 | B154: 10 | C154: 2 | D154: 8 | E154: 1 | F154: 2014-07-02T14:53:00 | G154: 2014-07-02T15:07:00 | H154: 0 | I154: 13 | J154: 48 | L154: 828 | M154: 2 | O154: 388 | Q154: 14 2:53 PM | R154: 14 2:53 PM
A155: A8079279 | B155: 10 | C155: 2 | D155: 8 | E155: 1 | F155: 2014-12-02T13:22:00 | G155: 2014-12-02T13:33:00 | H155: 0 | I155: 11 | J155: 4 | L155: 664 | M155: 2 | O155: 2699 | Q155: 14 1:22 PM | R155: 14 1:22 PM
A156: A8079264 | B156: 10 | C156: 2 | D156: 8 | E156: 1 | F156: 2014-11-02T09:19:00 | G156: 2014-11-02T09:23:00 | H156: 0 | I156: 4 | J156: 6 | L156: 246 | M156: 2 | O156: 743 | Q156: 14 9:19 AM | R156: 14 9:19 AM
A157: A8079240 | B157: 10 | C157: 2 | D157: 8 | E157: 1 | F157: 2014-06-02T09:36:00 | G157: 2014-06-02T09:51:00 | H157: 0 | I157: 14 | J157: 51 | L157: 891 | M157: 2 | O157: 373 | Q157: 14 9:36 AM | R157: 14 9:36 AM
A158: A8079207 | B158: 10 | C158: 2 | D158: 8 | E158: 1 | F158: 1/29/14 12:15 PM | G158: 1/29/14 12:22 PM | H158: 0 | I158: 6 | J158: 48 | L158: 408 | M158: 1 | Q158: 14 12:15 PM | R158: 14 12:15 PM
A159: A8079246 | B159: 10 | C159: 2 | D159: 8 | E159: 1 | F159: 2014-06-02T13:21:00 | G159: 2014-06-02T13:29:00 | H159: 0 | I159: 7 | J159: 21 | L159: 441 | M159: 2 | O159: 552 | Q159: 14 1:21 PM | R159: 14 1:21 PM
A160: A8079239 | B160: 10 | C160: 2 | D160: 8 | E160: 1 | F160: 2014-06-02T09:21:00 | G160: 2014-06-02T09:32:00 | H160: 0 | I160: 11 | J160: 6 | L160: 666 | M160: 2 | O160: 738 | Q160: 14 9:21 AM | R160: 14 9:21 AM
A161: A8079242 | B161: 10 | C161: 2 | D161: 8 | E161: 1 | F161: 2014-06-02T10:42:00 | G161: 2014-06-02T10:47:00 | H161: 0 | I161: 4 | J161: 52 | L161: 292 | M161: 2 | O161: 219 | Q161: 14 10:42 AM | R161: 14 10:42 AM
A162: A8079244 | B162: 10 | C162: 2 | D162: 8 | E162: 1 | F162: 2014-06-02T11:45:00 | G162: 2014-06-02T11:51:00 | H162: 0 | I162: 5 | J162: 34 | L162: 334 | M162: 2 | O162: 269 | Q162: 14 11:45 AM | R162: 14 11:45 AM
A163: A8079247 | B163: 10 | C163: 2 | D163: 8 | E163: 1 | F163: 2014-06-02T14:29:00 | G163: 2014-06-02T14:39:00 | H163: 0 | I163: 10 | J163: 5 | L163: 605 | M163: 2 | O163: 444 | Q163: 14 2:29 PM | R163: 14 2:29 PM
A164: A8079230 | B164: 10 | C164: 2 | D164: 8 | E164: 1 | F164: 2014-04-02T15:08:00 | G164: 2014-04-02T15:20:00 | H164: 0 | I164: 11 | J164: 55 | L164: 715 | M164: 2 | O164: 949 | Q164: 14 3:08 PM | R164: 14 3:08 PM
A165: A8079258 | B165: 10 | C165: 2 | D165: 8 | E165: 1 | F165: 2014-10-02T09:39:00 | G165: 2014-10-02T09:46:00 | H165: 0 | I165: 7 | J165: 10 | L165: 430 | M165: 2 | O165: 1055 | Q165: 14 9:39 AM | R165: 14 9:39 AM
A166: A8079237 | B166: 10 | C166: 2 | D166: 8 | E166: 1 | F166: 2014-05-02T12:58:00 | G166: 2014-05-02T13:10:00 | H166: 0 | I166: 12 | J166: 27 | L166: 747 | M166: 2 | O166: 694 | Q166: 14 12:58 PM | R166: 14 12:58 PM
A167: A8079222 | B167: 10 | C167: 2 | D167: 8 | E167: 1 | F167: 1/31/14 1:32 PM | G167: 1/31/14 1:49 PM | H167: 0 | I167: 17 | J167: 25 | L167: 1045 | M167: 1 | Q167: 14 1:32 PM | R167: 14 1:32 PM
A168: A8079235 | B168: 10 | C168: 2 | D168: 8 | E168: 1 | F168: 2014-05-02T11:13:00 | G168: 2014-05-02T11:21:00 | H168: 0 | I168: 8 | J168: 22 | L168: 502 | M168: 2 | O168: 220 | Q168: 14 11:13 AM | R168: 14 11:13 AM
A169: A8079234 | B169: 10 | C169: 2 | D169: 8 | E169: 1 | F169: 2014-05-02T10:54:00 | G169: 2014-05-02T10:58:00 | H169: 0 | I169: 4 | J169: 29 | L169: 269 | M169: 2 | O169: 571 | Q169: 14 10:54 AM | R169: 14 10:54 AM
A170: A8079232 | B170: 10 | C170: 2 | D170: 8 | E170: 1 | F170: 2014-05-02T09:06:00 | G170: 2014-05-02T09:19:00 | H170: 0 | I170: 12 | J170: 30 | L170: 750 | M170: 2 | O170: 571 | Q170: 14 9:06 AM | R170: 14 9:06 AM
A171: A8079272 | B171: 10 | C171: 2 | D171: 8 | E171: 1 | F171: 2014-12-02T09:43:00 | G171: 2014-12-02T09:46:00 | H171: 0 | I171: 3 | J171: 37 | L171: 217 | M171: 2 | O171: 802 | Q171: 14 9:43 AM | R171: 14 9:43 AM
A172: A8079233 | B172: 10 | C172: 2 | D172: 8 | E172: 1 | F172: 2014-05-02T10:42:00 | G172: 2014-05-02T10:58:00 | H172: 0 | I172: 15 | J172: 56 | L172: 956 | M172: 2 | O172: 951 | Q172: 14 10:42 AM | R172: 14 10:42 AM
A173: A8079236 | B173: 10 | C173: 2 | D173: 8 | E173: 1 | F173: 2014-05-02T11:26:00 | G173: 2014-05-02T11:29:00 | H173: 0 | I173: 3 | J173: 8 | L173: 188 | M173: 2 | O173: 488 | Q173: 14 11:26 AM | R173: 14 11:26 AM
A174: A8079274 | B174: 10 | C174: 2 | D174: 8 | E174: 1 | F174: 2014-12-02T09:58:00 | G174: 2014-12-02T10:16:00 | H174: 0 | I174: 17 | J174: 13 | L174: 1033 | M174: 2 | O174: 1192 | Q174: 14 9:58 AM | R174: 14 9:58 AM
A175: A8079276 | B175: 10 | C175: 2 | D175: 8 | E175: 1 | F175: 2014-12-02T11:05:00 | G175: 2014-12-02T11:12:00 | H175: 0 | I175: 7 | J175: 17 | L175: 437 | M175: 2 | O175: 962 | Q175: 14 11:05 AM | R175: 14 11:05 AM
A176: A8079253 | B176: 10 | C176: 2 | D176: 8 | E176: 1 | F176: 2014-07-02T13:55:00 | G176: 2014-07-02T14:04:00 | H176: 0 | I176: 8 | J176: 40 | L176: 520 | M176: 2 | O176: 361 | Q176: 14 1:55 PM | R176: 14 1:55 PM
A177: A8079254 | B177: 10 | C177: 2 | D177: 8 | E177: 1 | F177: 2014-07-02T14:23:00 | G177: 2014-07-02T14:33:00 | H177: 0 | I177: 10 | J177: 35 | L177: 635 | M177: 2 | O177: 435 | Q177: 14 2:23 PM | R177: 14 2:23 PM
A178: A8079223 | B178: 10 | C178: 2 | D178: 8 | E178: 1 | F178: 1/31/14 2:04 PM | G178: 1/31/14 2:10 PM | H178: 0 | I178: 6 | J178: 11 | L178: 371 | M178: 1 | Q178: 14 2:04 PM | R178: 14 2:04 PM
A179: A8079168 | B179: 10 | C179: 2 | D179: 8 | E179: 1 | F179: 1/22/14 10:57 AM | G179: 1/22/14 11:04 AM | H179: 0 | I179: 7 | J179: 29 | L179: 449 | M179: 1 | Q179: 14 10:57 AM | R179: 14 10:57 AM
A180: A8079217 | B180: 10 | C180: 2 | D180: 8 | E180: 1 | F180: 1/30/14 3:30 PM | G180: 1/30/14 3:34 PM | H180: 0 | I180: 3 | J180: 54 | L180: 234 | M180: 1 | Q180: 14 3:30 PM | R180: 14 3:30 PM
A181: A8079270 | B181: 10 | C181: 2 | D181: 8 | E181: 1 | F181: 2014-11-02T12:12:00 | G181: 2014-11-02T12:19:00 | H181: 0 | I181: 7 | J181: 37 | L181: 457 | M181: 2 | O181: 363 | Q181: 14 12:12 PM | R181: 14 12:12 PM
A182: A8079197 | B182: 10 | C182: 2 | D182: 8 | E182: 1 | F182: 1/28/14 9:57 AM | G182: 1/28/14 10:07 AM | H182: 0 | I182: 10 | J182: 3 | L182: 603 | M182: 1 | Q182: 14 9:57 AM | R182: 14 9:57 AM
A183: A8079167 | B183: 10 | C183: 2 | D183: 8 | E183: 1 | F183: 1/22/14 9:40 AM | G183: 1/22/14 9:46 AM | H183: 0 | I183: 5 | J183: 44 | L183: 344 | M183: 1 | Q183: 14 9:40 AM | R183: 14 9:40 AM
A184: A8079209 | B184: 10 | C184: 2 | D184: 8 | E184: 1 | F184: 1/30/14 9:39 AM | G184: 1/30/14 9:48 AM | H184: 0 | I184: 9 | J184: 12 | L184: 552 | M184: 1 | Q184: 14 9:39 AM | R184: 14 9:39 AM
A185: A8079260 | B185: 10 | C185: 2 | D185: 8 | E185: 1 | F185: 2014-10-02T12:20:00 | G185: 2014-10-02T12:32:00 | H185: 0 | I185: 12 | J185: 26 | L185: 746 | M185: 2 | O185: 433 | Q185: 14 12:20 PM | R185: 14 12:20 PM
A186: A8079257 | B186: 10 | C186: 2 | D186: 8 | E186: 1 | F186: 2014-10-02T09:33:00 | G186: 2014-10-02T09:40:00 | H186: 0 | I186: 6 | J186: 24 | L186: 384 | M186: 2 | O186: 173 | Q186: 14 9:33 AM | R186: 14 9:33 AM
A187: A8079473 | B187: 10 | C187: 2 | D187: 8 | E187: 1 | F187: 3/18/14 10:13 AM | G187: 3/18/14 10:32 AM | H187: 0 | I187: 19 | J187: 10 | L187: 1150 | M187: 3 | O187: 401 | Q187: 14 10:13 AM | R187: 14 10:13 AM
A188: A8079647 | B188: 10 | C188: 2 | D188: 8 | E188: 1 | F188: 4/22/14 10:01 AM | G188: 4/22/14 10:04 AM | H188: 0 | I188: 3 | J188: 54 | L188: 234 | M188: 4 | O188: 582 | Q188: 14 10:01 AM | R188: 14 10:01 AM
A189: A8079658 | B189: 10 | C189: 2 | D189: 8 | E189: 1 | F189: 4/23/14 12:12 PM | G189: 4/23/14 1:00 PM | H189: 0 | I189: 48 | J189: 7 | L189: 2887 | M189: 4 | O189: 779 | Q189: 14 12:12 PM | R189: 14 12:12 PM
A190: A8079629 | B190: 10 | C190: 2 | D190: 8 | E190: 1 | F190: 4/15/14 11:43 AM | G190: 4/15/14 12:06 PM | H190: 0 | I190: 23 | J190: 42 | L190: 1422 | M190: 4 | O190: 133 | Q190: 14 11:43 AM | R190: 14 11:43 AM
A191: A8079635 | B191: 10 | C191: 2 | D191: 8 | E191: 1 | F191: 4/16/14 10:00 AM | G191: 4/16/14 10:11 AM | H191: 0 | I191: 11 | J191: 14 | L191: 674 | M191: 4 | O191: 737 | Q191: 14 10:00 AM | R191: 14 10:00 AM
A192: A8079614 | B192: 10 | C192: 2 | D192: 8 | E192: 1 | F192: 2014-11-04T14:50:00 | G192: 2014-11-04T15:07:00 | H192: 0 | I192: 16 | J192: 15 | L192: 975 | M192: 4 | O192: 243 | Q192: 14 2:50 PM | R192: 14 2:50 PM
A193: A8079652 | B193: 10 | C193: 2 | D193: 8 | E193: 1 | F193: 4/22/14 11:47 AM | G193: 4/22/14 12:27 PM | H193: 0 | I193: 39 | J193: 59 | L193: 2399 | M193: 4 | O193: 789 | Q193: 14 11:47 AM | R193: 14 11:47 AM
A194: A8079653 | B194: 10 | C194: 2 | D194: 8 | E194: 1 | F194: 4/22/14 12:20 PM | G194: 4/22/14 12:35 PM | H194: 0 | I194: 15 | J194: 8 | L194: 908 | M194: 4 | O194: 1129 | Q194: 14 12:20 PM | R194: 14 12:20 PM
A195: A8079626 | B195: 10 | C195: 2 | D195: 8 | E195: 1 | F195: 4/15/14 9:48 AM | G195: 4/15/14 10:18 AM | H195: 0 | I195: 30 | J195: 10 | L195: 1810 | M195: 4 | O195: 1279 | Q195: 14 9:48 AM | R195: 14 9:48 AM
A196: A8079262 | B196: 10 | C196: 2 | D196: 8 | E196: 1 | F196: 2014-10-02T14:26:00 | G196: 2014-10-02T14:36:00 | H196: 0 | I196: 9 | J196: 12 | L196: 552 | M196: 2 | O196: 831 | Q196: 14 2:26 PM | R196: 14 2:26 PM
A197: A8079307 | B197: 10 | C197: 2 | D197: 8 | E197: 1 | F197: 2/18/14 1:31 PM | G197: 2/18/14 1:44 PM | H197: 0 | I197: 13 | J197: 8 | L197: =H197*60*60+I197*60+J197 -> 788 | M197: 2 | O197: 413 | Q197: 14 1:31 PM | R197: =TRIM(Q197) -> 14 1:31 PM
A198: A8079649 | B198: 10 | C198: 2 | D198: 8 | E198: 1 | F198: 4/22/14 11:29 AM | G198: 4/22/14 11:38 AM | H198: 0 | I198: 8 | J198: 9 | L198: 489 | M198: 4 | O198: 433 | Q198: 14 11:29 AM | R198: 14 11:29 AM
A199: A8079650 | B199: 10 | C199: 2 | D199: 8 | E199: 1 | F199: 4/22/14 11:29 AM | G199: 4/22/14 11:53 AM | H199: 0 | I199: 23 | J199: 41 | L199: 1421 | M199: 4 | O199: 1354 | Q199: 14 11:29 AM | R199: 14 11:29 AM
A200: A8079651 | B200: 10 | C200: 2 | D200: 8 | E200: 1 | F200: 4/22/14 11:52 AM | G200: 4/22/14 12:04 PM | H200: 0 | I200: 11 | J200: 29 | L200: 689 | M200: 4 | O200: 411 | Q200: 14 11:52 AM | R200: 14 11:52 AM
... 485 more rows

Sheet Resumen
B1: 2011 | D1: 2012 | F1: 2013 | H1: 2014
A2: Mes | B2: Promedio de Segundos | C2: Promedio de Minutos | D2: Promedio de Segundos | E2: Promedio de Minutos | F2: Promedio de Segundos | G2: Promedio de Minutos | H2: Promedio de Segundos | I2: Promedio de Minutos | K2: Año | L2: Promedio Segundos | M2: Promedio Minutos
A3: Enero | B3: =AVERAGEIF(uno,"=1",tiempouno) -> 869.4489796 | C3: =B3/60 -> 14.49081633 | D3: =AVERAGEIF(dos,"=1",tiempodos) -> 1304.268293 | E3: =D3/60 -> 21.73780488 | F3: =AVERAGEIF(tres,"=1",tiempotres) -> 812.7209302 | G3: =F3/60 -> 13.54534884 | H3: =AVERAGEIF(cuatro,"=1",tiempocuatro) -> 672.1209677 | I3: =H3/60 -> 11.20201613 | K3: 2011 | L3: =AVERAGE(tiempouno) -> 943.9764151 | M3: =L3/60 -> 15.73294025
A4: Febrero | B4: =AVERAGEIF(uno,"=2",tiempouno) -> 839.6162791 | C4: =B4/60 -> 13.99360465 | D4: =AVERAGEIF(dos,"=2",tiempodos) -> 1205.91954 | E4: =D4/60 -> 20.098659 | F4: =AVERAGEIF(tres,"=2",tiempotres) -> 946.6979167 | G4: =F4/60 -> 15.77829861 | H4: =AVERAGEIF(cuatro,"=2",tiempocuatro) -> 661.6568047 | I4: =H4/60 -> 11.02761341 | K4: 2012 | L4: =AVERAGE(tiempodos) -> 1079.718133 | M4: =L4/60 -> 17.99530221
A5: Marzo | B5: =AVERAGEIF(uno,"=3",tiempouno) -> 893.3333333 | C5: 14.88888889 | D5: =AVERAGEIF(dos,"=3",tiempodos) -> 1600.54955 | E5: 26.67582583 | F5: =AVERAGEIF(tres,"=3",tiempotres) -> 785.3181818 | G5: 13.08863636 | H5: =AVERAGEIF(cuatro,"=3",tiempocuatro) -> 829.3424658 | I5: 13.82237443 | K5: 2013 | L5: =AVERAGE(tiempotres) -> 813.4243102 | M5: =L5/60 -> 13.55707184
A6: Abril | B6: =AVERAGEIF(uno,"=4",tiempouno) -> 1073.744186 | C6: 17.89573643 | D6: =AVERAGEIF(dos,"=4",tiempodos) -> 1842.322581 | E6: 30.70537634 | F6: =AVERAGEIF(tres,"=4",tiempotres) -> 920.1209677 | G6: 15.33534946 | H6: =AVERAGEIF(cuatro,"=4",tiempocuatro) -> 1122.838028 | I6: 18.71396714 | K6: 2014 | L6: =AVERAGE(tiempocuatro) -> 878.6524927 | M6: =L6/60 -> 14.64420821
A7: Mayo | B7: =AVERAGEIF(uno,"=5",tiempouno) -> 971.1978022 | C7: 16.18663004 | D7: =AVERAGEIF(dos,"=5",tiempodos) -> 1061.256881 | E7: 17.68761468 | F7: =AVERAGEIF(tres,"5",tiempotres) -> 950.2016129 | G7: 15.83669355 | H7: =AVERAGEIF(cuatro,"=5",tiempocuatro) -> 1223.277228 | I7: 20.3879538 | K7: Media final | L7: =(SUM(tiempouno)+SUM(tiempodos)+SUM(tiempotres)+SUM(tiempocuatro))/(COUNT(tiempouno)+COUNT(tiempodos)+COUNT(tiempotres)+COUNT(tiempocuatro)) -> 927.6778651 | M7: =L7/60 -> 15.46129775
A8: Junio | B8: =AVERAGEIF(uno,"=6",tiempouno) -> 836.990099 | C8: 13.94983498 | D8: =AVERAGEIF(dos,"=6",tiempodos) -> 1039.536585 | E8: 17.32560976 | F8: =AVERAGEIF(tres,"=6",tiempotres) -> 938.6896552 | G8: 15.64482759
A9: Julio | B9: =AVERAGEIF(uno,"=7",tiempouno) -> 1085.986486 | C9: 18.09977477 | D9: =AVERAGEIF(dos,"=7",tiempodos) -> 949.5051546 | E9: 15.82508591 | F9: =AVERAGEIF(tres,"=7",tiempotres) -> 851.2520325 | G9: 14.18753388
A10: Agosto | B10: =AVERAGEIF(uno,"=8",tiempouno) -> 840.5833333 | C10: 14.00972222 | D10: =AVERAGEIF(dos,"=8",tiempodos) -> 870.8571429 | E10: 14.51428571 | F10: =AVERAGEIF(tres,"=8",tiempotres) -> 709.3333333 | G10: 11.82222222
A11: Septiembre | B11: =AVERAGEIF(uno,"=9",tiempouno) -> 854.0086957 | C11: 14.23347826 | D11: =AVERAGEIF(dos,"=9",tiempodos) -> 786.8369565 | E11: 13.11394928 | F11: =AVERAGEIF(tres,"=9",tiempotres) -> 714.3781513 | G11: 11.90630252
A12: Octubre | B12: =AVERAGEIF(uno,"=10",tiempouno) -> 1091.040816 | C12: 18.18401361 | D12: =AVERAGEIF(dos,"=10",tiempodos) -> 892.8541667 | E12: 14.88090278 | F12: =AVERAGEIF(tres,"=10",tiempotres) -> 717.2013889 | G12: 11.95335648
A13: Noviembre | B13: =AVERAGEIF(uno,"=11",tiempouno) -> 989.4084507 | C13: 16.49014085 | D13: =AVERAGEIF(dos,"=11",tiempodos) -> 773.9791667 | E13: 12.89965278 | F13: =AVERAGEIF(tres,"=11",tiempotres) -> 675.4587156 | G13: 11.25764526
A14: Diciembre | B14: =AVERAGEIF(uno,"=12",tiempouno) -> 1133.176471 | C14: 18.88627451 | D14: =AVERAGEIF(dos,"=12",tiempodos) -> 864.1728395 | E14: 14.40288066 | F14: =AVERAGEIF(tres,"=12",tiempotres) -> 728.3026316 | G14: 12.13837719
